Workbook

Sheet 7-11
A1: СОГЛАСОВАНО | O1: УТВЕРЖДЕНО
A2: __________________________ | O2: ООО "Крепыш"
A3: __________________________ | O3: _______________________Ефремов В.Ю.
A6: Меню для организации питания детей в возрасте от 7 до 11 лет в образовательных учреждениях Мензелинского муниципального района на 2 полугодие 2021-2022 учебный год.
A8: 1 день, 1 неделя
A9: № рецептуры | B9: Прием пищи, наименование блюда | C9: Масса | D9: Пищевые вещества | G9: Энергетическая ценность | H9: Витамины | M9: Минеральные вещества
D10: Белки | E10: Жиры | F10: Углеводы | H10: B1 | I10: B2 | J10: A | K10: D | L10: C | M10: Na | N10: K | O10: Ca | P10: Mg | Q10: P | R10: Fe | S10: I | T10: Se | U10: F
C11: г | D11: г | E11: г | F11: г | G11: ккал | H11: мг | I11: мг | J11: мкг рет.экв | K11: мкг | L11: мг | M11: мг | N11: мг | O11: мг | P11: мг | Q11: мг | R11: мг | S11: мкг | T11: мкг | U11: мкг
B12: Понедельник, 1 неделя
B13: Горячий завтрак | C13: 7-11
A14: 54-11з-2020 | B14: Салат из моркови с яблоками с растительным маслом | C14: 60 | D14: 0.5 | E14: 6.1 | F14: 4.3 | G14: 74.3 | H14: 0.03 | I14: 0.03 | J14: 732.9 | K14: 0 | L14: 3.63 | M14: 89.79 | N14: 123.26 | O14: 13.5 | P14: 15.57 | Q14: 22.38 | R14: 0.66 | S14: 10.19 | T14: 0.09 | U14: 21.57
A15: 54-4г-2020 | B15: Каша гречневая рассыпчатая | C15: 150 | D15: 8.2 | E15: 6.3 | F15: 35.9 | G15: 233.7 | H15: 0.21 | I15: 0.12 | J15: 19.19 | K15: 0.09 | L15: 0 | M15: 149.45 | N15: 219.36 | O15: 46.62 | P15: 120.16 | Q15: 180.99 | R15: 4.05 | S15: 22.28 | T15: 3.52 | U15: 16.06
A16: ном.рец №174 | B16: Тефтели мясные из говядины, полуфабрикат в соусе | C16: 80/30 | D16: 10.81 | E16: 10.4 | F16: 8.42 | G16: 168.9 | H16: 0 | I16: 0 | J16: 38.45 | K16: 0.01 | L16: 1.79 | M16: 3 | N16: 43 | O16: 45.75 | P16: 35.13 | Q16: 109 | R16: 1.6 | S16: 0 | T16: 0 | U16: 0
A17: 54-4гн-2020 | B17: Чай с молоком и сахаром | C17: 200 | D17: 1.6 | E17: 1.1 | F17: 8.6 | G17: 50.9 | H17: 0.01 | I17: 0.07 | J17: 6.9 | K17: 0 | L17: 0.3 | M17: 19.68 | N17: 81.35 | O17: 103.48 | P17: 9.92 | Q17: 46.33 | R17: 0.78 | S17: 4.5 | T17: 0.88 | U17: 10
A18: Пром. | B18: Хлеб пшеничный | C18: 30 | D18: 2.3 | E18: 0.2 | F18: 14.8 | G18: 70.3 | H18: 0.03 | I18: 0.01 | J18: 0 | K18: 0 | L18: 0 | M18: 149.7 | N18: 27.9 | O18: 6 | P18: 4.2 | Q18: 19.5 | R18: 0.33 | S18: 0.96 | T18: 1.8 | U18: 4.35
A19: Пром. | B19: Хлеб ржаной | C19: 20 | D19: 1.3 | E19: 0.2 | F19: 6.7 | G19: 34.2 | H19: 0.04 | I19: 0.02 | J19: 0 | K19: 0 | L19: 0 | M19: 122 | N19: 49 | O19: 7 | P19: 9.4 | Q19: 31.6 | R19: 0.78 | S19: 0 | T19: 6.18 | U19: 0
B20: Итого за Завтрак | C20: 570 | D20: =SUM(D14:D19) -> 24.71 | E20: 24.3 | F20: 78.72 | G20: 632.3 | H20: 0.32 | I20: 0.25 | J20: 797.44 | K20: 0.1 | L20: 5.72 | M20: 533.62 | N20: 543.87 | O20: 222.35 | P20: 194.38 | Q20: 409.8 | R20: 8.2 | S20: 37.93 | T20: 12.47 | U20: 51.98
B21: Итого за день | C21: =C20 -> 570 | D21: =D20 -> 24.71 | E21: 24.3 | F21: 78.72 | G21: 632.3 | H21: 0.32 | I21: 0.25 | J21: 797.44 | K21: 0.1 | L21: 5.72 | M21: 533.62 | N21: 543.87 | O21: 222.35 | P21: 194.38 | Q21: 409.8 | R21: 8.2 | S21: 37.93 | T21: 12.47 | U21: 51.98
A23: 2 день, 1 неделя
A24: № рецептуры | B24: Прием пищи, наименование блюда | C24: Масса | D24: Пищевые вещества | G24: Энергетическая ценность | H24: Витамины | M24: Минеральные вещества
D25: Белки | E25: Жиры | F25: Углеводы | H25: B1 | I25: B2 | J25: A | K25: D | L25: C | M25: Na | N25: K | O25: Ca | P25: Mg | Q25: P | R25: Fe | S25: I | T25: Se | U25: F
C26: г | D26: г | E26: г | F26: г | G26: ккал | H26: мг | I26: мг | J26: мкг рет.экв | K26: мкг | L26: мг | M26: мг | N26: мг | O26: мг | P26: мг | Q26: мг | R26: мг | S26: мкг | T26: мкг | U26: мкг
B27: Вторник, 1 неделя
B28: Горячий завтрак | C28: 7-11
A29: 54-7з-2020 | B29: Салат из белокочанной капусты с растительным маслом | C29: 60 | D29: 1.5 | E29: 6.1 | F29: 6.2 | G29: 85.8 | H29: 0.03 | I29: 0.04 | J29: 122.25 | K29: 0 | L29: 34.78 | M29: 88.69 | N29: 247.73 | O29: 40.39 | P29: 15.18 | Q29: 30.31 | R29: 0.55 | S29: 10.73 | T29: 0.26 | U29: 12.66
A30: 54-22м-2020 | B30: Рагу из курицы | C30: 140/60 | D30: 21 | E30: 7 | F30: 17.5 | G30: 217.3 | H30: 0.14 | I30: 0.11 | J30: 259.68 | K30: 0 | L30: 11.25 | M30: 281.38 | N30: 738.57 | O30: 32.19 | P30: 93.35 | Q30: 192.51 | R30: 2.13 | S30: 42.97 | T30: 17.04 | U30: 156.36
A31: 54-21гн-2020 | B31: Какао с молоком | C31: 200 | D31: 4.7 | E31: 3.5 | F31: 12.5 | G31: 100.4 | H31: 0.04 | I31: 0.16 | J31: 17.25 | K31: 0 | L31: 0.68 | M31: 49.95 | N31: 220.33 | O31: 167.68 | P31: 34.32 | Q31: 130.28 | R31: 1.09 | S31: 11.7 | T31: 2.29 | U31: 38.25
A32: 54-10в-2020 | B32: Булочка ванильная | C32: 50 | D32: 3.9 | E32: 3.37 | F32: 25.37 | G32: 147.4 | H32: 0.04 | I32: 0.02 | J32: 15.93 | K32: 0.12 | L32: 0 | M32: 200 | N32: 41 | O32: 14 | P32: 5 | Q32: 33 | R32: 0.5 | S32: 27.814 | T32: 2.6 | U32: 9.19
A33: Пром. | B33: Хлеб пшеничный | C33: 30 | D33: 2.3 | E33: 0.2 | F33: 14.8 | G33: 70.3 | H33: 0.03 | I33: 0.01 | J33: 0 | K33: 0 | L33: 0 | M33: 149.7 | N33: 27.9 | O33: 6 | P33: 4.2 | Q33: 19.5 | R33: 0.33 | S33: 0.96 | T33: 1.8 | U33: 4.35
A34: Пром. | B34: Хлеб ржаной | C34: 20 | D34: 1.3 | E34: 0.2 | F34: 6.7 | G34: 34.2 | H34: 0.04 | I34: 0.02 | J34: 0 | K34: 0 | L34: 0 | M34: 122 | N34: 49 | O34: 7 | P34: 9.4 | Q34: 31.6 | R34: 0.78 | S34: 0 | T34: 6.18 | U34: 0
B35: Итого за Завтрак | C35: 560 | D35: =SUM(D29:D34) -> 34.7 | E35: =SUM(E29:E34) -> 20.37 | F35: 83.07 | G35: 655.4 | H35: 0.32 | I35: 0.36 | J35: 415.11 | K35: 0.12 | L35: 46.71 | M35: 891.72 | N35: 1324.53 | O35: 267.26 | P35: 161.45 | Q35: 437.2 | R35: 5.38 | S35: 94.174 | T35: 30.17 | U35: 220.81
B36: Итого за день | C36: 560 | D36: =D35 -> 34.7 | E36: =E35 -> 20.37 | F36: 83.07 | G36: 655.4 | H36: 0.32 | I36: 0.36 | J36: 415.11 | K36: 0.12 | L36: 46.71 | M36: 891.72 | N36: 1324.53 | O36: 267.26 | P36: 161.45 | Q36: 437.2 | R36: 5.38 | S36: 94.174 | T36: 30.17 | U36: 220.81
A38: 3 день, 1 неделя
A39: № рецептуры | B39: Прием пищи, наименование блюда | C39: Масса | D39: Пищевые вещества | G39: Энергетическая ценность | H39: Витамины | M39: Минеральные вещества
D40: Белки | E40: Жиры | F40: Углеводы | H40: B1 | I40: B2 | J40: A | K40: D | L40: C | M40: Na | N40: K | O40: Ca | P40: Mg | Q40: P | R40: Fe | S40: I | T40: Se | U40: F
C41: г | D41: г | E41: г | F41: г | G41: ккал | H41: мг | I41: мг | J41: мкг рет.экв | K41: мкг | L41: мг | M41: мг | N41: мг | O41: мг | P41: мг | Q41: мг | R41: мг | S41: мкг | T41: мкг | U41: мкг
B42: Среда, 1 неделя
B43: Горячий завтрак | C43: 7-11
A44: 54-13з-2020 | B44: Салат из свеклы отварной с растительным маслом | C44: 60 | D44: 0.8 | E44: 2.7 | F44: 4.6 | G44: 45.6 | H44: 0.01 | I44: 0.02 | J44: 0.68 | K44: 0 | L44: 2.28 | M44: 78.77 | N44: 136.27 | O44: 19.21 | P44: 10.95 | Q44: 21.51 | R44: 0.7 | S44: 11.99 | T44: 0.35 | U44: 11.4
A45: 54-1г-2020 | B45: Макароны отварные | C45: 150 | D45: 5.3 | E45: 4.9 | F45: 32.8 | G45: 196.8 | H45: 0.06 | I45: 0.02 | J45: 18.36 | K45: 0.09 | L45: 0 | M45: 149.04 | N45: 53.8 | O45: 105.83 | P45: 7.19 | Q45: 40.7 | R45: 0.73 | S45: 20.77 | T45: 0.06 | U45: 11.92
A46: №243 | B46: Сосиски говяжьи отварные, п/ф (2 шт) | C46: 100 | D46: 13.2 | E46: 22.84 | F46: 1.8 | G46: 247.15 | H46: 0 | I46: 0 | J46: 0.08 | K46: 0.01 | L46: 0 | M46: 0 | N46: 0 | O46: 7.44 | P46: 15.51 | Q46: 137.39 | R46: 1.74 | S46: 0 | T46: 0 | U46: 0
A47: 54-3гн-2020 | B47: Чай с лимоном и сахаром | C47: 207 | D47: 0.2 | E47: 0.1 | F47: 6.6 | G47: 27.9 | H47: 0 | I47: 0.01 | J47: 0.38 | K47: 0 | L47: 1.16 | M47: 1.26 | N47: 30.23 | O47: 67 | P47: 4.56 | Q47: 8.52 | R47: 0.77 | S47: 0.01 | T47: 0.02 | U47: 0.7
A48: Пром. | B48: Хлеб ржаной | C48: 20 | D48: 1.3 | E48: 0.2 | F48: 6.7 | G48: 34.2 | H48: 0.04 | I48: 0.02 | J48: 0 | K48: 0 | L48: 0 | M48: 122 | N48: 49 | O48: 7 | P48: 9.4 | Q48: 31.6 | R48: 0.78 | S48: 0 | T48: 6.18 | U48: 0
A49: Пром. | B49: Хлеб пшеничный | C49: 30 | D49: 2.3 | E49: 0.2 | F49: 14.8 | G49: 70.3 | H49: 0.03 | I49: 0.01 | J49: 0 | K49: 0 | L49: 0 | M49: 149.7 | N49: 27.9 | O49: 6 | P49: 4.2 | Q49: 19.5 | R49: 0.33 | S49: 0.96 | T49: 1.8 | U49: 4.35
B50: Итого за Завтрак | C50: =SUM(C44:C49) -> 567 | D50: =SUM(D44:D49) -> 23.1 | E50: =SUM(E44:E49) -> 30.94 | F50: 67.3 | G50: 621.95 | H50: 0.14 | I50: 0.08 | J50: 19.5 | K50: 0.1 | L50: 3.44 | M50: 500.77 | N50: 297.2 | O50: 212.48 | P50: 51.81 | Q50: 259.22 | R50: 5.05 | S50: 33.73 | T50: 8.41 | U50: 28.37
B51: Итого за день | C51: 567 | D51: =D50 -> 23.1 | E51: =E50 -> 30.94 | F51: 67.3 | G51: 621.95 | H51: 0.14 | I51: 0.08 | J51: 19.5 | K51: 0.1 | L51: 3.44 | M51: 500.77 | N51: 297.2 | O51: 212.48 | P51: 51.81 | Q51: 259.22 | R51: 5.05 | S51: 33.73 | T51: 8.41 | U51: 28.37
A53: 4 день, 1 неделя
A54: № рецептуры | B54: Прием пищи, наименование блюда | C54: Масса | D54: Пищевые вещества | G54: Энергетическая ценность | H54: Витамины | M54: Минеральные вещества
D55: Белки | E55: Жиры | F55: Углеводы | H55: B1 | I55: B2 | J55: A | K55: D | L55: C | M55: Na | N55: K | O55: Ca | P55: Mg | Q55: P | R55: Fe | S55: I | T55: Se | U55: F
C56: г | D56: г | E56: г | F56: г | G56: ккал | H56: мг | I56: мг | J56: мкг рет.экв | K56: мкг | L56: мг | M56: мг | N56: мг | O56: мг | P56: мг | Q56: мг | R56: мг | S56: мкг | T56: мкг | U56: мкг
B57: Четверг, 1 неделя
B58: Горячий завтрак | C58: 7-11
A59: 54-9з-2020 | B59: Салат из белокочанной капусты с морковью и яблоками с растительным маслом | C59: 60 | D59: 0.8 | E59: 6.1 | F59: 3.6 | G59: 72.5 | H59: 0.02 | I59: 0.02 | J59: 241.63 | K59: 0 | L59: 17.32 | M59: 87.51 | N59: 160.14 | O59: 23.5 | P59: 11.17 | Q59: 18.8 | R59: 0.56 | S59: 9.87 | T59: 0.15 | U59: 10.98
A60: 54-11г-2020 | B60: Картофельное пюре | C60: 150 | D60: 3.1 | E60: 5.3 | F60: 19.8 | G60: 139.4 | H60: 0.12 | I60: 0.11 | J60: 23.8 | K60: 0.09 | L60: 10.2 | M60: 161.78 | N60: 624.83 | O60: 39.49 | P60: 28.23 | Q60: 84.47 | R60: 1.03 | S60: 28.46 | T60: 0.78 | U60: 42.79
A61: ном.рец №608 | B61: Котлета мясная Любительская, полуфабрикат в соусе | C61: 70/30 | D61: 10.04 | E61: 12.79 | F61: 8.12 | G61: 187.9 | H61: 0 | I61: 0 | J61: 38.45 | K61: 0.01 | L61: 1.15 | M61: 3 | N61: 43 | O61: 45.75 | P61: 35.13 | Q61: 173.38 | R61: 1.6 | S61: 0 | T61: 0 | U61: 0
A62: 54-2гн-2020 | B62: Кофейный напиток с молоком | C62: 200 | D62: 3.9 | E62: 2.9 | F62: 11.2 | G62: 86 | H62: 0.03 | I62: 0.13 | J62: 13.29 | K62: 0 | L62: 0.52 | M62: 38.55 | N62: 183.98 | O62: 148.32 | P62: 30.67 | Q62: 106.79 | R62: 1.06 | S62: 9 | T62: 1.76 | U62: 20
A63: Пром. | B63: Хлеб ржаной | C63: 20 | D63: 1.3 | E63: 0.2 | F63: 6.7 | G63: 34.2 | H63: 0.04 | I63: 0.02 | J63: 0 | K63: 0 | L63: 0 | M63: 122 | N63: 49 | O63: 7 | P63: 9.4 | Q63: 31.6 | R63: 0.78 | S63: 0 | T63: 6.18 | U63: 0
A64: Пром. | B64: Хлеб пшеничный | C64: 30 | D64: 2.3 | E64: 0.2 | F64: 14.8 | G64: 70.3 | H64: 0.03 | I64: 0.01 | J64: 0 | K64: 0 | L64: 0 | M64: 149.7 | N64: 27.9 | O64: 6 | P64: 4.2 | Q64: 19.5 | R64: 0.33 | S64: 0.96 | T64: 1.8 | U64: 4.35
B65: Итого за Завтрак | C65: 560 | D65: =SUM(D59:D64) -> 21.44 | E65: 27.49 | F65: 64.22 | G65: 590.3 | H65: 0.24 | I65: 0.29 | J65: 317.17 | K65: 0.1 | L65: 29.19 | M65: 562.54 | N65: 1088.85 | O65: 270.06 | P65: 118.8 | Q65: 434.54 | R65: 5.36 | S65: 48.29 | T65: 10.67 | U65: 78.12
B66: Итого за день | C66: =C65 -> 560 | D66: =D65 -> 21.44 | E66: 27.49 | F66: 64.22 | G66: 590.3 | H66: 0.24 | I66: 0.29 | J66: 317.17 | K66: 0.1 | L66: 29.19 | M66: 562.54 | N66: 1088.85 | O66: 270.06 | P66: 118.8 | Q66: 434.54 | R66: 5.36 | S66: 48.29 | T66: 10.67 | U66: 78.12
A68: 5 день, 1 неделя
A69: № рецептуры | B69: Прием пищи, наименование блюда | C69: Масса | D69: Пищевые вещества | G69: Энергетическая ценность | H69: Витамины | M69: Минеральные вещества
D70: Белки | E70: Жиры | F70: Углеводы | H70: B1 | I70: B2 | J70: A | K70: D | L70: C | M70: Na | N70: K | O70: Ca | P70: Mg | Q70: P | R70: Fe | S70: I | T70: Se | U70: F
C71: г | D71: г | E71: г | F71: г | G71: ккал | H71: мг | I71: мг | J71: мкг рет.экв | K71: мкг | L71: мг | M71: мг | N71: мг | O71: мг | P71: мг | Q71: мг | R71: мг | S71: мкг | T71: мкг | U71: мкг
B72: Пятница, 1 неделя
B73: Горячий завтрак | C73: 7-11
A74: 54-11з-2020 | B74: Салат из моркови с яблоками с растительным маслом | C74: 60 | D74: 0.5 | E74: 6.1 | F74: 4.3 | G74: 74.3 | H74: 0.03 | I74: 0.03 | J74: 732.9 | K74: 0 | L74: 3.63 | M74: 89.79 | N74: 123.26 | O74: 13.5 | P74: 15.57 | Q74: 22.38 | R74: 0.66 | S74: 10.19 | T74: 0.09 | U74: 21.57
A75: 54-6г-2020 | B75: Плов из говядины | C75: 160/40 | D75: 15.32 | E75: 14.73 | F75: 38.58 | G75: 348.3 | H75: 0.07 | I75: 0.12 | J75: 261.6 | K75: 0.1 | L75: 0.08 | M75: 276 | N75: 267 | O75: 117 | P75: 44 | Q75: 194 | R75: 2.2 | S75: 38.67 | T75: 7.3 | U75: 81.72
A76: 54-4гн-2020 | B76: Компот из кураги | C76: 200 | D76: 0.98 | E76: 0.05 | F76: 15.64 | G76: 66.9 | H76: 0.01 | I76: 0.03 | J76: 69.96 | K76: 0 | L76: 0 | M76: 3 | N76: 285 | O76: 90 | P76: 18 | Q76: 25 | R76: 0.6 | S76: 0 | T76: 0 | U76: 0
A77: Пром. | B77: Хлеб ржаной | C77: 20 | D77: 1.3 | E77: 0.2 | F77: 6.7 | G77: 34.2 | H77: 0.04 | I77: 0.02 | J77: 0 | K77: 0 | L77: 0 | M77: 122 | N77: 49 | O77: 7 | P77: 9.4 | Q77: 31.6 | R77: 0.78 | S77: 0 | T77: 6.18 | U77: 0
A78: Пром. | B78: Хлеб пшеничный | C78: 30 | D78: 2.3 | E78: 0.2 | F78: 14.8 | G78: 70.3 | H78: 0.03 | I78: 0.01 | J78: 0 | K78: 0 | L78: 0 | M78: 149.7 | N78: 27.9 | O78: 6 | P78: 4.2 | Q78: 19.5 | R78: 0.33 | S78: 0.96 | T78: 1.8 | U78: 4.35
B79: Итого за Завтрак | C79: 510 | D79: =SUM(D74:D78) -> 20.4 | E79: =SUM(E74:E78) -> 21.28 | F79: 80.02 | G79: 594 | H79: 0.18 | I79: 0.21 | J79: 1064.46 | K79: 0.1 | L79: 3.71 | M79: 640.49 | N79: 752.16 | O79: 233.5 | P79: 91.17 | Q79: 292.48 | R79: 4.57 | S79: 49.82 | T79: 15.37 | U79: 107.64
B80: Итого за день | C80: 510 | D80: =D79 -> 20.4 | E80: =E79 -> 21.28 | F80: 80.02 | G80: 594 | H80: 0.18 | I80: 0.21 | J80: 1064.46 | K80: 0.1 | L80: 3.71 | M80: 640.49 | N80: 752.16 | O80: 233.5 | P80: 91.17 | Q80: 292.48 | R80: 4.57 | S80: 49.82 | T80: 15.37 | U80: 107.64
A82: 6 день, 1 неделя
A83: № рецептуры | B83: Прием пищи, наименование блюда | C83: Масса | D83: Пищевые вещества | G83: Энергетическая ценность | H83: Витамины | M83: Минеральные вещества
D84: Белки | E84: Жиры | F84: Углеводы | H84: B1 | I84: B2 | J84: A | K84: D | L84: C | M84: Na | N84: K | O84: Ca | P84: Mg | Q84: P | R84: Fe | S84: I | T84: Se | U84: F
C85: г | D85: г | E85: г | F85: г | G85: ккал | H85: мг | I85: мг | J85: мкг рет.экв | K85: мкг | L85: мг | M85: мг | N85: мг | O85: мг | P85: мг | Q85: мг | R85: мг | S85: мкг | T85: мкг | U85: мкг
B86: Суббота, 1 неделя
B87: Горячий завтрак | C87: 7-11
A88: 54-16з-2020 | B88: Винегрет с растительным маслом | C88: 60 | D88: 0.7 | E88: 5.4 | F88: 4 | G88: 67.1 | H88: 0.02 | I88: 0.02 | J88: 72.89 | K88: 0 | L88: 2.26 | M88: 200.99 | N88: 127.85 | O88: 12.1 | P88: 9.66 | Q88: 21.4 | R88: 0.41 | S88: 7.86 | T88: 0.13 | U88: 11.85
A89: рец.2015г. | B89: Пельмени мясные отварные, полуфабрикат | C89: 180 | D89: 10.34 | E89: 12.175 | F89: 20.34 | G89: 237 | H89: 0.159 | I89: 0 | J89: 0.18 | K89: 0 | L89: 0.491 | M89: 0 | N89: 0 | O89: 79.453 | P89: 10.579 | Q89: 239.018 | R89: 0.01 | S89: 0 | T89: 0 | U89: 0
A90: 54-23гн-2020 | B90: Кофейный напиток с молоком | C90: 200 | D90: 3.9 | E90: 2.9 | F90: 11.2 | G90: 86 | H90: 0.03 | I90: 0.13 | J90: 13.29 | K90: 0 | L90: 0.52 | M90: 38.55 | N90: 183.98 | O90: 148.32 | P90: 30.67 | Q90: 106.79 | R90: 1.06 | S90: 9 | T90: 1.76 | U90: 20
A91: Пром. | B91: Хлеб пшеничный | C91: 30 | D91: 2.3 | E91: 0.2 | F91: 14.8 | G91: 70.3 | H91: 0.03 | I91: 0.01 | J91: 0 | K91: 0 | L91: 0 | M91: 149.7 | N91: 27.9 | O91: 6 | P91: 4.2 | Q91: 19.5 | R91: 0.33 | S91: 0.96 | T91: 1.8 | U91: 4.35
A92: Пром. | B92: Хлеб ржаной | C92: 20 | D92: 1.3 | E92: 0.2 | F92: 6.7 | G92: 34.2 | H92: 0.04 | I92: 0.02 | J92: 0 | K92: 0 | L92: 0 | M92: 122 | N92: 49 | O92: 7 | P92: 9.4 | Q92: 31.6 | R92: 0.78 | S92: 0 | T92: 6.18 | U92: 0
B93: Итого за Завтрак | C93: =SUM(C88:C92) -> 490 | D93: =SUM(D88:D92) -> 18.54 | E93: 20.875 | F93: 57.04 | G93: 494.6 | H93: 0.279 | I93: 0.18 | J93: 86.36 | K93: 0 | L93: 3.271 | M93: 511.24 | N93: 388.73 | O93: 252.873 | P93: 64.509 | Q93: 418.308 | R93: 2.59 | S93: 17.82 | T93: 9.87 | U93: 36.2
B94: Итого за день | C94: =C93 -> 490 | D94: =D93 -> 18.54 | E94: =E93 -> 20.875 | F94: 57.04 | G94: 494.6 | H94: 0.279 | I94: 0.18 | J94: 86.36 | K94: 0 | L94: 3.271 | M94: 511.24 | N94: 388.73 | O94: 252.873 | P94: 64.509 | Q94: 418.308 | R94: 2.59 | S94: 17.82 | T94: 9.87 | U94: 36.2
A96: 7 день, 2 неделя
A97: № рецептуры | B97: Прием пищи, наименование блюда | C97: Масса | D97: Пищевые вещества | G97: Энергетическая ценность | H97: Витамины | M97: Минеральные вещества
D98: Белки | E98: Жиры | F98: Углеводы | H98: B1 | I98: B2 | J98: A | K98: D | L98: C | M98: Na | N98: K | O98: Ca | P98: Mg | Q98: P | R98: Fe | S98: I | T98: Se | U98: F
C99: г | D99: г | E99: г | F99: г | G99: ккал | H99: мг | I99: мг | J99: мкг рет.экв | K99: мкг | L99: мг | M99: мг | N99: мг | O99: мг | P99: мг | Q99: мг | R99: мг | S99: мкг | T99: мкг | U99: мкг
B100: Понедельник, 2 неделя
B101: Горячий завтрак | C101: 7-11
A102: 54-7з-2020 | B102: Салат из белокочанной капусты с растительным маслом | C102: 60 | D102: 1.5 | E102: 6.1 | F102: 6.2 | G102: 85.8 | H102: 0.03 | I102: 0.04 | J102: 122.25 | K102: 0 | L102: 34.78 | M102: 88.69 | N102: 247.73 | O102: 40.39 | P102: 15.18 | Q102: 30.31 | R102: 0.55 | S102: 10.73 | T102: 0.26 | U102: 12.66
A103: 54-4г-2020 | B103: Каша гречневая рассыпчатая | C103: 150 | D103: 8.2 | E103: 6.3 | F103: 35.9 | G103: 233.7 | H103: 0.21 | I103: 0.12 | J103: 19.19 | K103: 0.09 | L103: 0 | M103: 149.45 | N103: 219.36 | O103: 46.62 | P103: 120.16 | Q103: 180.99 | R103: 4.05 | S103: 22.28 | T103: 3.52 | U103: 16.06
A104: ном.рец №608 | B104: Котлета мясная Любительская, полуфабрикат в соусе | C104: 70/30 | D104: 10.04 | E104: 12.79 | F104: 8.12 | G104: 187.9 | H104: 0 | I104: 0 | J104: 38.45 | K104: 0.01 | L104: 1.15 | M104: 3 | N104: 43 | O104: 45.75 | P104: 35.13 | Q104: 173.38 | R104: 1.6 | S104: 0 | T104: 0 | U104: 0
A105: 54-2гн-2020 | B105: Чай с сахаром | C105: 200 | D105: 0.2 | E105: 0 | F105: 6.4 | G105: 26.8 | H105: 0 | I105: 0.01 | J105: 0.3 | K105: 0 | L105: 0.04 | M105: 0.68 | N105: 20.76 | O105: 66.08 | P105: 3.83 | Q105: 7.18 | R105: 0.73 | S105: 0 | T105: 0 | U105: 0
A106: Пром. | B106: Хлеб пшеничный | C106: 30 | D106: 2.3 | E106: 0.2 | F106: 14.8 | G106: 70.3 | H106: 0.03 | I106: 0.01 | J106: 0 | K106: 0 | L106: 0 | M106: 149.7 | N106: 27.9 | O106: 6 | P106: 4.2 | Q106: 19.5 | R106: 0.33 | S106: 0.96 | T106: 1.8 | U106: 4.35
A107: Пром. | B107: Хлеб ржаной | C107: 20 | D107: 1.3 | E107: 0.2 | F107: 6.7 | G107: 34.2 | H107: 0.04 | I107: 0.02 | J107: 0 | K107: 0 | L107: 0 | M107: 122 | N107: 49 | O107: 7 | P107: 9.4 | Q107: 31.6 | R107: 0.78 | S107: 0 | T107: 6.18 | U107: 0
B108: Итого за Завтрак | C108: 560 | D108: =SUM(D102:D107) -> 23.54 | E108: 25.59 | F108: 78.12 | G108: 638.7 | H108: 0.31 | I108: 0.2 | J108: 180.19 | K108: 0.1 | L108: 35.97 | M108: 513.52 | N108: 607.75 | O108: 211.84 | P108: 187.9 | Q108: 442.96 | R108: 8.04 | S108: 33.97 | T108: 11.76 | U108: 33.07
B109: Итого за день | C109: =C108 -> 560 | D109: =D108 -> 23.54 | E109: 25.59 | F109: 78.12 | G109: 638.7 | H109: 0.31 | I109: 0.2 | J109: 180.19 | K109: 0.1 | L109: 35.97 | M109: 513.52 | N109: 607.75 | O109: 211.84 | P109: 187.9 | Q109: 442.96 | R109: 8.04 | S109: 33.97 | T109: 11.76 | U109: 33.07
A111: 8 день, 2 неделя
A112: № рецептуры | B112: Прием пищи, наименование блюда | C112: Масса | D112: Пищевые вещества | G112: Энергетическая ценность | H112: Витамины | M112: Минеральные вещества
D113: Белки | E113: Жиры | F113: Углеводы | H113: B1 | I113: B2 | J113: A | K113: D | L113: C | M113: Na | N113: K | O113: Ca | P113: Mg | Q113: P | R113: Fe | S113: I | T113: Se | U113: F
C114: г | D114: г | E114: г | F114: г | G114: ккал | H114: мг | I114: мг | J114: мкг рет.экв | K114: мкг | L114: мг | M114: мг | N114: мг | O114: мг | P114: мг | Q114: мг | R114: мг | S114: мкг | T114: мкг | U114: мкг
B115: Вторник, 2 неделя
B116: Горячий завтрак | C116: 7-11
A117: 54-13з-2020 | B117: Салат из свеклы отварной с растительным маслом | C117: 60 | D117: 0.8 | E117: 2.7 | F117: 4.6 | G117: 45.6 | H117: 0.01 | I117: 0.02 | J117: 0.68 | K117: 0 | L117: 2.28 | M117: 78.77 | N117: 136.27 | O117: 19.21 | P117: 10.95 | Q117: 21.51 | R117: 0.7 | S117: 11.99 | T117: 0.35 | U117: 11.4
A118: 54-12м-2020 | B118: Плов с курицей | C118: 150/50 | D118: 18.5 | E118: 7.4 | F118: 33.1 | G118: 273.2 | H118: 0.07 | I118: 0.06 | J118: 144.87 | K118: 0 | L118: 2.08 | M118: 272.9 | N118: 287.76 | O118: 72.64 | P118: 78.85 | Q118: 174.89 | R118: 1.53 | S118: 37.41 | T118: 19.63 | U118: 118.1
A119: 54-3гн-2020 | B119: Чай с лимоном и сахаром | C119: 207 | D119: 0.2 | E119: 0.1 | F119: 6.6 | G119: 27.9 | H119: 0 | I119: 0.01 | J119: 0.38 | K119: 0 | L119: 1.16 | M119: 1.26 | N119: 30.23 | O119: 67 | P119: 4.56 | Q119: 8.52 | R119: 0.77 | S119: 0.01 | T119: 0.02 | U119: 0.7
A120: 54-10в-2020 | B120: Булочка ванильная | C120: 50 | D120: 3.9 | E120: 3.37 | F120: 25.37 | G120: 147.4 | H120: 0.04 | I120: 0.02 | J120: 15.93 | K120: 0.12 | L120: 0 | M120: 200 | N120: 41 | O120: 14 | P120: 5 | Q120: 33 | R120: 0.5 | S120: 27.814 | T120: 2.6 | U120: 9.19
A121: Пром. | B121: Хлеб пшеничный | C121: 30 | D121: 2.3 | E121: 0.2 | F121: 14.8 | G121: 70.3 | H121: 0.03 | I121: 0.01 | J121: 0 | K121: 0 | L121: 0 | M121: 149.7 | N121: 27.9 | O121: 6 | P121: 4.2 | Q121: 19.5 | R121: 0.33 | S121: 0.96 | T121: 1.8 | U121: 4.35
A122: Пром. | B122: Хлеб ржаной | C122: 20 | D122: 1.3 | E122: 0.2 | F122: 6.7 | G122: 34.2 | H122: 0.04 | I122: 0.02 | J122: 0 | K122: 0 | L122: 0 | M122: 122 | N122: 49 | O122: 7 | P122: 9.4 | Q122: 31.6 | R122: 0.78 | S122: 0 | T122: 6.18 | U122: 0
B123: Итого за Завтрак | C123: 567 | D123: =SUM(D117:D122) -> 27 | E123: =SUM(E117:E122) -> 13.97 | F123: 91.17 | G123: 598.6 | H123: 0.19 | I123: 0.14 | J123: 161.86 | K123: 0.12 | L123: 5.52 | M123: 824.63 | N123: 572.16 | O123: 185.85 | P123: 112.96 | Q123: 289.02 | R123: 4.61 | S123: 78.184 | T123: 30.58 | U123: 143.74
B124: Итого за день | C124: 567 | D124: =D123 -> 27 | E124: =E123 -> 13.97 | F124: 91.17 | G124: 598.6 | H124: 0.19 | I124: 0.14 | J124: 161.86 | K124: 0.12 | L124: 5.52 | M124: 824.63 | N124: 572.16 | O124: 185.85 | P124: 112.96 | Q124: 289.02 | R124: 4.61 | S124: 78.184 | T124: 30.58 | U124: 143.74
A126: 9 день, 2 неделя
A127: № рецептуры | B127: Прием пищи, наименование блюда | C127: Масса | D127: Пищевые вещества | G127: Энергетическая ценность | H127: Витамины | M127: Минеральные вещества
D128: Белки | E128: Жиры | F128: Углеводы | H128: B1 | I128: B2 | J128: A | K128: D | L128: C | M128: Na | N128: K | O128: Ca | P128: Mg | Q128: P | R128: Fe | S128: I | T128: Se | U128: F
C129: г | D129: г | E129: г | F129: г | G129: ккал | H129: мг | I129: мг | J129: мкг рет.экв | K129: мкг | L129: мг | M129: мг | N129: мг | O129: мг | P129: мг | Q129: мг | R129: мг | S129: мкг | T129: мкг | U129: мкг
B130: Среда, 2 неделя
B131: Горячий завтрак | C131: 7-11
A132: 54-16з-2020 | B132: Винегрет с растительным маслом | C132: 60 | D132: 0.7 | E132: 5.4 | F132: 4 | G132: 67.1 | H132: 0.02 | I132: 0.02 | J132: 72.89 | K132: 0 | L132: 2.26 | M132: 200.99 | N132: 127.85 | O132: 12.1 | P132: 9.66 | Q132: 21.4 | R132: 0.41 | S132: 7.86 | T132: 0.13 | U132: 11.85
A133: 54-11г-2020 | B133: Картофельное пюре | C133: 150 | D133: 3.1 | E133: 5.3 | F133: 19.8 | G133: 139.4 | H133: 0.12 | I133: 0.11 | J133: 23.8 | K133: 0.09 | L133: 10.2 | M133: 161.78 | N133: 624.83 | O133: 39.49 | P133: 28.23 | Q133: 84.47 | R133: 1.03 | S133: 28.46 | T133: 0.78 | U133: 42.79
A134: 54-7р-2020 | B134: Рыба припущенная в молоко | C134: 100 | D134: 13.09 | E134: 7.52 | F134: 2.89 | G134: 131.6 | H134: 0.08 | I134: 0.11 | J134: 9.02 | K134: 0.16 | L134: 1 | M134: 111 | N134: 347 | O134: 68 | P134: 44 | Q134: 202 | R134: 0.7 | S134: 133.48 | T134: 11.9 | U134: 572.6
A135: 54-21гн-2020 | B135: Какао с молоком | C135: 200 | D135: 4.7 | E135: 3.5 | F135: 12.5 | G135: 100.4 | H135: 0.04 | I135: 0.16 | J135: 17.25 | K135: 0 | L135: 0.68 | M135: 49.95 | N135: 220.33 | O135: 167.68 | P135: 34.32 | Q135: 130.28 | R135: 1.09 | S135: 11.7 | T135: 2.29 | U135: 38.25
A136: Пром. | B136: Хлеб пшеничный | C136: 30 | D136: 2.3 | E136: 0.2 | F136: 14.8 | G136: 70.3 | H136: 0.03 | I136: 0.01 | J136: 0 | K136: 0 | L136: 0 | M136: 149.7 | N136: 27.9 | O136: 6 | P136: 4.2 | Q136: 19.5 | R136: 0.33 | S136: 0.96 | T136: 1.8 | U136: 4.35
A137: Пром. | B137: Хлеб ржаной | C137: 20 | D137: 1.3 | E137: 0.2 | F137: 6.7 | G137: 34.2 | H137: 0.04 | I137: 0.02 | J137: 0 | K137: 0 | L137: 0 | M137: 122 | N137: 49 | O137: 7 | P137: 9.4 | Q137: 31.6 | R137: 0.78 | S137: 0 | T137: 6.18 | U137: 0
A138: Пром. | B138: Яблоко | C138: 100 | D138: 0.4 | E138: 0.4 | F138: 9.8 | G138: 44.4 | H138: 0.03 | I138: 0.02 | J138: 5 | K138: 0 | L138: 10 | M138: 26 | N138: 278 | O138: 16 | P138: 9 | Q138: 11 | R138: 2.2 | S138: 2 | T138: 0.3 | U138: 8
B139: Итого за Завтрак | C139: =SUM(C132:C138) -> 660 | D139: 25.59 | E139: 22.52 | F139: 70.49 | G139: 587.4 | H139: 0.36 | I139: 0.45 | J139: 127.96 | K139: 0.25 | L139: 24.14 | M139: 821.42 | N139: 1674.91 | O139: 316.27 | P139: 138.81 | Q139: 500.25 | R139: 6.54 | S139: 184.46 | T139: 23.38 | U139: 677.84
B140: Итого за день | C140: =C139 -> 660 | D140: =D139 -> 25.59 | E140: 22.52 | F140: 70.49 | G140: 587.4 | H140: 0.36 | I140: 0.45 | J140: 127.96 | K140: 0.25 | L140: 24.14 | M140: 821.42 | N140: 1674.91 | O140: 316.27 | P140: 138.81 | Q140: 500.25 | R140: 6.54 | S140: 184.46 | T140: 23.38 | U140: 677.84
A142: 10 день, 2 неделя
A143: № рецептуры | B143: Прием пищи, наименование блюда | C143: Масса | D143: Пищевые вещества | G143: Энергетическая ценность | H143: Витамины | M143: Минеральные вещества
D144: Белки | E144: Жиры | F144: Углеводы | H144: B1 | I144: B2 | J144: A | K144: D | L144: C | M144: Na | N144: K | O144: Ca | P144: Mg | Q144: P | R144: Fe | S144: I | T144: Se | U144: F
C145: г | D145: г | E145: г | F145: г | G145: ккал | H145: мг | I145: мг | J145: мкг рет.экв | K145: мкг | L145: мг | M145: мг | N145: мг | O145: мг | P145: мг | Q145: мг | R145: мг | S145: мкг | T145: мкг | U145: мкг
B146: Четверг, 2 неделя
B147: Горячий завтрак | C147: 7-11
A148: 54-11з-2020 | B148: Салат из моркови с яблоками с растительным маслом | C148: 60 | D148: 0.5 | E148: 6.1 | F148: 4.3 | G148: 74.3 | H148: 0.03 | I148: 0.03 | J148: 732.9 | K148: 0 | L148: 3.63 | M148: 89.79 | N148: 123.26 | O148: 13.5 | P148: 15.57 | Q148: 22.38 | R148: 0.66 | S148: 10.19 | T148: 0.09 | U148: 21.57
A149: 54-1г-2020 | B149: Макароны отварные | C149: 150 | D149: 5.3 | E149: 4.9 | F149: 32.8 | G149: 196.8 | H149: 0.06 | I149: 0.02 | J149: 18.36 | K149: 0.09 | L149: 0 | M149: 149.04 | N149: 53.8 | O149: 105.83 | P149: 7.19 | Q149: 40.7 | R149: 0.73 | S149: 20.77 | T149: 0.06 | U149: 11.92
A150: ном.рец №174 | B150: Тефтели мясные из говядины, полуфабрикат в соусе | C150: 80/30 | D150: 10.81 | E150: 10.4 | F150: 8.42 | G150: 168.9 | H150: 0 | I150: 0 | J150: 38.45 | K150: 0.01 | L150: 1.79 | M150: 3 | N150: 43 | O150: 45.75 | P150: 35.13 | Q150: 109 | R150: 1.6 | S150: 0 | T150: 0 | U150: 0
A151: 54-21гн-2020 | B151: Кофейный напиток с молоком | C151: 200 | D151: 3.9 | E151: 2.9 | F151: 11.2 | G151: 86 | H151: 0.03 | I151: 0.13 | J151: 13.29 | K151: 0 | L151: 0.52 | M151: 38.55 | N151: 183.98 | O151: 148.32 | P151: 30.67 | Q151: 106.79 | R151: 1.06 | S151: 9 | T151: 1.76 | U151: 20
A152: Пром. | B152: Хлеб пшеничный | C152: 30 | D152: 2.3 | E152: 0.2 | F152: 14.8 | G152: 70.3 | H152: 0.03 | I152: 0.01 | J152: 0 | K152: 0 | L152: 0 | M152: 149.7 | N152: 27.9 | O152: 6 | P152: 4.2 | Q152: 19.5 | R152: 0.33 | S152: 0.96 | T152: 1.8 | U152: 4.35
A153: Пром. | B153: Хлеб ржаной | C153: 20 | D153: 1.3 | E153: 0.2 | F153: 6.7 | G153: 34.2 | H153: 0.04 | I153: 0.02 | J153: 0 | K153: 0 | L153: 0 | M153: 122 | N153: 49 | O153: 7 | P153: 9.4 | Q153: 31.6 | R153: 0.78 | S153: 0 | T153: 6.18 | U153: 0
B154: Итого за Завтрак | C154: 570 | D154: =SUM(D148:D153) -> 24.11 | E154: 24.7 | F154: 78.22 | G154: 630.5 | H154: 0.19 | I154: 0.21 | J154: 803 | K154: 0.1 | L154: 5.94 | M154: 552.08 | N154: 480.94 | O154: 326.4 | P154: 102.16 | Q154: 329.97 | R154: 5.16 | S154: 40.92 | T154: 9.89 | U154: 57.84
B155: Итого за день | C155: =C154 -> 570 | D155: =D154 -> 24.11 | E155: 24.7 | F155: 78.22 | G155: 630.5 | H155: 0.19 | I155: 0.21 | J155: 803 | K155: 0.1 | L155: 5.94 | M155: 552.08 | N155: 480.94 | O155: 326.4 | P155: 102.16 | Q155: 329.97 | R155: 5.16 | S155: 40.92 | T155: 9.89 | U155: 57.84
A157: 11 день, 2 неделя
A158: № рецептуры | B158: Прием пищи, наименование блюда | C158: Масса | D158: Пищевые вещества | G158: Энергетическая ценность | H158: Витамины | M158: Минеральные вещества
D159: Белки | E159: Жиры | F159: Углеводы | H159: B1 | I159: B2 | J159: A | K159: D | L159: C | M159: Na | N159: K | O159: Ca | P159: Mg | Q159: P | R159: Fe | S159: I | T159: Se | U159: F
C160: г | D160: г | E160: г | F160: г | G160: ккал | H160: мг | I160: мг | J160: мкг рет.экв | K160: мкг | L160: мг | M160: мг | N160: мг | O160: мг | P160: мг | Q160: мг | R160: мг | S160: мкг | T160: мкг | U160: мкг
B161: Пятница, 2 неделя
B162: Горячий завтрак | C162: 7-11
A163: 54-13з-2020 | B163: Салат из свеклы отварной с растительным маслом | C163: 60 | D163: 0.8 | E163: 2.7 | F163: 4.6 | G163: 45.6 | H163: 0.01 | I163: 0.02 | J163: 0.68 | K163: 0 | L163: 2.28 | M163: 78.77 | N163: 136.27 | O163: 19.21 | P163: 10.95 | Q163: 21.51 | R163: 0.7 | S163: 11.99 | T163: 0.35 | U163: 11.4
A164: 54-6г-2020 | B164: Рис отварной | C164: 150 | D164: 3.6 | E164: 4.8 | F164: 36.4 | G164: 203.5 | H164: 0.03 | I164: 0.02 | J164: 18.36 | K164: 0.09 | L164: 0 | M164: 152.8 | N164: 46.55 | O164: 106.65 | P164: 23.59 | Q164: 72.57 | R164: 0.49 | S164: 20.76 | T164: 7.24 | U164: 27.19
A165: 54-2м-2020 | B165: Гуляш из говядины | C165: 60/40 | D165: 13.76 | E165: 13.91 | F165: 3.9 | G165: 195.8 | H165: 0.04 | I165: 0.12 | J165: 25.46 | K165: 0.07 | L165: 1 | M165: 122 | N165: 322 | O165: 55 | P165: 23 | Q165: 166 | R165: 2.5 | S165: 17.06 | T165: 0.4 | U165: 62.71
A166: 54-2хн-2020 | B166: Компот из кураги | C166: 200 | D166: 0.98 | E166: 0.05 | F166: 15.64 | G166: 66.9 | H166: 0.01 | I166: 0.03 | J166: 69.96 | K166: 0 | L166: 0 | M166: 3 | N166: 285 | O166: 90 | P166: 18 | Q166: 25 | R166: 0.6 | S166: 0 | T166: 0 | U166: 0
A167: Пром. | B167: Хлеб ржаной | C167: 20 | D167: 1.3 | E167: 0.2 | F167: 6.7 | G167: 34.2 | H167: 0.04 | I167: 0.02 | J167: 0 | K167: 0 | L167: 0 | M167: 122 | N167: 49 | O167: 7 | P167: 9.4 | Q167: 31.6 | R167: 0.78 | S167: 0 | T167: 6.18 | U167: 0
A168: Пром. | B168: Хлеб пшеничный | C168: 30 | D168: 2.3 | E168: 0.2 | F168: 14.8 | G168: 70.3 | H168: 0.03 | I168: 0.01 | J168: 0 | K168: 0 | L168: 0 | M168: 149.7 | N168: 27.9 | O168: 6 | P168: 4.2 | Q168: 19.5 | R168: 0.33 | S168: 0.96 | T168: 1.8 | U168: 4.35
B169: Итого за Завтрак | C169: 560 | D169: =SUM(D163:D168) -> 22.74 | E169: =SUM(E163:E168) -> 21.86 | F169: 82.04 | G169: 616.3 | H169: 0.16 | I169: 0.22 | J169: 114.46 | K169: 0.16 | L169: 3.28 | M169: 628.27 | N169: 866.72 | O169: 283.86 | P169: 89.14 | Q169: 336.18 | R169: 5.4 | S169: 50.77 | T169: 15.97 | U169: 105.65
B170: Итого за день | C170: =C169 -> 560 | D170: =D169 -> 22.74 | E170: 21.86 | F170: 82.04 | G170: 616.3 | H170: 0.16 | I170: 0.22 | J170: 114.46 | K170: 0.16 | L170: 3.28 | M170: 628.27 | N170: 866.72 | O170: 283.86 | P170: 89.14 | Q170: 336.18 | R170: 5.4 | S170: 50.77 | T170: 15.97 | U170: 105.65
A172: 12 день, 2 неделя
A173: № рецептуры | B173: Прием пищи, наименование блюда | C173: Масса | D173: Пищевые вещества | G173: Энергетическая ценность | H173: Витамины | M173: Минеральные вещества
D174: Белки | E174: Жиры | F174: Углеводы | H174: B1 | I174: B2 | J174: A | K174: D | L174: C | M174: Na | N174: K | O174: Ca | P174: Mg | Q174: P | R174: Fe | S174: I | T174: Se | U174: F
C175: г | D175: г | E175: г | F175: г | G175: ккал | H175: мг | I175: мг | J175: мкг рет.экв | K175: мкг | L175: мг | M175: мг | N175: мг | O175: мг | P175: мг | Q175: мг | R175: мг | S175: мкг | T175: мкг | U175: мкг
B176: Суббота, 2 неделя
B177: Горячий завтрак | C177: 7-11
A178: 54-9з-2020 | B178: Салат из белокочанной капусты с морковью и яблоками с растительным маслом | C178: 60 | D178: 0.8 | E178: 6.1 | F178: 3.6 | G178: 72.5 | H178: 0.02 | I178: 0.02 | J178: 241.63 | K178: 0 | L178: 17.32 | M178: 87.51 | N178: 160.14 | O178: 23.5 | P178: 11.17 | Q178: 18.8 | R178: 0.56 | S178: 9.87 | T178: 0.15 | U178: 10.98
A179: рец.2015г. | B179: Пельмени мясные отварные, полуфабрикат | C179: 180 | D179: 10.34 | E179: 12.175 | F179: 20.34 | G179: 237 | H179: 0.159 | I179: 0 | J179: 0.18 | K179: 0 | L179: 0.491 | M179: 0 | N179: 0 | O179: 79.453 | P179: 10.579 | Q179: 239.018 | R179: 0.01 | S179: 0 | T179: 0 | U179: 0
A180: 54-3гн-2020 | B180: Чай с лимоном и сахаром | C180: 207 | D180: 0.2 | E180: 0.1 | F180: 6.6 | G180: 27.9 | H180: 0 | I180: 0.01 | J180: 0.38 | K180: 0 | L180: 1.16 | M180: 1.26 | N180: 30.23 | O180: 67 | P180: 4.56 | Q180: 8.52 | R180: 0.77 | S180: 0.01 | T180: 0.02 | U180: 0.7
A181: Пром. | B181: Хлеб ржаной | C181: 20 | D181: 1.3 | E181: 0.2 | F181: 6.7 | G181: 34.2 | H181: 0.04 | I181: 0.02 | J181: 0 | K181: 0 | L181: 0 | M181: 122 | N181: 49 | O181: 7 | P181: 9.4 | Q181: 31.6 | R181: 0.78 | S181: 0 | T181: 6.18 | U181: 0
A182: Пром. | B182: Хлеб пшеничный | C182: 30 | D182: 2.3 | E182: 0.2 | F182: 14.8 | G182: 70.3 | H182: 0.03 | I182: 0.01 | J182: 0 | K182: 0 | L182: 0 | M182: 149.7 | N182: 27.9 | O182: 6 | P182: 4.2 | Q182: 19.5 | R182: 0.33 | S182: 0.96 | T182: 1.8 | U182: 4.35
B183: Итого за Завтрак | C183: 497 | D183: =SUM(D178:D182) -> 14.94 | E183: =SUM(E178:E182) -> 18.775 | F183: 52.04 | G183: 441.9 | H183: 0.249 | I183: 0.06 | J183: 242.19 | K183: 0 | L183: 18.971 | M183: 360.47 | N183: 267.27 | O183: 182.953 | P183: 39.909 | Q183: 317.438 | R183: 2.45 | S183: 10.84 | T183: 8.15 | U183: 16.03
B184: Итого за день | C184: 497 | D184: =D183 -> 14.94 | E184: =E183 -> 18.775 | F184: 52.04 | G184: 441.9 | H184: 0.249 | I184: 0.06 | J184: 242.19 | K184: 0 | L184: 18.971 | M184: 360.47 | N184: 267.27 | O184: 182.953 | P184: 39.909 | Q184: 317.438 | R184: 2.45 | S184: 10.84 | T184: 8.15 | U184: 16.03
D186: ИТОГО ПО МЕНЮ
B188: ИТОГО | C188: Пищевые вещества | F188: Энергетическая ценность | G188: Витамины | L188: Минеральные вещества
C189: Белки | D189: Жиры | E189: Углеводы | G189: B1 | H189: B2 | I189: A | J189: D | K189: C | L189: Na | M189: K | N189: Ca | O189: Mg | P189: P | Q189: Fe | R189: I | S189: Se | T189: F
C190: г | D190: г | E190: г | F190: ккал | G190: мг | H190: мг | I190: мкг рет.экв | J190: мкг | K190: мг | L190: мг | M190: мг | N190: мг | O190: мг | P190: мг | Q190: мг | R190: мкг | S190: мкг | T190: мкг
B191: Итого за весь период | C191: =D21+D36+D51+D66+D80+D94+D109+D124+D140+D155+D170+D184 -> 280.81 | D191: =E21+E36+E51+E66+E80+E94+E109+E124+E140+E155+E170+E184 -> 272.67 | E191: =F21+F36+F51+F66+F80+F94+F109+F124+F140+F155+F170+F184 -> 882.45 | F191: =G21+G36+G51+G66+G80+G94+G109+G124+G140+G155+G170+G184 -> 7101.95 | G191: =H21+H36+H51+H66+H80+H94+H109+H124+H140+H155+H170+H184 -> 2.938 | H191: =I21+I36+I51+I66+I80+I94+I109+I124+I140+I155+I170+I184 -> 2.65 | I191: =J21+J36+J51+J66+J80+J94+J109+J124+J140+J155+J170+J184 -> 4329.7 | J191: =K21+K36+K51+K66+K80+K94+K109+K124+K140+K155+K170+K184 -> 1.25 | K191: =L21+L36+L51+L66+L80+L94+L109+L124+L140+L155+L170+L184 -> 185.862 | L191: =M21+M36+M51+M66+M80+M94+M109+M124+M140+M155+M170+M184 -> 7340.77 | M191: =N21+N36+N51+N66+N80+N94+N109+N124+N140+N155+N170+N184 -> 8865.09 | N191: =O21+O36+O51+O66+O80+O94+O109+O124+O140+O155+O170+O184 -> 2965.696 | O191: =P21+P36+P51+P66+P80+P94+P109+P124+P140+P155+P170+P184 -> 1352.998 | P191: =Q21+Q36+Q51+Q66+Q80+Q94+Q109+Q124+Q140+Q155+Q170+Q184 -> 4467.366 | Q191: =R21+R36+R51+R66+R80+R94+R109+R124+R140+R155+R170+R184 -> 63.35 | R191: =S21+S36+S51+S66+S80+S94+S109+S124+S140+S155+S170+S184 -> 680.908 | S191: =T21+T36+T51+T66+T80+T94+T109+T124+T140+T155+T170+T184 -> 186.69 | T191: =U21+U36+U51+U66+U80+U94+U109+U124+U140+U155+U170+U184 -> 1557.29
B192: Среднее значение | C192: =C191/12 -> 23.40 | D192: =D191/12 -> 22.72 | E192: 73.5375 | F192: 591.8291667 | G192: 0.24 | H192: 0.22 | I192: 360.8083333 | J192: 0.10 | K192: 15.4885 | L192: 611.7308333 | M192: 738.7575 | N192: 247.1413333 | O192: 112.7498333 | P192: 372.2805 | Q192: 5.28 | R192: 56.74233333 | S192: 15.5575 | T192: 129.7741667
B193: Содержание белков, жиров, углеводов в меню за период в % от калорийности | C193: =C191*4/F191*100 -> 15.82 | D193: 34.19 | E193: =E191*4*100/F191 -> 49.70
C195: СУММАРНЫЕ ОБЪЕМЫ БЛЮД ПО ПРИЕМАМ ПИЩИ (В ГРАММАХ)
B197: Возраст детей | C197: Горячий завтрак
B198: 7-11 лет | C198: =(C184+C170+C155+C140+C124+C109+C94+C80+C66+C51+C36+C21)/12 -> 556
B200: Овощи для салатов (морковь, лук, капуста, картофель) урожай 2021 года

Sheet 11-18 лет
A1: СОГЛАСОВАНО | O1: УТВЕРЖДЕНО
A2: ______________________________________ | O2: ООО "Крепыш"
A3: __________________________ | O3: _______________________Ефремов В.Ю.
A6: Меню для организации питания детей в возрасте от 11 до 18 лет в образовательных учреждениях Мензелинского муниципального района на 2 полугодие 2021-2022 учебный год.
A8: 1 день, 1 неделя
A9: № рецептуры | B9: Прием пищи, наименование блюда | C9: Масса | D9: Пищевые вещества | G9: Энергетическая ценность | H9: Витамины | M9: Минеральные вещества
D10: Белки | E10: Жиры | F10: Углеводы | H10: B1 | I10: B2 | J10: A | K10: D | L10: C | M10: Na | N10: K | O10: Ca | P10: Mg | Q10: P | R10: Fe | S10: I | T10: Se | U10: F
C11: г | D11: г | E11: г | F11: г | G11: ккал | H11: мг | I11: мг | J11: мкг рет.экв | K11: мкг | L11: мг | M11: мг | N11: мг | O11: мг | P11: мг | Q11: мг | R11: мг | S11: мкг | T11: мкг | U11: мкг
B12: Понедельник, 1 неделя
B13: Горячий завтрак | C13: 11-18
A14: 54-11з-2020 | B14: Салат из моркови с яблоками с растительным маслом | C14: 60 | D14: 0.5 | E14: 6.1 | F14: 4.3 | G14: 74.3 | H14: 0.03 | I14: 0.03 | J14: 732.9 | K14: 0 | L14: 3.63 | M14: 89.79 | N14: 123.26 | O14: 13.5 | P14: 15.57 | Q14: 22.38 | R14: 0.66 | S14: 10.19 | T14: 0.09 | U14: 21.57
A15: 54-4г-2020 | B15: Каша гречневая рассыпчатая | C15: 180 | D15: 9.87 | E15: 7.61 | F15: 43.12 | G15: 280.5 | H15: 0.26 | I15: 0.14 | J15: 23.02 | K15: 0.11 | L15: 0 | M15: 180 | N15: 263 | O15: 57 | P15: 144 | Q15: 217 | R15: 4.8 | S15: 26.73 | T15: 4.3 | U15: 19.27
A16: ном.рец №174 | B16: Тефтели мясные из говядины, полуфабрикат в соусе | C16: 80/30 | D16: 10.81 | E16: 10.4 | F16: 8.42 | G16: 168.9 | H16: 0 | I16: 0 | J16: 38.45 | K16: 0.01 | L16: 1.79 | M16: 3 | N16: 43 | O16: 45.75 | P16: 35.13 | Q16: 109 | R16: 1.6 | S16: 0 | T16: 0 | U16: 0
A17: 54-4гн-2020 | B17: Чай с молоком и сахаром | C17: 200 | D17: 1.6 | E17: 1.1 | F17: 8.6 | G17: 50.9 | H17: 0.01 | I17: 0.07 | J17: 6.9 | K17: 0 | L17: 0.3 | M17: 19.68 | N17: 81.35 | O17: 103.48 | P17: 9.92 | Q17: 46.33 | R17: 0.78 | S17: 4.5 | T17: 0.88 | U17: 10
A18: Пром. | B18: Хлеб пшеничный | C18: 30 | D18: 2.3 | E18: 0.2 | F18: 14.8 | G18: 70.3 | H18: 0.03 | I18: 0.01 | J18: 0 | K18: 0 | L18: 0 | M18: 149.7 | N18: 27.9 | O18: 6 | P18: 4.2 | Q18: 19.5 | R18: 0.33 | S18: 0.96 | T18: 1.8 | U18: 4.35
A19: Пром. | B19: Хлеб ржаной | C19: 20 | D19: 1.3 | E19: 0.2 | F19: 6.7 | G19: 34.2 | H19: 0.04 | I19: 0.02 | J19: 0 | K19: 0 | L19: 0 | M19: 122 | N19: 49 | O19: 7 | P19: 9.4 | Q19: 31.6 | R19: 0.78 | S19: 0 | T19: 6.18 | U19: 0
B20: Итого за Завтрак | C20: 600 | D20: =SUM(D14:D19) -> 26.38 | E20: 25.61 | F20: 85.94 | G20: 679.1 | H20: 0.37 | I20: 0.27 | J20: 801.27 | K20: 0.12 | L20: 5.72 | M20: 564.17 | N20: 587.51 | O20: 232.73 | P20: 218.22 | Q20: 445.81 | R20: 8.95 | S20: 42.38 | T20: 13.25 | U20: 55.19
B21: Итого за день | C21: =C20 -> 600 | D21: =D20 -> 26.38 | E21: 25.61 | F21: 85.94 | G21: 679.1 | H21: 0.37 | I21: 0.27 | J21: 801.27 | K21: 0.12 | L21: 5.72 | M21: 564.17 | N21: 587.51 | O21: 232.73 | P21: 218.22 | Q21: 445.81 | R21: 8.95 | S21: 42.38 | T21: 13.25 | U21: 55.19
A23: 2 день, 1 неделя
A24: № рецептуры | B24: Прием пищи, наименование блюда | C24: Масса | D24: Пищевые вещества | G24: Энергетическая ценность | H24: Витамины | M24: Минеральные вещества
D25: Белки | E25: Жиры | F25: Углеводы | H25: B1 | I25: B2 | J25: A | K25: D | L25: C | M25: Na | N25: K | O25: Ca | P25: Mg | Q25: P | R25: Fe | S25: I | T25: Se | U25: F
C26: г | D26: г | E26: г | F26: г | G26: ккал | H26: мг | I26: мг | J26: мкг рет.экв | K26: мкг | L26: мг | M26: мг | N26: мг | O26: мг | P26: мг | Q26: мг | R26: мг | S26: мкг | T26: мкг | U26: мкг
B27: Вторник, 1 неделя
B28: Горячий завтрак | C28: 11-18
A29: 54-7з-2020 | B29: Салат из белокочанной капусты с растительным маслом | C29: 60 | D29: 1.5 | E29: 6.1 | F29: 6.2 | G29: 85.8 | H29: 0.03 | I29: 0.04 | J29: 122.25 | K29: 0 | L29: 34.78 | M29: 88.69 | N29: 247.73 | O29: 40.39 | P29: 15.18 | Q29: 30.31 | R29: 0.55 | S29: 10.73 | T29: 0.26 | U29: 12.66
A30: 54-22м-2020 | B30: Рагу из курицы | C30: 160/60 | D30: 23.05 | E30: 7.74 | F30: 19.27 | G30: 239 | H30: 0.15 | I30: 0.12 | J30: 285.64 | K30: 0 | L30: 13 | M30: 310 | N30: 812 | O30: 34 | P30: 102 | Q30: 213 | R30: 2.3 | S30: 47.26 | T30: 18.7 | U30: 172
A31: 54-21гн-2020 | B31: Какао с молоком | C31: 200 | D31: 4.7 | E31: 3.5 | F31: 12.5 | G31: 100.4 | H31: 0.04 | I31: 0.16 | J31: 17.25 | K31: 0 | L31: 0.68 | M31: 49.95 | N31: 220.33 | O31: 167.68 | P31: 34.32 | Q31: 130.28 | R31: 1.09 | S31: 11.7 | T31: 2.29 | U31: 38.25
A32: 54-10в-2020 | B32: Булочка ванильная | C32: 50 | D32: 3.9 | E32: 3.37 | F32: 25.37 | G32: 147.4 | H32: 0.04 | I32: 0.02 | J32: 15.93 | K32: 0.12 | L32: 0 | M32: 200 | N32: 41 | O32: 14 | P32: 5 | Q32: 33 | R32: 0.5 | S32: 27.814 | T32: 2.6 | U32: 9.19
A33: Пром. | B33: Хлеб пшеничный | C33: 30 | D33: 2.3 | E33: 0.2 | F33: 14.8 | G33: 70.3 | H33: 0.03 | I33: 0.01 | J33: 0 | K33: 0 | L33: 0 | M33: 149.7 | N33: 27.9 | O33: 6 | P33: 4.2 | Q33: 19.5 | R33: 0.33 | S33: 0.96 | T33: 1.8 | U33: 4.35
A34: Пром. | B34: Хлеб ржаной | C34: 20 | D34: 1.3 | E34: 0.2 | F34: 6.7 | G34: 34.2 | H34: 0.04 | I34: 0.02 | J34: 0 | K34: 0 | L34: 0 | M34: 122 | N34: 49 | O34: 7 | P34: 9.4 | Q34: 31.6 | R34: 0.78 | S34: 0 | T34: 6.18 | U34: 0
B35: Итого за Завтрак | C35: 580 | D35: =SUM(D29:D34) -> 36.75 | E35: =SUM(E29:E34) -> 21.11 | F35: 84.84 | G35: =SUM(G29:G34) -> 677.1 | H35: 0.33 | I35: 0.37 | J35: 441.07 | K35: 0.12 | L35: 48.46 | M35: 920.34 | N35: 1397.96 | O35: 269.07 | P35: 170.1 | Q35: 457.69 | R35: 5.55 | S35: 98.464 | T35: 31.83 | U35: 236.45
B36: Итого за день | C36: 580 | D36: =D35 -> 36.75 | E36: =E35 -> 21.11 | F36: 84.84 | G36: =G35 -> 677.1 | H36: 0.33 | I36: 0.37 | J36: 441.07 | K36: 0.12 | L36: 48.46 | M36: 920.34 | N36: 1397.96 | O36: 269.07 | P36: 170.1 | Q36: 457.69 | R36: 5.55 | S36: 98.464 | T36: 31.83 | U36: 236.45
A38: 3 день, 1 неделя
A39: № рецептуры | B39: Прием пищи, наименование блюда | C39: Масса | D39: Пищевые вещества | G39: Энергетическая ценность | H39: Витамины | M39: Минеральные вещества
D40: Белки | E40: Жиры | F40: Углеводы | H40: B1 | I40: B2 | J40: A | K40: D | L40: C | M40: Na | N40: K | O40: Ca | P40: Mg | Q40: P | R40: Fe | S40: I | T40: Se | U40: F
C41: г | D41: г | E41: г | F41: г | G41: ккал | H41: мг | I41: мг | J41: мкг рет.экв | K41: мкг | L41: мг | M41: мг | N41: мг | O41: мг | P41: мг | Q41: мг | R41: мг | S41: мкг | T41: мкг | U41: мкг
B42: Среда, 1 неделя
B43: Горячий завтрак | C43: 11-18
A44: 54-13з-2020 | B44: Салат из свеклы отварной с растительным маслом | C44: 60 | D44: 0.8 | E44: 2.7 | F44: 4.6 | G44: 45.6 | H44: 0.01 | I44: 0.02 | J44: 0.68 | K44: 0 | L44: 2.28 | M44: 78.77 | N44: 136.27 | O44: 19.21 | P44: 10.95 | Q44: 21.51 | R44: 0.7 | S44: 11.99 | T44: 0.35 | U44: 11.4
A45: 54-1г-2020 | B45: Макароны отварные | C45: 180 | D45: 6.39 | E45: 5.91 | F45: 39.36 | G45: 236.2 | H45: 0.07 | I45: 0.03 | J45: 22.03 | K45: 0.11 | L45: 0 | M45: 179 | N45: 64 | O45: 127 | P45: 9 | Q45: 48 | R45: 0.9 | S45: 24.92 | T45: 0.1 | U45: 14.31
A46: №243 | B46: Сосиски говяжьи отварные, п/ф (2 шт) | C46: 100 | D46: 13.2 | E46: 22.84 | F46: 1.8 | G46: 247.15 | H46: 0 | I46: 0 | J46: 0.08 | K46: 0.01 | L46: 0 | M46: 0 | N46: 0 | O46: 7.44 | P46: 15.51 | Q46: 137.39 | R46: 1.74 | S46: 0 | T46: 0 | U46: 0
A47: 54-3гн-2020 | B47: Чай с лимоном и сахаром | C47: 207 | D47: 0.2 | E47: 0.1 | F47: 6.6 | G47: 27.9 | H47: 0 | I47: 0.01 | J47: 0.38 | K47: 0 | L47: 1.16 | M47: 1.26 | N47: 30.23 | O47: 67 | P47: 4.56 | Q47: 8.52 | R47: 0.77 | S47: 0.01 | T47: 0.02 | U47: 0.7
A48: Пром. | B48: Хлеб ржаной | C48: 20 | D48: 1.3 | E48: 0.2 | F48: 6.7 | G48: 34.2 | H48: 0.04 | I48: 0.02 | J48: 0 | K48: 0 | L48: 0 | M48: 122 | N48: 49 | O48: 7 | P48: 9.4 | Q48: 31.6 | R48: 0.78 | S48: 0 | T48: 6.18 | U48: 0
A49: Пром. | B49: Хлеб пшеничный | C49: 30 | D49: 2.3 | E49: 0.2 | F49: 14.8 | G49: 70.3 | H49: 0.03 | I49: 0.01 | J49: 0 | K49: 0 | L49: 0 | M49: 149.7 | N49: 27.9 | O49: 6 | P49: 4.2 | Q49: 19.5 | R49: 0.33 | S49: 0.96 | T49: 1.8 | U49: 4.35
B50: Итого за Завтрак | C50: =SUM(C44:C49) -> 597 | D50: =SUM(D44:D49) -> 24.19 | E50: =SUM(E44:E49) -> 31.95 | F50: 73.86 | G50: 661.35 | H50: 0.15 | I50: 0.09 | J50: 23.17 | K50: 0.12 | L50: 3.44 | M50: 530.73 | N50: 307.4 | O50: 233.65 | P50: 53.62 | Q50: 266.52 | R50: 5.22 | S50: 37.88 | T50: 8.45 | U50: 30.76
B51: Итого за день | C51: 597 | D51: =D50 -> 24.19 | E51: =E50 -> 31.95 | F51: 73.86 | G51: 661.35 | H51: 0.15 | I51: 0.09 | J51: 23.17 | K51: 0.12 | L51: 3.44 | M51: 530.73 | N51: 307.4 | O51: 233.65 | P51: 53.62 | Q51: 266.52 | R51: 5.22 | S51: 37.88 | T51: 8.45 | U51: 30.76
A53: 4 день, 1 неделя
A54: № рецептуры | B54: Прием пищи, наименование блюда | C54: Масса | D54: Пищевые вещества | G54: Энергетическая ценность | H54: Витамины | M54: Минеральные вещества
D55: Белки | E55: Жиры | F55: Углеводы | H55: B1 | I55: B2 | J55: A | K55: D | L55: C | M55: Na | N55: K | O55: Ca | P55: Mg | Q55: P | R55: Fe | S55: I | T55: Se | U55: F
C56: г | D56: г | E56: г | F56: г | G56: ккал | H56: мг | I56: мг | J56: мкг рет.экв | K56: мкг | L56: мг | M56: мг | N56: мг | O56: мг | P56: мг | Q56: мг | R56: мг | S56: мкг | T56: мкг | U56: мкг
B57: Четверг, 1 неделя
B58: Горячий завтрак | C58: 11-18
A59: 54-9з-2020 | B59: Салат из белокочанной капусты с морковью и яблоками с растительным маслом | C59: 60 | D59: 0.8 | E59: 6.1 | F59: 3.6 | G59: 72.5 | H59: 0.02 | I59: 0.02 | J59: 241.63 | K59: 0 | L59: 17.32 | M59: 87.51 | N59: 160.14 | O59: 23.5 | P59: 11.17 | Q59: 18.8 | R59: 0.56 | S59: 9.87 | T59: 0.15 | U59: 10.98
A60: 54-11г-2020 | B60: Картофельное пюре | C60: 200 | D60: 4.1 | E60: 7.07 | F60: 26.43 | G60: 185.8 | H60: 0.16 | I60: 0.14 | J60: 31.72 | K60: 0.12 | L60: 13 | M60: 215 | N60: 833 | O60: 53 | P60: 38 | Q60: 112 | R60: 1.3 | S60: 37.95 | T60: 1.1 | U60: 57.05
A61: ном.рец №608 | B61: Котлета мясная Любительская, полуфабрикат в соусе | C61: 70/30 | D61: 10.04 | E61: 12.79 | F61: 8.12 | G61: 187.9 | H61: 0 | I61: 0 | J61: 38.45 | K61: 0.01 | L61: 1.15 | M61: 3 | N61: 43 | O61: 45.75 | P61: 35.13 | Q61: 173.38 | R61: 1.6 | S61: 0 | T61: 0 | U61: 0
A62: 54-2гн-2020 | B62: Кофейный напиток с молоком | C62: 200 | D62: 3.9 | E62: 2.9 | F62: 11.2 | G62: 86 | H62: 0.03 | I62: 0.13 | J62: 13.29 | K62: 0 | L62: 0.52 | M62: 38.55 | N62: 183.98 | O62: 148.32 | P62: 30.67 | Q62: 106.79 | R62: 1.06 | S62: 9 | T62: 1.76 | U62: 20
A63: Пром. | B63: Хлеб ржаной | C63: 20 | D63: 1.3 | E63: 0.2 | F63: 6.7 | G63: 34.2 | H63: 0.04 | I63: 0.02 | J63: 0 | K63: 0 | L63: 0 | M63: 122 | N63: 49 | O63: 7 | P63: 9.4 | Q63: 31.6 | R63: 0.78 | S63: 0 | T63: 6.18 | U63: 0
A64: Пром. | B64: Хлеб пшеничный | C64: 30 | D64: 2.3 | E64: 0.2 | F64: 14.8 | G64: 70.3 | H64: 0.03 | I64: 0.01 | J64: 0 | K64: 0 | L64: 0 | M64: 149.7 | N64: 27.9 | O64: 6 | P64: 4.2 | Q64: 19.5 | R64: 0.33 | S64: 0.96 | T64: 1.8 | U64: 4.35
B65: Итого за Завтрак | C65: 610 | D65: =SUM(D59:D64) -> 22.44 | E65: 29.26 | F65: 70.85 | G65: 636.7 | H65: 0.28 | I65: 0.32 | J65: 325.09 | K65: 0.13 | L65: 31.99 | M65: 615.76 | N65: 1297.02 | O65: 283.57 | P65: 128.57 | Q65: 462.07 | R65: 5.63 | S65: 57.78 | T65: 10.99 | U65: 92.38
B66: Итого за день | C66: =C65 -> 610 | D66: =D65 -> 22.44 | E66: 29.26 | F66: 70.85 | G66: 636.7 | H66: 0.28 | I66: 0.32 | J66: 325.09 | K66: 0.13 | L66: 31.99 | M66: 615.76 | N66: 1297.02 | O66: 283.57 | P66: 128.57 | Q66: 462.07 | R66: 5.63 | S66: 57.78 | T66: 10.99 | U66: 92.38
A68: 5 день, 1 неделя
A69: № рецептуры | B69: Прием пищи, наименование блюда | C69: Масса | D69: Пищевые вещества | G69: Энергетическая ценность | H69: Витамины | M69: Минеральные вещества
D70: Белки | E70: Жиры | F70: Углеводы | H70: B1 | I70: B2 | J70: A | K70: D | L70: C | M70: Na | N70: K | O70: Ca | P70: Mg | Q70: P | R70: Fe | S70: I | T70: Se | U70: F
C71: г | D71: г | E71: г | F71: г | G71: ккал | H71: мг | I71: мг | J71: мкг рет.экв | K71: мкг | L71: мг | M71: мг | N71: мг | O71: мг | P71: мг | Q71: мг | R71: мг | S71: мкг | T71: мкг | U71: мкг
B72: Пятница, 1 неделя
B73: Горячий завтрак | C73: 11-18
A74: 54-11з-2020 | B74: Салат из моркови с яблоками с растительным маслом | C74: 60 | D74: 0.5 | E74: 6.1 | F74: 4.3 | G74: 74.3 | H74: 0.03 | I74: 0.03 | J74: 732.9 | K74: 0 | L74: 3.63 | M74: 89.79 | N74: 123.26 | O74: 13.5 | P74: 15.57 | Q74: 22.38 | R74: 0.66 | S74: 10.19 | T74: 0.09 | U74: 21.57
A75: 54-6г-2020 | B75: Плов из говядины | C75: 180/40 | D75: 16.86 | E75: 16.22 | F75: 42.44 | G75: 383.1 | H75: 0.07 | I75: 0.13 | J75: 287.76 | K75: 0.11 | L75: 0 | M75: 304 | N75: 295 | O75: 128 | P75: 48 | Q75: 213 | R75: 2.4 | S75: 42.53 | T75: 8.1 | U75: 89.91
A76: 54-4гн-2020 | B76: Компот из кураги | C76: 200 | D76: 0.98 | E76: 0.05 | F76: 15.64 | G76: 66.9 | H76: 0.01 | I76: 0.03 | J76: 69.96 | K76: 0 | L76: 0 | M76: 3 | N76: 285 | O76: 90 | P76: 18 | Q76: 25 | R76: 0.6 | S76: 0 | T76: 0 | U76: 0
A77: Пром. | B77: Хлеб ржаной | C77: 20 | D77: 1.3 | E77: 0.2 | F77: 6.7 | G77: 34.2 | H77: 0.04 | I77: 0.02 | J77: 0 | K77: 0 | L77: 0 | M77: 122 | N77: 49 | O77: 7 | P77: 9.4 | Q77: 31.6 | R77: 0.78 | S77: 0 | T77: 6.18 | U77: 0
A78: Пром. | B78: Хлеб пшеничный | C78: 30 | D78: 2.3 | E78: 0.2 | F78: 14.8 | G78: 70.3 | H78: 0.03 | I78: 0.01 | J78: 0 | K78: 0 | L78: 0 | M78: 149.7 | N78: 27.9 | O78: 6 | P78: 4.2 | Q78: 19.5 | R78: 0.33 | S78: 0.96 | T78: 1.8 | U78: 4.35
B79: Итого за Завтрак | C79: 530 | D79: =SUM(D74:D78) -> 21.94 | E79: =SUM(E74:E78) -> 22.77 | F79: 83.88 | G79: 628.8 | H79: 0.18 | I79: 0.22 | J79: 1090.62 | K79: 0.11 | L79: 3.63 | M79: 668.49 | N79: 780.16 | O79: 244.5 | P79: 95.17 | Q79: 311.48 | R79: 4.77 | S79: 53.68 | T79: 16.17 | U79: 115.83
B80: Итого за день | C80: 530 | D80: =D79 -> 21.94 | E80: =E79 -> 22.77 | F80: 83.88 | G80: 628.8 | H80: 0.18 | I80: 0.22 | J80: 1090.62 | K80: 0.11 | L80: 3.63 | M80: 668.49 | N80: 780.16 | O80: 244.5 | P80: 95.17 | Q80: 311.48 | R80: 4.77 | S80: 53.68 | T80: 16.17 | U80: 115.83
A83: 6 день, 1 неделя
A84: № рецептуры | B84: Прием пищи, наименование блюда | C84: Масса | D84: Пищевые вещества | G84: Энергетическая ценность | H84: Витамины | M84: Минеральные вещества
D85: Белки | E85: Жиры | F85: Углеводы | H85: B1 | I85: B2 | J85: A | K85: D | L85: C | M85: Na | N85: K | O85: Ca | P85: Mg | Q85: P | R85: Fe | S85: I | T85: Se | U85: F
C86: г | D86: г | E86: г | F86: г | G86: ккал | H86: мг | I86: мг | J86: мкг рет.экв | K86: мкг | L86: мг | M86: мг | N86: мг | O86: мг | P86: мг | Q86: мг | R86: мг | S86: мкг | T86: мкг | U86: мкг
B87: Суббота, 1 неделя
B88: Горячий завтрак | C88: 11-18
A89: 54-16з-2020 | B89: Винегрет с растительным маслом | C89: 60 | D89: 0.7 | E89: 5.4 | F89: 4 | G89: 67.1 | H89: 0.02 | I89: 0.02 | J89: 72.89 | K89: 0 | L89: 2.26 | M89: 200.99 | N89: 127.85 | O89: 12.1 | P89: 9.66 | Q89: 21.4 | R89: 0.41 | S89: 7.86 | T89: 0.13 | U89: 11.85
A90: рец.2015г. | B90: Пельмени мясные отварные, полуфабрикат | C90: 200 | D90: 10.34 | E90: 12.175 | F90: 20.34 | G90: 237 | H90: 0.159 | I90: 0 | J90: 0.18 | K90: 0 | L90: 0.491 | M90: 0 | N90: 0 | O90: 79.453 | P90: 10.579 | Q90: 239.018 | R90: 0.01 | S90: 0 | T90: 0 | U90: 0
A91: 54-23гн-2020 | B91: Кофейный напиток с молоком | C91: 200 | D91: 3.9 | E91: 2.9 | F91: 11.2 | G91: 86 | H91: 0.03 | I91: 0.13 | J91: 13.29 | K91: 0 | L91: 0.52 | M91: 38.55 | N91: 183.98 | O91: 148.32 | P91: 30.67 | Q91: 106.79 | R91: 1.06 | S91: 9 | T91: 1.76 | U91: 20
A92: Пром. | B92: Хлеб пшеничный | C92: 30 | D92: 2.3 | E92: 0.2 | F92: 14.8 | G92: 70.3 | H92: 0.03 | I92: 0.01 | J92: 0 | K92: 0 | L92: 0 | M92: 149.7 | N92: 27.9 | O92: 6 | P92: 4.2 | Q92: 19.5 | R92: 0.33 | S92: 0.96 | T92: 1.8 | U92: 4.35
A93: Пром. | B93: Хлеб ржаной | C93: 20 | D93: 1.3 | E93: 0.2 | F93: 6.7 | G93: 34.2 | H93: 0.04 | I93: 0.02 | J93: 0 | K93: 0 | L93: 0 | M93: 122 | N93: 49 | O93: 7 | P93: 9.4 | Q93: 31.6 | R93: 0.78 | S93: 0 | T93: 6.18 | U93: 0
B94: Итого за Завтрак | C94: =SUM(C89:C93) -> 510 | D94: =SUM(D89:D93) -> 18.54 | E94: 20.875 | F94: 57.04 | G94: 494.6 | H94: 0.279 | I94: 0.18 | J94: 86.36 | K94: 0 | L94: 3.271 | M94: 511.24 | N94: 388.73 | O94: 252.873 | P94: 64.509 | Q94: 418.308 | R94: 2.59 | S94: 17.82 | T94: 9.87 | U94: 36.2
B95: Итого за день | C95: =C94 -> 510 | D95: =D94 -> 18.54 | E95: =E94 -> 20.875 | F95: 57.04 | G95: 494.6 | H95: 0.279 | I95: 0.18 | J95: 86.36 | K95: 0 | L95: 3.271 | M95: 511.24 | N95: 388.73 | O95: 252.873 | P95: 64.509 | Q95: 418.308 | R95: 2.59 | S95: 17.82 | T95: 9.87 | U95: 36.2
A97: 7 день, 2 неделя
A98: № рецептуры | B98: Прием пищи, наименование блюда | C98: Масса | D98: Пищевые вещества | G98: Энергетическая ценность | H98: Витамины | M98: Минеральные вещества
D99: Белки | E99: Жиры | F99: Углеводы | H99: B1 | I99: B2 | J99: A | K99: D | L99: C | M99: Na | N99: K | O99: Ca | P99: Mg | Q99: P | R99: Fe | S99: I | T99: Se | U99: F
C100: г | D100: г | E100: г | F100: г | G100: ккал | H100: мг | I100: мг | J100: мкг рет.экв | K100: мкг | L100: мг | M100: мг | N100: мг | O100: мг | P100: мг | Q100: мг | R100: мг | S100: мкг | T100: мкг | U100: мкг
B101: Понедельник, 2 неделя
B102: Горячий завтрак | C102: 11-18
A103: 54-7з-2020 | B103: Салат из белокочанной капусты с растительным маслом | C103: 60 | D103: 1.5 | E103: 6.1 | F103: 6.2 | G103: 85.8 | H103: 0.03 | I103: 0.04 | J103: 122.25 | K103: 0 | L103: 34.78 | M103: 88.69 | N103: 247.73 | O103: 40.39 | P103: 15.18 | Q103: 30.31 | R103: 0.55 | S103: 10.73 | T103: 0.26 | U103: 12.66
A104: 54-4г-2020 | B104: Каша гречневая рассыпчатая | C104: 180 | D104: 9.87 | E104: 7.61 | F104: 43.12 | G104: 280.5 | H104: 0.26 | I104: 0.14 | J104: 23.02 | K104: 0.11 | L104: 0 | M104: 180 | N104: 263 | O104: 57 | P104: 144 | Q104: 217 | R104: 4.8 | S104: 26.73 | T104: 4.3 | U104: 19.27
A105: ном.рец №608 | B105: Котлета мясная Любительская, полуфабрикат в соусе | C105: 70/30 | D105: 10.04 | E105: 12.79 | F105: 8.12 | G105: 187.9 | H105: 0 | I105: 0 | J105: 38.45 | K105: 0.01 | L105: 1.15 | M105: 3 | N105: 43 | O105: 45.75 | P105: 35.13 | Q105: 173.38 | R105: 1.6 | S105: 0 | T105: 0 | U105: 0
A106: 54-2гн-2020 | B106: Чай с сахаром | C106: 200 | D106: 0.2 | E106: 0 | F106: 6.4 | G106: 26.8 | H106: 0 | I106: 0.01 | J106: 0.3 | K106: 0 | L106: 0.04 | M106: 0.68 | N106: 20.76 | O106: 66.08 | P106: 3.83 | Q106: 7.18 | R106: 0.73 | S106: 0 | T106: 0 | U106: 0
A107: Пром. | B107: Хлеб пшеничный | C107: 30 | D107: 2.3 | E107: 0.2 | F107: 14.8 | G107: 70.3 | H107: 0.03 | I107: 0.01 | J107: 0 | K107: 0 | L107: 0 | M107: 149.7 | N107: 27.9 | O107: 6 | P107: 4.2 | Q107: 19.5 | R107: 0.33 | S107: 0.96 | T107: 1.8 | U107: 4.35
A108: Пром. | B108: Хлеб ржаной | C108: 20 | D108: 1.3 | E108: 0.2 | F108: 6.7 | G108: 34.2 | H108: 0.04 | I108: 0.02 | J108: 0 | K108: 0 | L108: 0 | M108: 122 | N108: 49 | O108: 7 | P108: 9.4 | Q108: 31.6 | R108: 0.78 | S108: 0 | T108: 6.18 | U108: 0
B109: Итого за Завтрак | C109: 590 | D109: =SUM(D103:D108) -> 25.21 | E109: 26.9 | F109: 85.34 | G109: 685.5 | H109: 0.36 | I109: 0.22 | J109: 184.02 | K109: 0.12 | L109: 35.97 | M109: 544.07 | N109: 651.39 | O109: 222.22 | P109: 211.74 | Q109: 478.97 | R109: 8.79 | S109: 38.42 | T109: 12.54 | U109: 36.28
B110: Итого за день | C110: =C109 -> 590 | D110: =D109 -> 25.21 | E110: 26.9 | F110: 85.34 | G110: 685.5 | H110: 0.36 | I110: 0.22 | J110: 184.02 | K110: 0.12 | L110: 35.97 | M110: 544.07 | N110: 651.39 | O110: 222.22 | P110: 211.74 | Q110: 478.97 | R110: 8.79 | S110: 38.42 | T110: 12.54 | U110: 36.28
A112: 8 день, 2 неделя
A113: № рецептуры | B113: Прием пищи, наименование блюда | C113: Масса | D113: Пищевые вещества | G113: Энергетическая ценность | H113: Витамины | M113: Минеральные вещества
D114: Белки | E114: Жиры | F114: Углеводы | H114: B1 | I114: B2 | J114: A | K114: D | L114: C | M114: Na | N114: K | O114: Ca | P114: Mg | Q114: P | R114: Fe | S114: I | T114: Se | U114: F
C115: г | D115: г | E115: г | F115: г | G115: ккал | H115: мг | I115: мг | J115: мкг рет.экв | K115: мкг | L115: мг | M115: мг | N115: мг | O115: мг | P115: мг | Q115: мг | R115: мг | S115: мкг | T115: мкг | U115: мкг
B116: Вторник, 2 неделя
B117: Горячий завтрак | C117: 11-18
A118: 54-13з-2020 | B118: Салат из свеклы отварной с растительным маслом | C118: 60 | D118: 0.8 | E118: 2.7 | F118: 4.6 | G118: 45.6 | H118: 0.01 | I118: 0.02 | J118: 0.68 | K118: 0 | L118: 2.28 | M118: 78.77 | N118: 136.27 | O118: 19.21 | P118: 10.95 | Q118: 21.51 | R118: 0.7 | S118: 11.99 | T118: 0.35 | U118: 11.4
A119: 54-12м-2020 | B119: Плов с курицей | C119: 170/50 | D119: 20.34 | E119: 8.18 | F119: 36.38 | G119: 300.4 | H119: 0.08 | I119: 0.07 | J119: 159.36 | K119: 0 | L119: 2 | M119: 301 | N119: 316 | O119: 80 | P119: 87 | Q119: 193 | R119: 1.7 | S119: 41.15 | T119: 21.6 | U119: 129.9
A120: 54-3гн-2020 | B120: Чай с лимоном и сахаром | C120: 207 | D120: 0.2 | E120: 0.1 | F120: 6.6 | G120: 27.9 | H120: 0 | I120: 0.01 | J120: 0.38 | K120: 0 | L120: 1.16 | M120: 1.26 | N120: 30.23 | O120: 67 | P120: 4.56 | Q120: 8.52 | R120: 0.77 | S120: 0.01 | T120: 0.02 | U120: 0.7
A121: 54-10в-2020 | B121: Булочка ванильная | C121: 50 | D121: 3.9 | E121: 3.37 | F121: 25.37 | G121: 147.4 | H121: 0.04 | I121: 0.02 | J121: 15.93 | K121: 0.12 | L121: 0 | M121: 200 | N121: 41 | O121: 14 | P121: 5 | Q121: 33 | R121: 0.5 | S121: 27.814 | T121: 2.6 | U121: 9.19
A122: Пром. | B122: Хлеб пшеничный | C122: 30 | D122: 2.3 | E122: 0.2 | F122: 14.8 | G122: 70.3 | H122: 0.03 | I122: 0.01 | J122: 0 | K122: 0 | L122: 0 | M122: 149.7 | N122: 27.9 | O122: 6 | P122: 4.2 | Q122: 19.5 | R122: 0.33 | S122: 0.96 | T122: 1.8 | U122: 4.35
A123: Пром. | B123: Хлеб ржаной | C123: 20 | D123: 1.3 | E123: 0.2 | F123: 6.7 | G123: 34.2 | H123: 0.04 | I123: 0.02 | J123: 0 | K123: 0 | L123: 0 | M123: 122 | N123: 49 | O123: 7 | P123: 9.4 | Q123: 31.6 | R123: 0.78 | S123: 0 | T123: 6.18 | U123: 0
B124: Итого за Завтрак | C124: 587 | D124: =SUM(D118:D123) -> 28.84 | E124: =SUM(E118:E123) -> 14.75 | F124: 94.45 | G124: 625.8 | H124: 0.2 | I124: 0.15 | J124: 176.35 | K124: 0.12 | L124: 5.44 | M124: 852.73 | N124: 600.4 | O124: 193.21 | P124: 121.11 | Q124: 307.13 | R124: 4.78 | S124: 81.924 | T124: 32.55 | U124: 155.54
B125: Итого за день | C125: 587 | D125: =D124 -> 28.84 | E125: =E124 -> 14.75 | F125: 94.45 | G125: 625.8 | H125: 0.2 | I125: 0.15 | J125: 176.35 | K125: 0.12 | L125: 5.44 | M125: 852.73 | N125: 600.4 | O125: 193.21 | P125: 121.11 | Q125: 307.13 | R125: 4.78 | S125: 81.924 | T125: 32.55 | U125: 155.54
A127: 9 день, 2 неделя
A128: № рецептуры | B128: Прием пищи, наименование блюда | C128: Масса | D128: Пищевые вещества | G128: Энергетическая ценность | H128: Витамины | M128: Минеральные вещества
D129: Белки | E129: Жиры | F129: Углеводы | H129: B1 | I129: B2 | J129: A | K129: D | L129: C | M129: Na | N129: K | O129: Ca | P129: Mg | Q129: P | R129: Fe | S129: I | T129: Se | U129: F
C130: г | D130: г | E130: г | F130: г | G130: ккал | H130: мг | I130: мг | J130: мкг рет.экв | K130: мкг | L130: мг | M130: мг | N130: мг | O130: мг | P130: мг | Q130: мг | R130: мг | S130: мкг | T130: мкг | U130: мкг
B131: Среда, 2 неделя
B132: Горячий завтрак | C132: 11-18
A133: 54-16з-2020 | B133: Винегрет с растительным маслом | C133: 60 | D133: 0.7 | E133: 5.4 | F133: 4 | G133: 67.1 | H133: 0.02 | I133: 0.02 | J133: 72.89 | K133: 0 | L133: 2.26 | M133: 200.99 | N133: 127.85 | O133: 12.1 | P133: 9.66 | Q133: 21.4 | R133: 0.41 | S133: 7.86 | T133: 0.13 | U133: 11.85
A134: 54-11г-2020 | B134: Картофельное пюре | C134: 200 | D134: 4.1 | E134: 7.07 | F134: 26.43 | G134: 185.8 | H134: 0.16 | I134: 0.14 | J134: 31.72 | K134: 0.12 | L134: 13 | M134: 215 | N134: 833 | O134: 53 | P134: 38 | Q134: 112 | R134: 1.3 | S134: 37.95 | T134: 1.1 | U134: 57.05
A135: 54-7р-2020 | B135: Рыба припущенная в молоко | C135: 100 | D135: 13.09 | E135: 7.52 | F135: 2.89 | G135: 131.6 | H135: 0.08 | I135: 0.11 | J135: 9.02 | K135: 0.16 | L135: 1 | M135: 111 | N135: 347 | O135: 68 | P135: 44 | Q135: 202 | R135: 0.7 | S135: 133.48 | T135: 11.9 | U135: 572.6
A136: 54-21гн-2020 | B136: Какао с молоком | C136: 200 | D136: 4.7 | E136: 3.5 | F136: 12.5 | G136: 100.4 | H136: 0.04 | I136: 0.16 | J136: 17.25 | K136: 0 | L136: 0.68 | M136: 49.95 | N136: 220.33 | O136: 167.68 | P136: 34.32 | Q136: 130.28 | R136: 1.09 | S136: 11.7 | T136: 2.29 | U136: 38.25
A137: Пром. | B137: Хлеб пшеничный | C137: 30 | D137: 2.3 | E137: 0.2 | F137: 14.8 | G137: 70.3 | H137: 0.03 | I137: 0.01 | J137: 0 | K137: 0 | L137: 0 | M137: 149.7 | N137: 27.9 | O137: 6 | P137: 4.2 | Q137: 19.5 | R137: 0.33 | S137: 0.96 | T137: 1.8 | U137: 4.35
A138: Пром. | B138: Хлеб ржаной | C138: 20 | D138: 1.3 | E138: 0.2 | F138: 6.7 | G138: 34.2 | H138: 0.04 | I138: 0.02 | J138: 0 | K138: 0 | L138: 0 | M138: 122 | N138: 49 | O138: 7 | P138: 9.4 | Q138: 31.6 | R138: 0.78 | S138: 0 | T138: 6.18 | U138: 0
B139: Итого за Завтрак | C139: =SUM(C133:C138) -> 610 | D139: =SUM(D133:D138) -> 26.19 | E139: =SUM(E133:E138) -> 23.89 | F139: 67.32 | G139: 589.4 | H139: 0.37 | I139: 0.46 | J139: 130.88 | K139: 0.28 | L139: 16.94 | M139: 848.64 | N139: 1605.08 | O139: 313.78 | P139: 139.58 | Q139: 516.78 | R139: 4.61 | S139: 191.95 | T139: 23.4 | U139: 684.1
B140: Итого за день | C140: =C139 -> 610 | D140: =D139 -> 26.19 | E140: 23.89 | F140: 67.32 | G140: 589.4 | H140: 0.37 | I140: 0.46 | J140: 130.88 | K140: 0.28 | L140: 16.94 | M140: 848.64 | N140: 1605.08 | O140: 313.78 | P140: 139.58 | Q140: 516.78 | R140: 4.61 | S140: 191.95 | T140: 23.4 | U140: 684.1
A142: 10 день, 2 неделя
A143: № рецептуры | B143: Прием пищи, наименование блюда | C143: Масса | D143: Пищевые вещества | G143: Энергетическая ценность | H143: Витамины | M143: Минеральные вещества
D144: Белки | E144: Жиры | F144: Углеводы | H144: B1 | I144: B2 | J144: A | K144: D | L144: C | M144: Na | N144: K | O144: Ca | P144: Mg | Q144: P | R144: Fe | S144: I | T144: Se | U144: F
C145: г | D145: г | E145: г | F145: г | G145: ккал | H145: мг | I145: мг | J145: мкг рет.экв | K145: мкг | L145: мг | M145: мг | N145: мг | O145: мг | P145: мг | Q145: мг | R145: мг | S145: мкг | T145: мкг | U145: мкг
B146: Четверг, 2 неделя
B147: Горячий завтрак | C147: 11-18
A148: 54-11з-2020 | B148: Салат из моркови с яблоками с растительным маслом | C148: 60 | D148: 0.5 | E148: 6.1 | F148: 4.3 | G148: 74.3 | H148: 0.03 | I148: 0.03 | J148: 732.9 | K148: 0 | L148: 3.63 | M148: 89.79 | N148: 123.26 | O148: 13.5 | P148: 15.57 | Q148: 22.38 | R148: 0.66 | S148: 10.19 | T148: 0.09 | U148: 21.57
A149: 54-1г-2020 | B149: Макароны отварные | C149: 180 | D149: 6.39 | E149: 5.91 | F149: 39.36 | G149: 236.2 | H149: 0.07 | I149: 0.03 | J149: 22.03 | K149: 0.11 | L149: 0 | M149: 179 | N149: 64 | O149: 127 | P149: 9 | Q149: 48 | R149: 0.9 | S149: 24.92 | T149: 0.1 | U149: 14.31
A150: ном.рец №174 | B150: Тефтели мясные из говядины, полуфабрикат в соусе | C150: 80/30 | D150: 10.81 | E150: 10.4 | F150: 8.42 | G150: 168.9 | H150: 0 | I150: 0 | J150: 38.45 | K150: 0.01 | L150: 1.79 | M150: 3 | N150: 43 | O150: 45.75 | P150: 35.13 | Q150: 109 | R150: 1.6 | S150: 0 | T150: 0 | U150: 0
A151: 54-21гн-2020 | B151: Кофейный напиток с молоком | C151: 200 | D151: 3.9 | E151: 2.9 | F151: 11.2 | G151: 86 | H151: 0.03 | I151: 0.13 | J151: 13.29 | K151: 0 | L151: 0.52 | M151: 38.55 | N151: 183.98 | O151: 148.32 | P151: 30.67 | Q151: 106.79 | R151: 1.06 | S151: 9 | T151: 1.76 | U151: 20
A152: Пром. | B152: Хлеб пшеничный | C152: 30 | D152: 2.3 | E152: 0.2 | F152: 14.8 | G152: 70.3 | H152: 0.03 | I152: 0.01 | J152: 0 | K152: 0 | L152: 0 | M152: 149.7 | N152: 27.9 | O152: 6 | P152: 4.2 | Q152: 19.5 | R152: 0.33 | S152: 0.96 | T152: 1.8 | U152: 4.35
A153: Пром. | B153: Хлеб ржаной | C153: 20 | D153: 1.3 | E153: 0.2 | F153: 6.7 | G153: 34.2 | H153: 0.04 | I153: 0.02 | J153: 0 | K153: 0 | L153: 0 | M153: 122 | N153: 49 | O153: 7 | P153: 9.4 | Q153: 31.6 | R153: 0.78 | S153: 0 | T153: 6.18 | U153: 0
B154: Итого за Завтрак | C154: 600 | D154: =SUM(D148:D153) -> 25.2 | E154: 25.71 | F154: 84.78 | G154: 669.9 | H154: 0.2 | I154: 0.22 | J154: 806.67 | K154: 0.12 | L154: 5.94 | M154: 582.04 | N154: 491.14 | O154: 347.57 | P154: 103.97 | Q154: 337.27 | R154: 5.33 | S154: 45.07 | T154: 9.93 | U154: 60.23
B155: Итого за день | C155: =C154 -> 600 | D155: =D154 -> 25.2 | E155: 25.71 | F155: 84.78 | G155: 669.9 | H155: 0.2 | I155: 0.22 | J155: 806.67 | K155: 0.12 | L155: 5.94 | M155: 582.04 | N155: 491.14 | O155: 347.57 | P155: 103.97 | Q155: 337.27 | R155: 5.33 | S155: 45.07 | T155: 9.93 | U155: 60.23
A157: 11 день, 2 неделя
A158: № рецептуры | B158: Прием пищи, наименование блюда | C158: Масса | D158: Пищевые вещества | G158: Энергетическая ценность | H158: Витамины | M158: Минеральные вещества
D159: Белки | E159: Жиры | F159: Углеводы | H159: B1 | I159: B2 | J159: A | K159: D | L159: C | M159: Na | N159: K | O159: Ca | P159: Mg | Q159: P | R159: Fe | S159: I | T159: Se | U159: F
C160: г | D160: г | E160: г | F160: г | G160: ккал | H160: мг | I160: мг | J160: мкг рет.экв | K160: мкг | L160: мг | M160: мг | N160: мг | O160: мг | P160: мг | Q160: мг | R160: мг | S160: мкг | T160: мкг | U160: мкг
B161: Пятница, 2 неделя
B162: Горячий завтрак | C162: 11-18
A163: 54-13з-2020 | B163: Салат из свеклы отварной с растительным маслом | C163: 60 | D163: 0.8 | E163: 2.7 | F163: 4.6 | G163: 45.6 | H163: 0.01 | I163: 0.02 | J163: 0.68 | K163: 0 | L163: 2.28 | M163: 78.77 | N163: 136.27 | O163: 19.21 | P163: 10.95 | Q163: 21.51 | R163: 0.7 | S163: 11.99 | T163: 0.35 | U163: 11.4
A164: 54-6г-2020 | B164: Рис отварной | C164: 180 | D164: 4.3 | E164: 5.8 | F164: 43.7 | G164: 244.2 | H164: 0.04 | I164: 0.03 | J164: 22.03 | K164: 0.11 | L164: 0 | M164: 183.36 | N164: 55.86 | O164: 127.98 | P164: 28.3 | Q164: 87.09 | R164: 0.59 | S164: 24.91 | T164: 8.68 | U164: 32.63
A165: 54-2м-2020 | B165: Гуляш из говядины | C165: 60/40 | D165: 13.76 | E165: 13.91 | F165: 3.9 | G165: 195.8 | H165: 0.04 | I165: 0.12 | J165: 25.46 | K165: 0.07 | L165: 1 | M165: 122 | N165: 322 | O165: 55 | P165: 23 | Q165: 166 | R165: 2.5 | S165: 17.06 | T165: 0.4 | U165: 62.71
A166: 54-4гн-2020 | B166: Компот из кураги | C166: 200 | D166: 0.98 | E166: 0.05 | F166: 15.64 | G166: 66.9 | H166: 0.01 | I166: 0.03 | J166: 69.96 | K166: 0 | L166: 0 | M166: 3 | N166: 285 | O166: 90 | P166: 18 | Q166: 25 | R166: 0.6 | S166: 0 | T166: 0 | U166: 0
A167: Пром. | B167: Хлеб ржаной | C167: 20 | D167: 1.3 | E167: 0.2 | F167: 6.7 | G167: 34.2 | H167: 0.04 | I167: 0.02 | J167: 0 | K167: 0 | L167: 0 | M167: 122 | N167: 49 | O167: 7 | P167: 9.4 | Q167: 31.6 | R167: 0.78 | S167: 0 | T167: 6.18 | U167: 0
A168: Пром. | B168: Хлеб пшеничный | C168: 30 | D168: 2.3 | E168: 0.2 | F168: 14.8 | G168: 70.3 | H168: 0.03 | I168: 0.01 | J168: 0 | K168: 0 | L168: 0 | M168: 149.7 | N168: 27.9 | O168: 6 | P168: 4.2 | Q168: 19.5 | R168: 0.33 | S168: 0.96 | T168: 1.8 | U168: 4.35
B169: Итого за Завтрак | C169: 590 | D169: =SUM(D163:D168) -> 23.44 | E169: 22.86 | F169: 89.34 | G169: 657 | H169: 0.17 | I169: 0.23 | J169: 118.13 | K169: 0.18 | L169: 3.28 | M169: 658.83 | N169: 876.03 | O169: 305.19 | P169: 93.85 | Q169: 350.7 | R169: 5.5 | S169: 54.92 | T169: 17.41 | U169: 111.09
B170: Итого за день | C170: =C169 -> 590 | D170: =D169 -> 23.44 | E170: 22.86 | F170: 89.34 | G170: 657 | H170: 0.17 | I170: 0.23 | J170: 118.13 | K170: 0.18 | L170: 3.28 | M170: 658.83 | N170: 876.03 | O170: 305.19 | P170: 93.85 | Q170: 350.7 | R170: 5.5 | S170: 54.92 | T170: 17.41 | U170: 111.09
A172: 12 день, 2 неделя
A173: № рецептуры | B173: Прием пищи, наименование блюда | C173: Масса | D173: Пищевые вещества | G173: Энергетическая ценность | H173: Витамины | M173: Минеральные вещества
D174: Белки | E174: Жиры | F174: Углеводы | H174: B1 | I174: B2 | J174: A | K174: D | L174: C | M174: Na | N174: K | O174: Ca | P174: Mg | Q174: P | R174: Fe | S174: I | T174: Se | U174: F
C175: г | D175: г | E175: г | F175: г | G175: ккал | H175: мг | I175: мг | J175: мкг рет.экв | K175: мкг | L175: мг | M175: мг | N175: мг | O175: мг | P175: мг | Q175: мг | R175: мг | S175: мкг | T175: мкг | U175: мкг
B176: Суббота, 2 неделя
B177: Горячий завтрак | C177: 11-18
A178: 54-9з-2020 | B178: Салат из белокочанной капусты с морковью и яблоками | C178: 60 | D178: 0.8 | E178: 6.1 | F178: 3.6 | G178: 72.5 | H178: 0.02 | I178: 0.02 | J178: 241.63 | K178: 0 | L178: 17.32 | M178: 87.51 | N178: 160.14 | O178: 23.5 | P178: 11.17 | Q178: 18.8 | R178: 0.56 | S178: 9.87 | T178: 0.15 | U178: 10.98
A179: рец.2015г. | B179: Пельмени мясные отварные, полуфабрикат | C179: 200 | D179: 10.34 | E179: 12.175 | F179: 20.34 | G179: 237 | H179: 0.159 | I179: 0 | J179: 0.18 | K179: 0 | L179: 0.491 | M179: 0 | N179: 0 | O179: 79.453 | P179: 10.579 | Q179: 239.018 | R179: 0.01 | S179: 0 | T179: 0 | U179: 0
A180: 54-3гн-2020 | B180: Чай с лимоном и сахаром | C180: 207 | D180: 0.2 | E180: 0.1 | F180: 6.6 | G180: 27.9 | H180: 0 | I180: 0.01 | J180: 0.38 | K180: 0 | L180: 1.16 | M180: 1.26 | N180: 30.23 | O180: 67 | P180: 4.56 | Q180: 8.52 | R180: 0.77 | S180: 0.01 | T180: 0.02 | U180: 0.7
A181: Пром. | B181: Хлеб ржаной | C181: 20 | D181: 1.3 | E181: 0.2 | F181: 6.7 | G181: 34.2 | H181: 0.04 | I181: 0.02 | J181: 0 | K181: 0 | L181: 0 | M181: 122 | N181: 49 | O181: 7 | P181: 9.4 | Q181: 31.6 | R181: 0.78 | S181: 0 | T181: 6.18 | U181: 0
A182: Пром. | B182: Хлеб пшеничный | C182: 30 | D182: 2.3 | E182: 0.2 | F182: 14.8 | G182: 70.3 | H182: 0.03 | I182: 0.01 | J182: 0 | K182: 0 | L182: 0 | M182: 149.7 | N182: 27.9 | O182: 6 | P182: 4.2 | Q182: 19.5 | R182: 0.33 | S182: 0.96 | T182: 1.8 | U182: 4.35
B183: Итого за Завтрак | C183: 517 | D183: =SUM(D178:D182) -> 14.94 | E183: =SUM(E178:E182) -> 18.775 | F183: 52.04 | G183: 441.9 | H183: 0.249 | I183: 0.06 | J183: 242.19 | K183: 0 | L183: 18.971 | M183: 360.47 | N183: 267.27 | O183: 182.953 | P183: 39.909 | Q183: 317.438 | R183: 2.45 | S183: 10.84 | T183: 8.15 | U183: 16.03
B184: Итого за день | C184: 517 | D184: =D183 -> 14.94 | E184: =E183 -> 18.775 | F184: 52.04 | G184: 441.9 | H184: 0.249 | I184: 0.06 | J184: 242.19 | K184: 0 | L184: 18.971 | M184: 360.47 | N184: 267.27 | O184: 182.953 | P184: 39.909 | Q184: 317.438 | R184: 2.45 | S184: 10.84 | T184: 8.15 | U184: 16.03
D186: ИТОГО ПО МЕНЮ
B188: ИТОГО | C188: Пищевые вещества | F188: Энергетическая ценность | G188: Витамины | L188: Минеральные вещества
C189: Белки | D189: Жиры | E189: Углеводы | G189: B1 | H189: B2 | I189: A | J189: D | K189: C | L189: Na | M189: K | N189: Ca | O189: Mg | P189: P | Q189: Fe | R189: I | S189: Se | T189: F
C190: г | D190: г | E190: г | F190: ккал | G190: мг | H190: мг | I190: мкг рет.экв | J190: мкг | K190: мг | L190: мг | M190: мг | N190: мг | O190: мг | P190: мг | Q190: мг | R190: мкг | S190: мкг | T190: мкг
B191: Итого за весь период | C191: =D21+D36+D51+D66+D80+D110+D125+D140+D155+D170+D184+D95 -> 294.06 | D191: =E21+E36+E51+E66+E80+E110+E125+E140+E155+E170+E184+E95 -> 284.46 | E191: =F21+F36+F51+F66+F80+F110+F125+F140+F155+F170+F184+F95 -> 929.68 | F191: =G21+G36+G51+G66+G80+G110+G125+G140+G155+G170+G184+G95 -> 7447.15 | G191: =H21+H36+H51+H66+H80+H110+H125+H140+H155+H170+H184+H95 -> 3.138 | H191: =I21+I36+I51+I66+I80+I110+I125+I140+I155+I170+I184+I95 -> 2.79 | I191: =J21+J36+J51+J66+J80+J110+J125+J140+J155+J170+J184+J95 -> 4425.82 | J191: =K21+K36+K51+K66+K80+K110+K125+K140+K155+K170+K184+K95 -> 1.42 | K191: =L21+L36+L51+L66+L80+L110+L125+L140+L155+L170+L184+L95 -> 183.052 | L191: =M21+M36+M51+M66+M80+M110+M125+M140+M155+M170+M184+M95 -> 7657.51 | M191: =N21+N36+N51+N66+N80+N110+N125+N140+N155+N170+N184+N95 -> 9250.09 | N191: =O21+O36+O51+O66+O80+O110+O125+O140+O155+O170+O184+O95 -> 3081.316 | O191: =P21+P36+P51+P66+P80+P110+P125+P140+P155+P170+P184+P95 -> 1440.348 | P191: =Q21+Q36+Q51+Q66+Q80+Q110+Q125+Q140+Q155+Q170+Q184+Q95 -> 4670.166 | Q191: =R21+R36+R51+R66+R80+R110+R125+R140+R155+R170+R184+R95 -> 64.17 | R191: =S21+S36+S51+S66+S80+S110+S125+S140+S155+S170+S184+S95 -> 731.128 | S191: =T21+T36+T51+T66+T80+T110+T125+T140+T155+T170+T184+T95 -> 194.54 | T191: =U21+U36+U51+U66+U80+U110+U125+U140+U155+U170+U184+U95 -> 1630.08
B192: Среднее значение | C192: =C191/12 -> 24.51 | D192: =D191/12 -> 23.71 | E192: 77.47333333 | F192: 620.5958333 | G192: 0.26 | H192: 0.23 | I192: 368.8183333 | J192: 0.12 | K192: 15.25433333 | L192: 638.1258333 | M192: 770.8408333 | N192: 256.7763333 | O192: 120.029 | P192: 389.1805 | Q192: 5.35 | R192: 60.92733333 | S192: 16.21166667 | T192: 135.84
B193: Содержание белков, жиров, углеводов в меню за период в % от калорийности | C193: 15.69 | D193: =D191*9/F191*100 -> 34.38 | E193: =E191*4*100/F191 -> 49.93
C195: СУММАРНЫЕ ОБЪЕМЫ БЛЮД ПО ПРИЕМАМ ПИЩИ (В ГРАММАХ)
B197: Возраст детей | C197: Горячий завтрак
B198: 11-18 лет | C198: =(C170+C155+C140+C125+C110+C80+C66+C51+C36+C21+C184+C95)/12 -> 577
B200: Овощи для салатов (морковь, лук, капуста, картофель) урожай 2021 года

Sheet овз 7-11
A1: СОГЛАСОВАНО | O1: УТВЕРЖДЕНО
A2: ______________________________________ | O2: ООО "Крепыш"
A3: __________________________ | O3: _______________________Ефремов В.Ю.
A6: Меню для организации питания детей с ОВЗ в возрасте от 7 до 11 лет в образовательных учреждениях Мензелинского муниципального района на 2 полугодие 2021-2022 учебный год.
A8: 1 день, 1 неделя
A9: № рецептуры | B9: Прием пищи, наименование блюда | C9: Масса | D9: Пищевые вещества | G9: Энергетическая ценность | H9: Витамины | M9: Минеральные вещества
D10: Белки | E10: Жиры | F10: Углеводы | H10: B1 | I10: B2 | J10: A | K10: D | L10: C | M10: Na | N10: K | O10: Ca | P10: Mg | Q10: P | R10: Fe | S10: I | T10: Se | U10: F
C11: г | D11: г | E11: г | F11: г | G11: ккал | H11: мг | I11: мг | J11: мкг рет.экв | K11: мкг | L11: мг | M11: мг | N11: мг | O11: мг | P11: мг | Q11: мг | R11: мг | S11: мкг | T11: мкг | U11: мкг
B12: Понедельник, 1 неделя
B13: Буфет | C13: 7-11
A14: 54-3гн-2020 | B14: Чай с лимоном и сахаром | C14: 155 | D14: 0.2 | E14: 0 | F14: 5 | G14: 20.9 | H14: 0 | I14: 0.01 | J14: 0.29 | K14: 0 | L14: 0.87 | M14: 0.95 | N14: 22.67 | O14: 50.25 | P14: 3.42 | Q14: 6.39 | R14: 0.58 | S14: 0.01 | T14: 0.02 | U14: 0.53
A15: Пром. | B15: Сушка простая | C15: 20 | D15: 2.2 | E15: 0.3 | F15: 13.8 | G15: 66.1 | H15: 0.05 | I15: 0.01 | J15: 0 | K15: 0 | L15: 0 | M15: 121 | N15: 37 | O15: 6 | P15: 9.2 | Q15: 24.2 | R15: 0.58 | S15: 0 | T15: 0 | U15: 0
B16: Итого за буфет | C16: 175 | D16: 2.4 | E16: 0.3 | F16: 18.8 | G16: 87 | H16: 0.05 | I16: 0.02 | J16: 0.29 | K16: 0 | L16: 0.87 | M16: 121.95 | N16: 59.67 | O16: 56.25 | P16: 12.62 | Q16: 30.59 | R16: 1.16 | S16: 0.01 | T16: 0.02 | U16: 0.53
B17: Горячий завтрак | C17: 7-11
A18: 54-11з-2020 | B18: Салат из моркови с яблоками с растительным маслом | C18: 60 | D18: 0.5 | E18: 6.1 | F18: 4.3 | G18: 74.3 | H18: 0.03 | I18: 0.03 | J18: 732.9 | K18: 0 | L18: 3.63 | M18: 89.79 | N18: 123.26 | O18: 13.5 | P18: 15.57 | Q18: 22.38 | R18: 0.66 | S18: 10.19 | T18: 0.09 | U18: 21.57
A19: 54-4г-2020 | B19: Каша гречневая рассыпчатая | C19: 150 | D19: 8.2 | E19: 6.3 | F19: 35.9 | G19: 233.7 | H19: 0.21 | I19: 0.12 | J19: 19.19 | K19: 0.09 | L19: 0 | M19: 149.45 | N19: 219.36 | O19: 46.62 | P19: 120.16 | Q19: 180.99 | R19: 4.05 | S19: 22.28 | T19: 3.52 | U19: 16.06
A20: ном.рец №174 | B20: Тефтели мясные из говядины, полуфабрикат в соусе | C20: 80/30 | D20: 10.81 | E20: 10.4 | F20: 8.42 | G20: 168.9 | H20: 0 | I20: 0 | J20: 38.45 | K20: 0.01 | L20: 1.79 | M20: 3 | N20: 43 | O20: 45.75 | P20: 35.13 | Q20: 109 | R20: 1.6 | S20: 0 | T20: 0 | U20: 0
A21: 54-4гн-2020 | B21: Чай с молоком и сахаром | C21: 200 | D21: 1.6 | E21: 1.1 | F21: 8.6 | G21: 50.9 | H21: 0.01 | I21: 0.07 | J21: 6.9 | K21: 0 | L21: 0.3 | M21: 19.68 | N21: 81.35 | O21: 103.48 | P21: 9.92 | Q21: 46.33 | R21: 0.78 | S21: 4.5 | T21: 0.88 | U21: 10
A22: Пром. | B22: Хлеб пшеничный | C22: 30 | D22: 2.3 | E22: 0.2 | F22: 14.8 | G22: 70.3 | H22: 0.03 | I22: 0.01 | J22: 0 | K22: 0 | L22: 0 | M22: 149.7 | N22: 27.9 | O22: 6 | P22: 4.2 | Q22: 19.5 | R22: 0.33 | S22: 0.96 | T22: 1.8 | U22: 4.35
A23: Пром. | B23: Хлеб ржаной | C23: 20 | D23: 1.3 | E23: 0.2 | F23: 6.7 | G23: 34.2 | H23: 0.04 | I23: 0.02 | J23: 0 | K23: 0 | L23: 0 | M23: 122 | N23: 49 | O23: 7 | P23: 9.4 | Q23: 31.6 | R23: 0.78 | S23: 0 | T23: 6.18 | U23: 0
B24: Итого за Завтрак | C24: 570 | D24: =SUM(D18:D23) -> 24.71 | E24: 24.3 | F24: 78.72 | G24: 632.3 | H24: 0.32 | I24: 0.25 | J24: 797.44 | K24: 0.1 | L24: 5.72 | M24: 533.62 | N24: 543.87 | O24: 222.35 | P24: 194.38 | Q24: 409.8 | R24: 8.2 | S24: 37.93 | T24: 12.47 | U24: 51.98
B25: Итого за день | C25: =C24+C16 -> 745 | D25: 27.11 | E25: 24.6 | F25: 97.52 | G25: 719.3 | H25: 0.37 | I25: 0.27 | J25: 797.73 | K25: 0.1 | L25: 6.59 | M25: 655.57 | N25: 603.54 | O25: 278.6 | P25: 207 | Q25: 440.39 | R25: 9.36 | S25: 37.94 | T25: 12.49 | U25: 52.51
A27: 2 день, 1 неделя
A28: № рецептуры | B28: Прием пищи, наименование блюда | C28: Масса | D28: Пищевые вещества | G28: Энергетическая ценность | H28: Витамины | M28: Минеральные вещества
D29: Белки | E29: Жиры | F29: Углеводы | H29: B1 | I29: B2 | J29: A | K29: D | L29: C | M29: Na | N29: K | O29: Ca | P29: Mg | Q29: P | R29: Fe | S29: I | T29: Se | U29: F
C30: г | D30: г | E30: г | F30: г | G30: ккал | H30: мг | I30: мг | J30: мкг рет.экв | K30: мкг | L30: мг | M30: мг | N30: мг | O30: мг | P30: мг | Q30: мг | R30: мг | S30: мкг | T30: мкг | U30: мкг
B31: Вторник, 1 неделя
B32: Буфет | C32: 7-11
A33: 54-13к-2020 | B33: Каша вязкая молочная пшеничная | C33: 150 | D33: 6.1 | E33: 6.9 | F33: 29 | G33: 202.7 | H33: 0.1 | I33: 0.13 | J33: 30.74 | K33: 0.1 | L33: 0.41 | M33: 256.57 | N33: 169.91 | O33: 113.68 | P33: 29.4 | Q33: 154.74 | R33: 1.64 | S33: 37.16 | T33: 24.8 | U33: 16.11
A34: 54-1гн-2020 | B34: Чай без сахара | C34: 150 | D34: 0.1 | E34: 0 | F34: 0 | G34: 1.1 | H34: 0 | I34: 0.01 | J34: 0.23 | K34: 0 | L34: 0.03 | M34: 0.47 | N34: 15.44 | O34: 49.47 | P34: 2.87 | Q34: 5.38 | R34: 0.54 | S34: 0 | T34: 0 | U34: 0
B35: Итого за буфет | C35: 300 | D35: 6.2 | E35: 6.9 | F35: 29 | G35: 203.8 | H35: 0.1 | I35: 0.14 | J35: 30.97 | K35: 0.1 | L35: 0.44 | M35: 257.04 | N35: 185.35 | O35: 163.15 | P35: 32.27 | Q35: 160.12 | R35: 2.18 | S35: 37.16 | T35: 24.8 | U35: 16.11
B36: Горячий завтрак | C36: 7-11
A37: 54-7з-2020 | B37: Салат из белокочанной капусты с растительным маслом | C37: 60 | D37: 1.5 | E37: 6.1 | F37: 6.2 | G37: 85.8 | H37: 0.03 | I37: 0.04 | J37: 122.25 | K37: 0 | L37: 34.78 | M37: 88.69 | N37: 247.73 | O37: 40.39 | P37: 15.18 | Q37: 30.31 | R37: 0.55 | S37: 10.73 | T37: 0.26 | U37: 12.66
A38: 54-22м-2020 | B38: Рагу из курицы | C38: 140/60 | D38: 21 | E38: 7 | F38: 17.5 | G38: 217.3 | H38: 0.14 | I38: 0.11 | J38: 259.68 | K38: 0 | L38: 11.25 | M38: 281.38 | N38: 738.57 | O38: 32.19 | P38: 93.35 | Q38: 192.51 | R38: 2.13 | S38: 42.97 | T38: 17.04 | U38: 156.36
A39: 54-21гн-2020 | B39: Какао с молоком | C39: 200 | D39: 4.7 | E39: 3.5 | F39: 12.5 | G39: 100.4 | H39: 0.04 | I39: 0.16 | J39: 17.25 | K39: 0 | L39: 0.68 | M39: 49.95 | N39: 220.33 | O39: 167.68 | P39: 34.32 | Q39: 130.28 | R39: 1.09 | S39: 11.7 | T39: 2.29 | U39: 38.25
A40: 54-10в-2020 | B40: Булочка ванильная | C40: 50 | D40: 3.9 | E40: 3.37 | F40: 25.37 | G40: 147.4 | H40: 0.04 | I40: 0.02 | J40: 15.93 | K40: 0.12 | L40: 0 | M40: 200 | N40: 41 | O40: 14 | P40: 5 | Q40: 33 | R40: 0.5 | S40: 27.814 | T40: 2.6 | U40: 9.19
A41: Пром. | B41: Хлеб пшеничный | C41: 30 | D41: 2.3 | E41: 0.2 | F41: 14.8 | G41: 70.3 | H41: 0.03 | I41: 0.01 | J41: 0 | K41: 0 | L41: 0 | M41: 149.7 | N41: 27.9 | O41: 6 | P41: 4.2 | Q41: 19.5 | R41: 0.33 | S41: 0.96 | T41: 1.8 | U41: 4.35
A42: Пром. | B42: Хлеб ржаной | C42: 20 | D42: 1.3 | E42: 0.2 | F42: 6.7 | G42: 34.2 | H42: 0.04 | I42: 0.02 | J42: 0 | K42: 0 | L42: 0 | M42: 122 | N42: 49 | O42: 7 | P42: 9.4 | Q42: 31.6 | R42: 0.78 | S42: 0 | T42: 6.18 | U42: 0
B43: Итого за Завтрак | C43: 560 | D43: =SUM(D37:D42) -> 34.7 | E43: =SUM(E37:E42) -> 20.37 | F43: 83.07 | G43: 655.4 | H43: 0.32 | I43: 0.36 | J43: 415.11 | K43: 0.12 | L43: 46.71 | M43: 891.72 | N43: 1324.53 | O43: 267.26 | P43: 161.45 | Q43: 437.2 | R43: 5.38 | S43: 94.174 | T43: 30.17 | U43: 220.81
B44: Итого за день | C44: =C43+C35 -> 860 | D44: 40.9 | E44: 27.27 | F44: 112.07 | G44: 859.2 | H44: 0.42 | I44: 0.5 | J44: 446.08 | K44: 0.22 | L44: 47.15 | M44: 1148.76 | N44: 1509.88 | O44: 430.41 | P44: 193.72 | Q44: 597.32 | R44: 7.56 | S44: 131.334 | T44: 54.97 | U44: 236.92
A46: 3 день, 1 неделя
A47: № рецептуры | B47: Прием пищи, наименование блюда | C47: Масса | D47: Пищевые вещества | G47: Энергетическая ценность | H47: Витамины | M47: Минеральные вещества
D48: Белки | E48: Жиры | F48: Углеводы | H48: B1 | I48: B2 | J48: A | K48: D | L48: C | M48: Na | N48: K | O48: Ca | P48: Mg | Q48: P | R48: Fe | S48: I | T48: Se | U48: F
C49: г | D49: г | E49: г | F49: г | G49: ккал | H49: мг | I49: мг | J49: мкг рет.экв | K49: мкг | L49: мг | M49: мг | N49: мг | O49: мг | P49: мг | Q49: мг | R49: мг | S49: мкг | T49: мкг | U49: мкг
B50: Среда, 1 неделя
B51: Буфет | C51: 7-11
A52: 54-4гн-2020 | B52: Чай с молоком и сахаром | C52: 150 | D52: 1.2 | E52: 0.9 | F52: 6.5 | G52: 38.2 | H52: 0.01 | I52: 0.05 | J52: 5.18 | K52: 0 | L52: 0.23 | M52: 14.76 | N52: 61.01 | O52: 77.61 | P52: 7.44 | Q52: 34.75 | R52: 0.58 | S52: 3.38 | T52: 0.66 | U52: 7.5
A53: Пром. | B53: Сушка простая | C53: 20 | D53: 2.2 | E53: 0.3 | F53: 13.8 | G53: 66.1 | H53: 0.05 | I53: 0.01 | J53: 0 | K53: 0 | L53: 0 | M53: 121 | N53: 37 | O53: 6 | P53: 9.2 | Q53: 24.2 | R53: 0.58 | S53: 0 | T53: 0 | U53: 0
B54: Итого за буфет | C54: 170 | D54: 3.4 | E54: 1.2 | F54: 20.3 | G54: 104.3 | H54: 0.06 | I54: 0.06 | J54: 5.18 | K54: 0 | L54: 0.23 | M54: 135.76 | N54: 98.01 | O54: 83.61 | P54: 16.64 | Q54: 58.95 | R54: 1.16 | S54: 3.38 | T54: 0.66 | U54: 7.5
B55: Горячий завтрак | C55: 7-11
A56: 54-13з-2020 | B56: Салат из свеклы отварной с растительным маслом | C56: 60 | D56: 0.8 | E56: 2.7 | F56: 4.6 | G56: 45.6 | H56: 0.01 | I56: 0.02 | J56: 0.68 | K56: 0 | L56: 2.28 | M56: 78.77 | N56: 136.27 | O56: 19.21 | P56: 10.95 | Q56: 21.51 | R56: 0.7 | S56: 11.99 | T56: 0.35 | U56: 11.4
A57: 54-1г-2020 | B57: Макароны отварные | C57: 150 | D57: 5.3 | E57: 4.9 | F57: 32.8 | G57: 196.8 | H57: 0.06 | I57: 0.02 | J57: 18.36 | K57: 0.09 | L57: 0 | M57: 149.04 | N57: 53.8 | O57: 105.83 | P57: 7.19 | Q57: 40.7 | R57: 0.73 | S57: 20.77 | T57: 0.06 | U57: 11.92
A58: №243 | B58: Сосиски говяжьи отварные, п/ф (2 шт) | C58: 100 | D58: 13.2 | E58: 22.84 | F58: 1.8 | G58: 247.15 | H58: 0 | I58: 0 | J58: 0.08 | K58: 0.01 | L58: 0 | M58: 0 | N58: 0 | O58: 7.44 | P58: 15.51 | Q58: 137.39 | R58: 1.74 | S58: 0 | T58: 0 | U58: 0
A59: 54-3гн-2020 | B59: Чай с лимоном и сахаром | C59: 207 | D59: 0.2 | E59: 0.1 | F59: 6.6 | G59: 27.9 | H59: 0 | I59: 0.01 | J59: 0.38 | K59: 0 | L59: 1.16 | M59: 1.26 | N59: 30.23 | O59: 67 | P59: 4.56 | Q59: 8.52 | R59: 0.77 | S59: 0.01 | T59: 0.02 | U59: 0.7
A60: Пром. | B60: Хлеб ржаной | C60: 20 | D60: 1.3 | E60: 0.2 | F60: 6.7 | G60: 34.2 | H60: 0.04 | I60: 0.02 | J60: 0 | K60: 0 | L60: 0 | M60: 122 | N60: 49 | O60: 7 | P60: 9.4 | Q60: 31.6 | R60: 0.78 | S60: 0 | T60: 6.18 | U60: 0
A61: Пром. | B61: Хлеб пшеничный | C61: 30 | D61: 2.3 | E61: 0.2 | F61: 14.8 | G61: 70.3 | H61: 0.03 | I61: 0.01 | J61: 0 | K61: 0 | L61: 0 | M61: 149.7 | N61: 27.9 | O61: 6 | P61: 4.2 | Q61: 19.5 | R61: 0.33 | S61: 0.96 | T61: 1.8 | U61: 4.35
B62: Итого за Завтрак | C62: =SUM(C56:C61) -> 567 | D62: =SUM(D56:D61) -> 23.1 | E62: =SUM(E56:E61) -> 30.94 | F62: 67.3 | G62: 621.95 | H62: 0.14 | I62: 0.08 | J62: 19.5 | K62: 0.1 | L62: 3.44 | M62: 500.77 | N62: 297.2 | O62: 212.48 | P62: 51.81 | Q62: 259.22 | R62: 5.05 | S62: 33.73 | T62: 8.41 | U62: 28.37
B63: Итого за день | C63: =C62+C54 -> 737 | D63: =D62+D54 -> 26.5 | E63: =E62+E54 -> 32.14 | F63: 87.6 | G63: 726.25 | H63: 0.2 | I63: 0.14 | J63: 24.68 | K63: 0.1 | L63: 3.67 | M63: 636.53 | N63: 395.21 | O63: 296.09 | P63: 68.45 | Q63: 318.17 | R63: 6.21 | S63: 37.11 | T63: 9.07 | U63: 35.87
A65: 4 день, 1 неделя
A66: № рецептуры | B66: Прием пищи, наименование блюда | C66: Масса | D66: Пищевые вещества | G66: Энергетическая ценность | H66: Витамины | M66: Минеральные вещества
D67: Белки | E67: Жиры | F67: Углеводы | H67: B1 | I67: B2 | J67: A | K67: D | L67: C | M67: Na | N67: K | O67: Ca | P67: Mg | Q67: P | R67: Fe | S67: I | T67: Se | U67: F
C68: г | D68: г | E68: г | F68: г | G68: ккал | H68: мг | I68: мг | J68: мкг рет.экв | K68: мкг | L68: мг | M68: мг | N68: мг | O68: мг | P68: мг | Q68: мг | R68: мг | S68: мкг | T68: мкг | U68: мкг
B69: Четверг, 1 неделя
B70: Буфет | C70: 7-11
A71: 54-6к-2020 | B71: Каша вязкая молочная пшенная | C71: 150 | D71: 6.2 | E71: 7.6 | F71: 28.2 | G71: 206.2 | H71: 0.14 | I71: 0.11 | J71: 31.22 | K71: 0.1 | L71: 0.41 | M71: 254.01 | N71: 162.17 | O71: 107.34 | P71: 36.72 | Q71: 139.54 | R71: 0.99 | S71: 38.71 | T71: 2.33 | U71: 26.31
A72: 54-1гн-2020 | B72: Чай без сахара | C72: 150 | D72: 0.1 | E72: 0 | F72: 0 | G72: 1.1 | H72: 0 | I72: 0.01 | J72: 0.23 | K72: 0 | L72: 0.03 | M72: 0.47 | N72: 15.44 | O72: 49.47 | P72: 2.87 | Q72: 5.38 | R72: 0.54 | S72: 0 | T72: 0 | U72: 0
B73: Итого за буфет | C73: 300 | D73: 6.3 | E73: 7.6 | F73: 28.2 | G73: 207.3 | H73: 0.14 | I73: 0.12 | J73: 31.45 | K73: 0.1 | L73: 0.44 | M73: 254.48 | N73: 177.61 | O73: 156.81 | P73: 39.59 | Q73: 144.92 | R73: 1.53 | S73: 38.71 | T73: 2.33 | U73: 26.31
B74: Горячий завтрак | C74: 7-11
A75: 54-9з-2020 | B75: Салат из белокочанной капусты с морковью и яблоками с растительным маслом | C75: 60 | D75: 0.8 | E75: 6.1 | F75: 3.6 | G75: 72.5 | H75: 0.02 | I75: 0.02 | J75: 241.63 | K75: 0 | L75: 17.32 | M75: 87.51 | N75: 160.14 | O75: 23.5 | P75: 11.17 | Q75: 18.8 | R75: 0.56 | S75: 9.87 | T75: 0.15 | U75: 10.98
A76: 54-11г-2020 | B76: Картофельное пюре | C76: 150 | D76: 3.1 | E76: 5.3 | F76: 19.8 | G76: 139.4 | H76: 0.12 | I76: 0.11 | J76: 23.8 | K76: 0.09 | L76: 10.2 | M76: 161.78 | N76: 624.83 | O76: 39.49 | P76: 28.23 | Q76: 84.47 | R76: 1.03 | S76: 28.46 | T76: 0.78 | U76: 42.79
A77: ном.рец №608 | B77: Котлета мясная Любительская, полуфабрикат в соусе | C77: 70/30 | D77: 10.04 | E77: 12.79 | F77: 8.12 | G77: 187.9 | H77: 0 | I77: 0 | J77: 38.45 | K77: 0.01 | L77: 1.15 | M77: 3 | N77: 43 | O77: 45.75 | P77: 35.13 | Q77: 173.38 | R77: 1.6 | S77: 0 | T77: 0 | U77: 0
A78: 54-2гн-2020 | B78: Кофейный напиток с молоком | C78: 200 | D78: 3.9 | E78: 2.9 | F78: 11.2 | G78: 86 | H78: 0.03 | I78: 0.13 | J78: 13.29 | K78: 0 | L78: 0.52 | M78: 38.55 | N78: 183.98 | O78: 148.32 | P78: 30.67 | Q78: 106.79 | R78: 1.06 | S78: 9 | T78: 1.76 | U78: 20
A79: Пром. | B79: Хлеб ржаной | C79: 20 | D79: 1.3 | E79: 0.2 | F79: 6.7 | G79: 34.2 | H79: 0.04 | I79: 0.02 | J79: 0 | K79: 0 | L79: 0 | M79: 122 | N79: 49 | O79: 7 | P79: 9.4 | Q79: 31.6 | R79: 0.78 | S79: 0 | T79: 6.18 | U79: 0
A80: Пром. | B80: Хлеб пшеничный | C80: 30 | D80: 2.3 | E80: 0.2 | F80: 14.8 | G80: 70.3 | H80: 0.03 | I80: 0.01 | J80: 0 | K80: 0 | L80: 0 | M80: 149.7 | N80: 27.9 | O80: 6 | P80: 4.2 | Q80: 19.5 | R80: 0.33 | S80: 0.96 | T80: 1.8 | U80: 4.35
B81: Итого за Завтрак | C81: 560 | D81: =SUM(D75:D80) -> 21.44 | E81: 27.49 | F81: 64.22 | G81: 590.3 | H81: 0.24 | I81: 0.29 | J81: 317.17 | K81: 0.1 | L81: 29.19 | M81: 562.54 | N81: 1088.85 | O81: 270.06 | P81: 118.8 | Q81: 434.54 | R81: 5.36 | S81: 48.29 | T81: 10.67 | U81: 78.12
B82: Итого за день | C82: =C81+C73 -> 860 | D82: =D81+D73 -> 27.74 | E82: 35.09 | F82: 92.42 | G82: 797.6 | H82: 0.38 | I82: 0.41 | J82: 348.62 | K82: 0.2 | L82: 29.63 | M82: 817.02 | N82: 1266.46 | O82: 426.87 | P82: 158.39 | Q82: 579.46 | R82: 6.89 | S82: 87 | T82: 13 | U82: 104.43
A84: 5 день, 1 неделя
A85: № рецептуры | B85: Прием пищи, наименование блюда | C85: Масса | D85: Пищевые вещества | G85: Энергетическая ценность | H85: Витамины | M85: Минеральные вещества
D86: Белки | E86: Жиры | F86: Углеводы | H86: B1 | I86: B2 | J86: A | K86: D | L86: C | M86: Na | N86: K | O86: Ca | P86: Mg | Q86: P | R86: Fe | S86: I | T86: Se | U86: F
C87: г | D87: г | E87: г | F87: г | G87: ккал | H87: мг | I87: мг | J87: мкг рет.экв | K87: мкг | L87: мг | M87: мг | N87: мг | O87: мг | P87: мг | Q87: мг | R87: мг | S87: мкг | T87: мкг | U87: мкг
B88: Пятница, 1 неделя
B89: Буфет | C89: 7-11
A90: 54-1г-2020 | B90: Макароны отварные | C90: 150 | D90: 5.3 | E90: 4.9 | F90: 32.8 | G90: 196.8 | H90: 0.06 | I90: 0.02 | J90: 18.36 | K90: 0.09 | L90: 0 | M90: 149.04 | N90: 53.8 | O90: 105.83 | P90: 7.19 | Q90: 40.7 | R90: 0.73 | S90: 20.77 | T90: 0.06 | U90: 11.92
A91: 54-2гн-2020 | B91: Чай с сахаром | C91: 150 | D91: 0.1 | E91: 0 | F91: 4.8 | G91: 20.1 | H91: 0 | I91: 0.01 | J91: 0.23 | K91: 0 | L91: 0.03 | M91: 0.51 | N91: 15.57 | O91: 49.56 | P91: 2.87 | Q91: 5.38 | R91: 0.55 | S91: 0 | T91: 0 | U91: 0
B92: Итого за буфет | C92: 300 | D92: 5.4 | E92: 4.9 | F92: 37.6 | G92: 216.9 | H92: 0.06 | I92: 0.03 | J92: 18.59 | K92: 0.09 | L92: 0.03 | M92: 149.55 | N92: 69.37 | O92: 155.39 | P92: 10.06 | Q92: 46.08 | R92: 1.28 | S92: 20.77 | T92: 0.06 | U92: 11.92
B93: Горячий завтрак | C93: 7-11
A94: 54-11з-2020 | B94: Салат из моркови с яблоками с растительным маслом | C94: 60 | D94: 0.5 | E94: 6.1 | F94: 4.3 | G94: 74.3 | H94: 0.03 | I94: 0.03 | J94: 732.9 | K94: 0 | L94: 3.63 | M94: 89.79 | N94: 123.26 | O94: 13.5 | P94: 15.57 | Q94: 22.38 | R94: 0.66 | S94: 10.19 | T94: 0.09 | U94: 21.57
A95: 54-6г-2020 | B95: Плов из говядины | C95: 160/40 | D95: 15.32 | E95: 14.73 | F95: 38.58 | G95: 348.3 | H95: 0.07 | I95: 0.12 | J95: 261.6 | K95: 0.1 | L95: 0.08 | M95: 276 | N95: 267 | O95: 117 | P95: 44 | Q95: 194 | R95: 2.2 | S95: 38.67 | T95: 7.3 | U95: 81.72
A96: 54-4гн-2020 | B96: Компот из кураги | C96: 200 | D96: 0.98 | E96: 0.05 | F96: 15.64 | G96: 66.9 | H96: 0.01 | I96: 0.03 | J96: 69.96 | K96: 0 | L96: 0 | M96: 3 | N96: 285 | O96: 90 | P96: 18 | Q96: 25 | R96: 0.6 | S96: 0 | T96: 0 | U96: 0
A97: Пром. | B97: Хлеб ржаной | C97: 20 | D97: 1.3 | E97: 0.2 | F97: 6.7 | G97: 34.2 | H97: 0.04 | I97: 0.02 | J97: 0 | K97: 0 | L97: 0 | M97: 122 | N97: 49 | O97: 7 | P97: 9.4 | Q97: 31.6 | R97: 0.78 | S97: 0 | T97: 6.18 | U97: 0
A98: Пром. | B98: Хлеб пшеничный | C98: 30 | D98: 2.3 | E98: 0.2 | F98: 14.8 | G98: 70.3 | H98: 0.03 | I98: 0.01 | J98: 0 | K98: 0 | L98: 0 | M98: 149.7 | N98: 27.9 | O98: 6 | P98: 4.2 | Q98: 19.5 | R98: 0.33 | S98: 0.96 | T98: 1.8 | U98: 4.35
B99: Итого за Завтрак | C99: 510 | D99: =SUM(D94:D98) -> 20.4 | E99: =SUM(E94:E98) -> 21.28 | F99: 80.02 | G99: 594 | H99: 0.18 | I99: 0.21 | J99: 1064.46 | K99: 0.1 | L99: 3.71 | M99: 640.49 | N99: 752.16 | O99: 233.5 | P99: 91.17 | Q99: 292.48 | R99: 4.57 | S99: 49.82 | T99: 15.37 | U99: 107.64
B100: Итого за день | C100: =C99+C92 -> 810 | D100: =D99+D92 -> 25.8 | E100: =E99+E92 -> 26.18 | F100: =F99+F92 -> 117.62 | G100: =G99+G92 -> 810.9 | H100: =H99+H92 -> 0.24 | I100: =I99+I92 -> 0.24 | J100: =J99+J92 -> 1083.05 | K100: =K99+K92 -> 0.19 | L100: =L99+L92 -> 3.74 | M100: =M99+M92 -> 790.04 | N100: =N99+N92 -> 821.53 | O100: =O99+O92 -> 388.89 | P100: =P99+P92 -> 101.23 | Q100: =Q99+Q92 -> 338.56 | R100: =R99+R92 -> 5.85 | S100: =S99+S92 -> 70.59 | T100: =T99+T92 -> 15.43 | U100: =U99+U92 -> 119.56
A102: 6 день, 1 неделя
A103: № рецептуры | B103: Прием пищи, наименование блюда | C103: Масса | D103: Пищевые вещества | G103: Энергетическая ценность | H103: Витамины | M103: Минеральные вещества
D104: Белки | E104: Жиры | F104: Углеводы | H104: B1 | I104: B2 | J104: A | K104: D | L104: C | M104: Na | N104: K | O104: Ca | P104: Mg | Q104: P | R104: Fe | S104: I | T104: Se | U104: F
C105: г | D105: г | E105: г | F105: г | G105: ккал | H105: мг | I105: мг | J105: мкг рет.экв | K105: мкг | L105: мг | M105: мг | N105: мг | O105: мг | P105: мг | Q105: мг | R105: мг | S105: мкг | T105: мкг | U105: мкг
B106: Суббота, 1 неделя
B107: Буфет | C107: 7-11
A108: 54-3гн-2020 | B108: Чай с лимоном и сахаром | C108: 155 | D108: 0.2 | E108: 0 | F108: 5 | G108: 20.9 | H108: 0 | I108: 0.01 | J108: 0.29 | K108: 0 | L108: 0.87 | M108: 0.95 | N108: 22.67 | O108: 50.25 | P108: 3.42 | Q108: 6.39 | R108: 0.58 | S108: 0.01 | T108: 0.02 | U108: 0.53
A109: Пром. | B109: Сушка простая | C109: 20 | D109: 2.2 | E109: 0.3 | F109: 13.8 | G109: 66.1 | H109: 0.05 | I109: 0.01 | J109: 0 | K109: 0 | L109: 0 | M109: 121 | N109: 37 | O109: 6 | P109: 9.2 | Q109: 24.2 | R109: 0.58 | S109: 0 | T109: 0 | U109: 0
B110: Итого за буфет | C110: 175 | D110: 2.4 | E110: 0.3 | F110: 18.8 | G110: 87 | H110: 0.05 | I110: 0.02 | J110: 0.29 | K110: 0 | L110: 0.87 | M110: 121.95 | N110: 59.67 | O110: 56.25 | P110: 12.62 | Q110: 30.59 | R110: 1.16 | S110: 0.01 | T110: 0.02 | U110: 0.53
B111: Горячий завтрак | C111: 7-11
A112: 54-16з-2020 | B112: Винегрет с растительным маслом | C112: 60 | D112: 0.7 | E112: 5.4 | F112: 4 | G112: 67.1 | H112: 0.02 | I112: 0.02 | J112: 72.89 | K112: 0 | L112: 2.26 | M112: 200.99 | N112: 127.85 | O112: 12.1 | P112: 9.66 | Q112: 21.4 | R112: 0.41 | S112: 7.86 | T112: 0.13 | U112: 11.85
A113: рец.2015г. | B113: Пельмени мясные отварные, полуфабрикат | C113: 180 | D113: 10.34 | E113: 12.175 | F113: 20.34 | G113: 237 | H113: 0.159 | I113: 0 | J113: 0.18 | K113: 0 | L113: 0.491 | M113: 0 | N113: 0 | O113: 79.453 | P113: 10.579 | Q113: 239.018 | R113: 0.01 | S113: 0 | T113: 0 | U113: 0
A114: 54-23гн-2020 | B114: Кофейный напиток с молоком | C114: 200 | D114: 3.9 | E114: 2.9 | F114: 11.2 | G114: 86 | H114: 0.03 | I114: 0.13 | J114: 13.29 | K114: 0 | L114: 0.52 | M114: 38.55 | N114: 183.98 | O114: 148.32 | P114: 30.67 | Q114: 106.79 | R114: 1.06 | S114: 9 | T114: 1.76 | U114: 20
A115: Пром. | B115: Хлеб пшеничный | C115: 30 | D115: 2.3 | E115: 0.2 | F115: 14.8 | G115: 70.3 | H115: 0.03 | I115: 0.01 | J115: 0 | K115: 0 | L115: 0 | M115: 149.7 | N115: 27.9 | O115: 6 | P115: 4.2 | Q115: 19.5 | R115: 0.33 | S115: 0.96 | T115: 1.8 | U115: 4.35
A116: Пром. | B116: Хлеб ржаной | C116: 20 | D116: 1.3 | E116: 0.2 | F116: 6.7 | G116: 34.2 | H116: 0.04 | I116: 0.02 | J116: 0 | K116: 0 | L116: 0 | M116: 122 | N116: 49 | O116: 7 | P116: 9.4 | Q116: 31.6 | R116: 0.78 | S116: 0 | T116: 6.18 | U116: 0
B117: Итого за Завтрак | C117: =SUM(C112:C116) -> 490 | D117: =SUM(D112:D116) -> 18.54 | E117: 20.875 | F117: 57.04 | G117: 494.6 | H117: 0.279 | I117: 0.18 | J117: 86.36 | K117: 0 | L117: 3.271 | M117: 511.24 | N117: 388.73 | O117: 252.873 | P117: 64.509 | Q117: 418.308 | R117: 2.59 | S117: 17.82 | T117: 9.87 | U117: 36.2
B118: Итого за день | C118: =C117+C110 -> 665 | D118: =D117+D110 -> 20.94 | E118: 21.175 | F118: 75.84 | G118: 581.6 | H118: 0.329 | I118: 0.2 | J118: 86.65 | K118: 0 | L118: 4.141 | M118: 633.19 | N118: 448.4 | O118: 309.123 | P118: 77.129 | Q118: 448.898 | R118: 3.75 | S118: 17.83 | T118: 9.89 | U118: 36.73
A120: 7 день, 2 неделя
A121: № рецептуры | B121: Прием пищи, наименование блюда | C121: Масса | D121: Пищевые вещества | G121: Энергетическая ценность | H121: Витамины | M121: Минеральные вещества
D122: Белки | E122: Жиры | F122: Углеводы | H122: B1 | I122: B2 | J122: A | K122: D | L122: C | M122: Na | N122: K | O122: Ca | P122: Mg | Q122: P | R122: Fe | S122: I | T122: Se | U122: F
C123: г | D123: г | E123: г | F123: г | G123: ккал | H123: мг | I123: мг | J123: мкг рет.экв | K123: мкг | L123: мг | M123: мг | N123: мг | O123: мг | P123: мг | Q123: мг | R123: мг | S123: мкг | T123: мкг | U123: мкг
B124: Понедельник, 2 неделя
B125: Буфет | C125: 7-11
A126: 54-21гн-2020 | B126: Какао с молоком | C126: 150 | D126: 3.5 | E126: 2.6 | F126: 9.4 | G126: 75.3 | H126: 0.03 | I126: 0.12 | J126: 12.94 | K126: 0 | L126: 0.51 | M126: 37.46 | N126: 165.25 | O126: 125.76 | P126: 25.74 | Q126: 97.71 | R126: 0.82 | S126: 8.78 | T126: 1.72 | U126: 28.69
A127: Пром. | B127: Сушка простая | C127: 20 | D127: 2.2 | E127: 0.3 | F127: 13.8 | G127: 66.1 | H127: 0.05 | I127: 0.01 | J127: 0 | K127: 0 | L127: 0 | M127: 121 | N127: 37 | O127: 6 | P127: 9.2 | Q127: 24.2 | R127: 0.58 | S127: 0 | T127: 0 | U127: 0
B128: Итого за буфет | C128: 170 | D128: 5.7 | E128: 2.9 | F128: 23.2 | G128: 141.4 | H128: 0.08 | I128: 0.13 | J128: 12.94 | K128: 0 | L128: 0.51 | M128: 158.46 | N128: 202.25 | O128: 131.76 | P128: 34.94 | Q128: 121.91 | R128: 1.4 | S128: 8.78 | T128: 1.72 | U128: 28.69
B129: Горячий завтрак | C129: 7-11
A130: 54-7з-2020 | B130: Салат из белокочанной капусты с растительным маслом | C130: 60 | D130: 1.5 | E130: 6.1 | F130: 6.2 | G130: 85.8 | H130: 0.03 | I130: 0.04 | J130: 122.25 | K130: 0 | L130: 34.78 | M130: 88.69 | N130: 247.73 | O130: 40.39 | P130: 15.18 | Q130: 30.31 | R130: 0.55 | S130: 10.73 | T130: 0.26 | U130: 12.66
A131: 54-4г-2020 | B131: Каша гречневая рассыпчатая | C131: 150 | D131: 8.2 | E131: 6.3 | F131: 35.9 | G131: 233.7 | H131: 0.21 | I131: 0.12 | J131: 19.19 | K131: 0.09 | L131: 0 | M131: 149.45 | N131: 219.36 | O131: 46.62 | P131: 120.16 | Q131: 180.99 | R131: 4.05 | S131: 22.28 | T131: 3.52 | U131: 16.06
A132: ном.рец №608 | B132: Котлета мясная Любительская, полуфабрикат в соусе | C132: 70/30 | D132: 10.04 | E132: 12.79 | F132: 8.12 | G132: 187.9 | H132: 0 | I132: 0 | J132: 38.45 | K132: 0.01 | L132: 1.15 | M132: 3 | N132: 43 | O132: 45.75 | P132: 35.13 | Q132: 173.38 | R132: 1.6 | S132: 0 | T132: 0 | U132: 0
A133: 54-2гн-2020 | B133: Чай с сахаром | C133: 200 | D133: 0.2 | E133: 0 | F133: 6.4 | G133: 26.8 | H133: 0 | I133: 0.01 | J133: 0.3 | K133: 0 | L133: 0.04 | M133: 0.68 | N133: 20.76 | O133: 66.08 | P133: 3.83 | Q133: 7.18 | R133: 0.73 | S133: 0 | T133: 0 | U133: 0
A134: Пром. | B134: Хлеб пшеничный | C134: 30 | D134: 2.3 | E134: 0.2 | F134: 14.8 | G134: 70.3 | H134: 0.03 | I134: 0.01 | J134: 0 | K134: 0 | L134: 0 | M134: 149.7 | N134: 27.9 | O134: 6 | P134: 4.2 | Q134: 19.5 | R134: 0.33 | S134: 0.96 | T134: 1.8 | U134: 4.35
A135: Пром. | B135: Хлеб ржаной | C135: 20 | D135: 1.3 | E135: 0.2 | F135: 6.7 | G135: 34.2 | H135: 0.04 | I135: 0.02 | J135: 0 | K135: 0 | L135: 0 | M135: 122 | N135: 49 | O135: 7 | P135: 9.4 | Q135: 31.6 | R135: 0.78 | S135: 0 | T135: 6.18 | U135: 0
B136: Итого за Завтрак | C136: 560 | D136: =SUM(D130:D135) -> 23.54 | E136: 25.59 | F136: 78.12 | G136: 638.7 | H136: 0.31 | I136: 0.2 | J136: 180.19 | K136: 0.1 | L136: 35.97 | M136: 513.52 | N136: 607.75 | O136: 211.84 | P136: 187.9 | Q136: 442.96 | R136: 8.04 | S136: 33.97 | T136: 11.76 | U136: 33.07
B137: Итого за день | C137: =C136+C128 -> 730 | D137: 29.24 | E137: 28.49 | F137: 101.32 | G137: 780.1 | H137: 0.39 | I137: 0.33 | J137: 193.13 | K137: 0.1 | L137: 36.48 | M137: 671.98 | N137: 810 | O137: 343.6 | P137: 222.84 | Q137: 564.87 | R137: 9.44 | S137: 42.75 | T137: 13.48 | U137: 61.76
A139: 8 день, 2 неделя
A140: № рецептуры | B140: Прием пищи, наименование блюда | C140: Масса | D140: Пищевые вещества | G140: Энергетическая ценность | H140: Витамины | M140: Минеральные вещества
D141: Белки | E141: Жиры | F141: Углеводы | H141: B1 | I141: B2 | J141: A | K141: D | L141: C | M141: Na | N141: K | O141: Ca | P141: Mg | Q141: P | R141: Fe | S141: I | T141: Se | U141: F
C142: г | D142: г | E142: г | F142: г | G142: ккал | H142: мг | I142: мг | J142: мкг рет.экв | K142: мкг | L142: мг | M142: мг | N142: мг | O142: мг | P142: мг | Q142: мг | R142: мг | S142: мкг | T142: мкг | U142: мкг
B143: Вторник, 2 неделя
B144: Буфет | C144: 7-11
A145: 54-13к-2020 | B145: Каша вязкая молочная пшеничная | C145: 150 | D145: 6.1 | E145: 6.9 | F145: 29 | G145: 202.7 | H145: 0.1 | I145: 0.13 | J145: 30.74 | K145: 0.1 | L145: 0.41 | M145: 256.57 | N145: 169.91 | O145: 113.68 | P145: 29.4 | Q145: 154.74 | R145: 1.64 | S145: 37.16 | T145: 24.8 | U145: 16.11
A146: 54-1гн-2020 | B146: Чай без сахара | C146: 150 | D146: 0.1 | E146: 0 | F146: 0 | G146: 1.1 | H146: 0 | I146: 0.01 | J146: 0.23 | K146: 0 | L146: 0.03 | M146: 0.47 | N146: 15.44 | O146: 49.47 | P146: 2.87 | Q146: 5.38 | R146: 0.54 | S146: 0 | T146: 0 | U146: 0
B147: Итого за буфет | C147: 300 | D147: 6.2 | E147: 6.9 | F147: 29 | G147: 203.8 | H147: 0.1 | I147: 0.14 | J147: 30.97 | K147: 0.1 | L147: 0.44 | M147: 257.04 | N147: 185.35 | O147: 163.15 | P147: 32.27 | Q147: 160.12 | R147: 2.18 | S147: 37.16 | T147: 24.8 | U147: 16.11
B148: Горячий завтрак | C148: 7-11
A149: 54-13з-2020 | B149: Салат из свеклы отварной с растительным маслом | C149: 60 | D149: 0.8 | E149: 2.7 | F149: 4.6 | G149: 45.6 | H149: 0.01 | I149: 0.02 | J149: 0.68 | K149: 0 | L149: 2.28 | M149: 78.77 | N149: 136.27 | O149: 19.21 | P149: 10.95 | Q149: 21.51 | R149: 0.7 | S149: 11.99 | T149: 0.35 | U149: 11.4
A150: 54-12м-2020 | B150: Плов с курицей | C150: 150/50 | D150: 18.5 | E150: 7.4 | F150: 33.1 | G150: 273.2 | H150: 0.07 | I150: 0.06 | J150: 144.87 | K150: 0 | L150: 2.08 | M150: 272.9 | N150: 287.76 | O150: 72.64 | P150: 78.85 | Q150: 174.89 | R150: 1.53 | S150: 37.41 | T150: 19.63 | U150: 118.1
A151: 54-3гн-2020 | B151: Чай с лимоном и сахаром | C151: 207 | D151: 0.2 | E151: 0.1 | F151: 6.6 | G151: 27.9 | H151: 0 | I151: 0.01 | J151: 0.38 | K151: 0 | L151: 1.16 | M151: 1.26 | N151: 30.23 | O151: 67 | P151: 4.56 | Q151: 8.52 | R151: 0.77 | S151: 0.01 | T151: 0.02 | U151: 0.7
A152: 54-10в-2020 | B152: Булочка ванильная | C152: 50 | D152: 3.9 | E152: 3.37 | F152: 25.37 | G152: 147.4 | H152: 0.04 | I152: 0.02 | J152: 15.93 | K152: 0.12 | L152: 0 | M152: 200 | N152: 41 | O152: 14 | P152: 5 | Q152: 33 | R152: 0.5 | S152: 27.814 | T152: 2.6 | U152: 9.19
A153: Пром. | B153: Хлеб пшеничный | C153: 30 | D153: 2.3 | E153: 0.2 | F153: 14.8 | G153: 70.3 | H153: 0.03 | I153: 0.01 | J153: 0 | K153: 0 | L153: 0 | M153: 149.7 | N153: 27.9 | O153: 6 | P153: 4.2 | Q153: 19.5 | R153: 0.33 | S153: 0.96 | T153: 1.8 | U153: 4.35
A154: Пром. | B154: Хлеб ржаной | C154: 20 | D154: 1.3 | E154: 0.2 | F154: 6.7 | G154: 34.2 | H154: 0.04 | I154: 0.02 | J154: 0 | K154: 0 | L154: 0 | M154: 122 | N154: 49 | O154: 7 | P154: 9.4 | Q154: 31.6 | R154: 0.78 | S154: 0 | T154: 6.18 | U154: 0
B155: Итого за Завтрак | C155: 567 | D155: =SUM(D149:D154) -> 27 | E155: =SUM(E149:E154) -> 13.97 | F155: 91.17 | G155: 598.6 | H155: 0.19 | I155: 0.14 | J155: 161.86 | K155: 0.12 | L155: 5.52 | M155: 824.63 | N155: 572.16 | O155: 185.85 | P155: 112.96 | Q155: 289.02 | R155: 4.61 | S155: 78.184 | T155: 30.58 | U155: 143.74
B156: Итого за день | C156: =C155+C147 -> 867 | D156: 33.2 | E156: 20.87 | F156: 120.17 | G156: 802.4 | H156: 0.29 | I156: 0.28 | J156: 192.83 | K156: 0.22 | L156: 5.96 | M156: 1081.67 | N156: 757.51 | O156: 349 | P156: 145.23 | Q156: 449.14 | R156: 6.79 | S156: 115.344 | T156: 55.38 | U156: 159.85
A158: 9 день, 2 неделя
A159: № рецептуры | B159: Прием пищи, наименование блюда | C159: Масса | D159: Пищевые вещества | G159: Энергетическая ценность | H159: Витамины | M159: Минеральные вещества
D160: Белки | E160: Жиры | F160: Углеводы | H160: B1 | I160: B2 | J160: A | K160: D | L160: C | M160: Na | N160: K | O160: Ca | P160: Mg | Q160: P | R160: Fe | S160: I | T160: Se | U160: F
C161: г | D161: г | E161: г | F161: г | G161: ккал | H161: мг | I161: мг | J161: мкг рет.экв | K161: мкг | L161: мг | M161: мг | N161: мг | O161: мг | P161: мг | Q161: мг | R161: мг | S161: мкг | T161: мкг | U161: мкг
B162: Среда, 2 неделя
B163: Буфет | C163: 7-11
A164: 54-2гн-2020 | B164: Чай с сахаром | C164: 150 | D164: 0.1 | E164: 0 | F164: 4.8 | G164: 20.1 | H164: 0 | I164: 0.01 | J164: 0.23 | K164: 0 | L164: 0.03 | M164: 0.51 | N164: 15.57 | O164: 49.56 | P164: 2.87 | Q164: 5.38 | R164: 0.55 | S164: 0 | T164: 0 | U164: 0
A165: Пром. | B165: Сушка простая | C165: 20 | D165: 2.2 | E165: 0.3 | F165: 13.8 | G165: 66.1 | H165: 0.05 | I165: 0.01 | J165: 0 | K165: 0 | L165: 0 | M165: 121 | N165: 37 | O165: 6 | P165: 9.2 | Q165: 24.2 | R165: 0.58 | S165: 0 | T165: 0 | U165: 0
B166: Итого за буфет | C166: 170 | D166: 2.3 | E166: 0.3 | F166: 18.6 | G166: 86.2 | H166: 0.05 | I166: 0.02 | J166: 0.23 | K166: 0 | L166: 0.03 | M166: 121.51 | N166: 52.57 | O166: 55.56 | P166: 12.07 | Q166: 29.58 | R166: 1.13 | S166: 0 | T166: 0 | U166: 0
B167: Горячий завтрак | C167: 7-11
A168: 54-16з-2020 | B168: Винегрет с растительным маслом | C168: 60 | D168: 0.7 | E168: 5.4 | F168: 4 | G168: 67.1 | H168: 0.02 | I168: 0.02 | J168: 72.89 | K168: 0 | L168: 2.26 | M168: 200.99 | N168: 127.85 | O168: 12.1 | P168: 9.66 | Q168: 21.4 | R168: 0.41 | S168: 7.86 | T168: 0.13 | U168: 11.85
A169: 54-11г-2020 | B169: Картофельное пюре | C169: 150 | D169: 3.1 | E169: 5.3 | F169: 19.8 | G169: 139.4 | H169: 0.12 | I169: 0.11 | J169: 23.8 | K169: 0.09 | L169: 10.2 | M169: 161.78 | N169: 624.83 | O169: 39.49 | P169: 28.23 | Q169: 84.47 | R169: 1.03 | S169: 28.46 | T169: 0.78 | U169: 42.79
A170: 54-7р-2020 | B170: Рыба припущенная в молоко | C170: 100 | D170: 13.09 | E170: 7.52 | F170: 2.89 | G170: 131.6 | H170: 0.08 | I170: 0.11 | J170: 9.02 | K170: 0.16 | L170: 1 | M170: 111 | N170: 347 | O170: 68 | P170: 44 | Q170: 202 | R170: 0.7 | S170: 133.48 | T170: 11.9 | U170: 572.6
A171: 54-21гн-2020 | B171: Какао с молоком | C171: 200 | D171: 4.7 | E171: 3.5 | F171: 12.5 | G171: 100.4 | H171: 0.04 | I171: 0.16 | J171: 17.25 | K171: 0 | L171: 0.68 | M171: 49.95 | N171: 220.33 | O171: 167.68 | P171: 34.32 | Q171: 130.28 | R171: 1.09 | S171: 11.7 | T171: 2.29 | U171: 38.25
A172: Пром. | B172: Хлеб пшеничный | C172: 30 | D172: 2.3 | E172: 0.2 | F172: 14.8 | G172: 70.3 | H172: 0.03 | I172: 0.01 | J172: 0 | K172: 0 | L172: 0 | M172: 149.7 | N172: 27.9 | O172: 6 | P172: 4.2 | Q172: 19.5 | R172: 0.33 | S172: 0.96 | T172: 1.8 | U172: 4.35
A173: Пром. | B173: Хлеб ржаной | C173: 20 | D173: 1.3 | E173: 0.2 | F173: 6.7 | G173: 34.2 | H173: 0.04 | I173: 0.02 | J173: 0 | K173: 0 | L173: 0 | M173: 122 | N173: 49 | O173: 7 | P173: 9.4 | Q173: 31.6 | R173: 0.78 | S173: 0 | T173: 6.18 | U173: 0
A174: Пром. | B174: Яблоко | C174: 100 | D174: 0.4 | E174: 0.4 | F174: 9.8 | G174: 44.4 | H174: 0.03 | I174: 0.02 | J174: 5 | K174: 0 | L174: 10 | M174: 26 | N174: 278 | O174: 16 | P174: 9 | Q174: 11 | R174: 2.2 | S174: 2 | T174: 0.3 | U174: 8
B175: Итого за Завтрак | C175: =SUM(C168:C174) -> 660 | D175: =SUM(D168:D174) -> 25.59 | E175: 22.52 | F175: 70.49 | G175: 587.4 | H175: 0.36 | I175: 0.45 | J175: 127.96 | K175: 0.25 | L175: 24.14 | M175: 821.42 | N175: 1674.91 | O175: 316.27 | P175: 138.81 | Q175: 500.25 | R175: 6.54 | S175: 184.46 | T175: 23.38 | U175: 677.84
B176: Итого за день | C176: =C175+C166 -> 830 | D176: 27.89 | E176: 22.82 | F176: 89.09 | G176: 673.6 | H176: 0.41 | I176: 0.47 | J176: 128.19 | K176: 0.25 | L176: 24.17 | M176: 942.93 | N176: 1727.48 | O176: 371.83 | P176: 150.88 | Q176: 529.83 | R176: 7.67 | S176: 184.46 | T176: 23.38 | U176: 677.84
A178: 10 день, 2 неделя
A179: № рецептуры | B179: Прием пищи, наименование блюда | C179: Масса | D179: Пищевые вещества | G179: Энергетическая ценность | H179: Витамины | M179: Минеральные вещества
D180: Белки | E180: Жиры | F180: Углеводы | H180: B1 | I180: B2 | J180: A | K180: D | L180: C | M180: Na | N180: K | O180: Ca | P180: Mg | Q180: P | R180: Fe | S180: I | T180: Se | U180: F
C181: г | D181: г | E181: г | F181: г | G181: ккал | H181: мг | I181: мг | J181: мкг рет.экв | K181: мкг | L181: мг | M181: мг | N181: мг | O181: мг | P181: мг | Q181: мг | R181: мг | S181: мкг | T181: мкг | U181: мкг
B182: Четверг, 2 неделя
B183: Буфет | C183: 7-11
A184: 54-6к-2020 | B184: Каша вязкая молочная пшенная | C184: 150 | D184: 6.2 | E184: 7.6 | F184: 28.2 | G184: 206.2 | H184: 0.14 | I184: 0.11 | J184: 31.22 | K184: 0.1 | L184: 0.41 | M184: 254.01 | N184: 162.17 | O184: 107.34 | P184: 36.72 | Q184: 139.54 | R184: 0.99 | S184: 38.71 | T184: 2.33 | U184: 26.31
A185: 54-3гн-2020 | B185: Чай с лимоном и сахаром | C185: 155 | D185: 0.2 | E185: 0 | F185: 5 | G185: 20.9 | H185: 0 | I185: 0.01 | J185: 0.29 | K185: 0 | L185: 0.87 | M185: 0.95 | N185: 22.67 | O185: 50.25 | P185: 3.42 | Q185: 6.39 | R185: 0.58 | S185: 0.01 | T185: 0.02 | U185: 0.53
B186: Итого за буфет | C186: 305 | D186: 6.4 | E186: 7.6 | F186: 33.2 | G186: 227.1 | H186: 0.14 | I186: 0.12 | J186: 31.51 | K186: 0.1 | L186: 1.28 | M186: 254.96 | N186: 184.84 | O186: 157.59 | P186: 40.14 | Q186: 145.93 | R186: 1.57 | S186: 38.72 | T186: 2.35 | U186: 26.84
B187: Горячий завтрак | C187: 7-11
A188: 54-11з-2020 | B188: Салат из моркови с яблоками с растительным маслом | C188: 60 | D188: 0.5 | E188: 6.1 | F188: 4.3 | G188: 74.3 | H188: 0.03 | I188: 0.03 | J188: 732.9 | K188: 0 | L188: 3.63 | M188: 89.79 | N188: 123.26 | O188: 13.5 | P188: 15.57 | Q188: 22.38 | R188: 0.66 | S188: 10.19 | T188: 0.09 | U188: 21.57
A189: 54-1г-2020 | B189: Макароны отварные | C189: 150 | D189: 5.3 | E189: 4.9 | F189: 32.8 | G189: 196.8 | H189: 0.06 | I189: 0.02 | J189: 18.36 | K189: 0.09 | L189: 0 | M189: 149.04 | N189: 53.8 | O189: 105.83 | P189: 7.19 | Q189: 40.7 | R189: 0.73 | S189: 20.77 | T189: 0.06 | U189: 11.92
A190: ном.рец №174 | B190: Тефтели мясные из говядины, полуфабрикат в соусе | C190: 80/30 | D190: 10.81 | E190: 10.4 | F190: 8.42 | G190: 168.9 | H190: 0 | I190: 0 | J190: 38.45 | K190: 0.01 | L190: 1.79 | M190: 3 | N190: 43 | O190: 45.75 | P190: 35.13 | Q190: 109 | R190: 1.6 | S190: 0 | T190: 0 | U190: 0
A191: 54-21гн-2020 | B191: Кофейный напиток с молоком | C191: 200 | D191: 3.9 | E191: 2.9 | F191: 11.2 | G191: 86 | H191: 0.03 | I191: 0.13 | J191: 13.29 | K191: 0 | L191: 0.52 | M191: 38.55 | N191: 183.98 | O191: 148.32 | P191: 30.67 | Q191: 106.79 | R191: 1.06 | S191: 9 | T191: 1.76 | U191: 20
A192: Пром. | B192: Хлеб пшеничный | C192: 30 | D192: 2.3 | E192: 0.2 | F192: 14.8 | G192: 70.3 | H192: 0.03 | I192: 0.01 | J192: 0 | K192: 0 | L192: 0 | M192: 149.7 | N192: 27.9 | O192: 6 | P192: 4.2 | Q192: 19.5 | R192: 0.33 | S192: 0.96 | T192: 1.8 | U192: 4.35
A193: Пром. | B193: Хлеб ржаной | C193: 20 | D193: 1.3 | E193: 0.2 | F193: 6.7 | G193: 34.2 | H193: 0.04 | I193: 0.02 | J193: 0 | K193: 0 | L193: 0 | M193: 122 | N193: 49 | O193: 7 | P193: 9.4 | Q193: 31.6 | R193: 0.78 | S193: 0 | T193: 6.18 | U193: 0
B194: Итого за Завтрак | C194: 570 | D194: =SUM(D188:D193) -> 24.11 | E194: 24.7 | F194: 78.22 | G194: 630.5 | H194: 0.19 | I194: 0.21 | J194: 803 | K194: 0.1 | L194: 5.94 | M194: 552.08 | N194: 480.94 | O194: 326.4 | P194: 102.16 | Q194: 329.97 | R194: 5.16 | S194: 40.92 | T194: 9.89 | U194: 57.84
B195: Итого за день | C195: =C194+C186 -> 875 | D195: =D194+D186 -> 30.51 | E195: 32.3 | F195: 111.42 | G195: 857.6 | H195: 0.33 | I195: 0.33 | J195: 834.51 | K195: 0.2 | L195: 7.22 | M195: 807.04 | N195: 665.78 | O195: 483.99 | P195: 142.3 | Q195: 475.9 | R195: 6.73 | S195: 79.64 | T195: 12.24 | U195: 84.68
A197: 11 день, 2 неделя
A198: № рецептуры | B198: Прием пищи, наименование блюда | C198: Масса | D198: Пищевые вещества | G198: Энергетическая ценность | H198: Витамины | M198: Минеральные вещества
D199: Белки | E199: Жиры | F199: Углеводы | H199: B1 | I199: B2 | J199: A | K199: D | L199: C | M199: Na | N199: K | O199: Ca | P199: Mg | Q199: P | R199: Fe | S199: I | T199: Se | U199: F
C200: г | D200: г | E200: г | F200: г | G200: ккал | H200: мг | I200: мг | J200: мкг рет.экв | K200: мкг | L200: мг | M200: мг | N200: мг | O200: мг | P200: мг | Q200: мг | R200: мг | S200: мкг | T200: мкг | U200: мкг
B201: Пятница, 2 неделя
B202: Буфет | C202: 7-11
A203: 54-9к-2020 | B203: Каша вязкая молочная овсяная | C203: 150 | D203: 6.4 | E203: 8.4 | F203: 25.7 | G203: 204.6 | H203: 0.15 | I203: 0.13 | J203: 30.15 | K203: 0.1 | L203: 0.39 | M203: 259.99 | N203: 205.54 | O203: 118.23 | P203: 47.12 | Q203: 175.03 | R203: 1.38 | S203: 38.44 | T203: 10.92 | U203: 46.71
A204: 54-2гн-2020 | B204: Чай с сахаром | C204: 150 | D204: 0.1 | E204: 0 | F204: 4.8 | G204: 20.1 | H204: 0 | I204: 0.01 | J204: 0.23 | K204: 0 | L204: 0.03 | M204: 0.51 | N204: 15.57 | O204: 49.56 | P204: 2.87 | Q204: 5.38 | R204: 0.55 | S204: 0 | T204: 0 | U204: 0
B205: Итого за буфет | C205: 300 | D205: 6.5 | E205: 8.4 | F205: 30.5 | G205: 224.7 | H205: 0.15 | I205: 0.14 | J205: 30.38 | K205: 0.1 | L205: 0.42 | M205: 260.5 | N205: 221.11 | O205: 167.79 | P205: 49.99 | Q205: 180.41 | R205: 1.93 | S205: 38.44 | T205: 10.92 | U205: 46.71
B206: Горячий завтрак | C206: 7-11
A207: 54-13з-2020 | B207: Салат из свеклы отварной с растительным маслом | C207: 60 | D207: 0.8 | E207: 2.7 | F207: 4.6 | G207: 45.6 | H207: 0.01 | I207: 0.02 | J207: 0.68 | K207: 0 | L207: 2.28 | M207: 78.77 | N207: 136.27 | O207: 19.21 | P207: 10.95 | Q207: 21.51 | R207: 0.7 | S207: 11.99 | T207: 0.35 | U207: 11.4
A208: 54-6г-2020 | B208: Рис отварной | C208: 150 | D208: 3.6 | E208: 4.8 | F208: 36.4 | G208: 203.5 | H208: 0.03 | I208: 0.02 | J208: 18.36 | K208: 0.09 | L208: 0 | M208: 152.8 | N208: 46.55 | O208: 106.65 | P208: 23.59 | Q208: 72.57 | R208: 0.49 | S208: 20.76 | T208: 7.24 | U208: 27.19
A209: 54-2м-2020 | B209: Гуляш из говядины | C209: 60/40 | D209: 13.76 | E209: 13.91 | F209: 3.9 | G209: 195.8 | H209: 0.04 | I209: 0.12 | J209: 25.46 | K209: 0.07 | L209: 1 | M209: 122 | N209: 322 | O209: 55 | P209: 23 | Q209: 166 | R209: 2.5 | S209: 17.06 | T209: 0.4 | U209: 62.71
A210: 54-4гн-2020 | B210: Компот из кураги | C210: 200 | D210: 0.98 | E210: 0.05 | F210: 15.64 | G210: 66.9 | H210: 0.01 | I210: 0.03 | J210: 69.96 | K210: 0 | L210: 0 | M210: 3 | N210: 285 | O210: 90 | P210: 18 | Q210: 25 | R210: 0.6 | S210: 0 | T210: 0 | U210: 0
A211: Пром. | B211: Хлеб ржаной | C211: 20 | D211: 1.3 | E211: 0.2 | F211: 6.7 | G211: 34.2 | H211: 0.04 | I211: 0.02 | J211: 0 | K211: 0 | L211: 0 | M211: 122 | N211: 49 | O211: 7 | P211: 9.4 | Q211: 31.6 | R211: 0.78 | S211: 0 | T211: 6.18 | U211: 0
A212: Пром. | B212: Хлеб пшеничный | C212: 30 | D212: 2.3 | E212: 0.2 | F212: 14.8 | G212: 70.3 | H212: 0.03 | I212: 0.01 | J212: 0 | K212: 0 | L212: 0 | M212: 149.7 | N212: 27.9 | O212: 6 | P212: 4.2 | Q212: 19.5 | R212: 0.33 | S212: 0.96 | T212: 1.8 | U212: 4.35
B213: Итого за Завтрак | C213: 560 | D213: =SUM(D207:D212) -> 22.74 | E213: 21.86 | F213: 82.04 | G213: 616.3 | H213: 0.16 | I213: 0.22 | J213: 114.46 | K213: 0.16 | L213: 3.28 | M213: 628.27 | N213: 866.72 | O213: 283.86 | P213: 89.14 | Q213: 336.18 | R213: 5.4 | S213: 50.77 | T213: 15.97 | U213: 105.65
... 29 more rows

Sheet овз 11-18 лет
A1: СОГЛАСОВАНО | O1: УТВЕРЖДЕНО
A2: ______________________________________ | O2: ООО "Крепыш"
A3: __________________________ | O3: _______________________Ефремов В.Ю.
A6: Меню для организации питания детей с ОВЗ в возрасте от 11 до 18 лет в образовательных учреждениях Мензелинского муниципального района на 2 полугодие 2021-2022 учебный год.
A8: 1 день, 1 неделя
A9: № рецептуры | B9: Прием пищи, наименование блюда | C9: Масса | D9: Пищевые вещества | G9: Энергетическая ценность | H9: Витамины | M9: Минеральные вещества
D10: Белки | E10: Жиры | F10: Углеводы | H10: B1 | I10: B2 | J10: A | K10: D | L10: C | M10: Na | N10: K | O10: Ca | P10: Mg | Q10: P | R10: Fe | S10: I | T10: Se | U10: F
C11: г | D11: г | E11: г | F11: г | G11: ккал | H11: мг | I11: мг | J11: мкг рет.экв | K11: мкг | L11: мг | M11: мг | N11: мг | O11: мг | P11: мг | Q11: мг | R11: мг | S11: мкг | T11: мкг | U11: мкг
B12: Понедельник, 1 неделя
B13: Буфет | C13: 11-18
A14: 54-3гн-2020 | B14: Чай с лимоном и сахаром | C14: 155 | D14: 0.2 | E14: 0 | F14: 5 | G14: 20.9 | H14: 0 | I14: 0.01 | J14: 0.29 | K14: 0 | L14: 0.87 | M14: 0.95 | N14: 22.67 | O14: 50.25 | P14: 3.42 | Q14: 6.39 | R14: 0.58 | S14: 0.01 | T14: 0.02 | U14: 0.53
A15: Пром. | B15: Сушка простая | C15: 20 | D15: 2.2 | E15: 0.3 | F15: 13.8 | G15: 66.1 | H15: 0.05 | I15: 0.01 | J15: 0 | K15: 0 | L15: 0 | M15: 121 | N15: 37 | O15: 6 | P15: 9.2 | Q15: 24.2 | R15: 0.58 | S15: 0 | T15: 0 | U15: 0
B16: Итого за буфет | C16: 175 | D16: 2.4 | E16: 0.3 | F16: 18.8 | G16: 87 | H16: 0.05 | I16: 0.02 | J16: 0.29 | K16: 0 | L16: 0.87 | M16: 121.95 | N16: 59.67 | O16: 56.25 | P16: 12.62 | Q16: 30.59 | R16: 1.16 | S16: 0.01 | T16: 0.02 | U16: 0.53
B17: Горячий завтрак | C17: 11-18
A18: 54-11з-2020 | B18: Салат из моркови с яблоками с растительным маслом | C18: 60 | D18: 0.5 | E18: 6.1 | F18: 4.3 | G18: 74.3 | H18: 0.03 | I18: 0.03 | J18: 732.9 | K18: 0 | L18: 3.63 | M18: 89.79 | N18: 123.26 | O18: 13.5 | P18: 15.57 | Q18: 22.38 | R18: 0.66 | S18: 10.19 | T18: 0.09 | U18: 21.57
A19: 54-4г-2020 | B19: Каша гречневая рассыпчатая | C19: 180 | D19: 9.87 | E19: 7.61 | F19: 43.12 | G19: 280.5 | H19: 0.26 | I19: 0.14 | J19: 23.02 | K19: 0.11 | L19: 0 | M19: 180 | N19: 263 | O19: 57 | P19: 144 | Q19: 217 | R19: 4.8 | S19: 26.73 | T19: 4.3 | U19: 19.27
A20: ном.рец №174 | B20: Тефтели мясные из говядины, полуфабрикат в соусе | C20: 80/30 | D20: 10.81 | E20: 10.4 | F20: 8.42 | G20: 168.9 | H20: 0 | I20: 0 | J20: 38.45 | K20: 0.01 | L20: 1.79 | M20: 3 | N20: 43 | O20: 45.75 | P20: 35.13 | Q20: 109 | R20: 1.6 | S20: 0 | T20: 0 | U20: 0
A21: 54-4гн-2020 | B21: Чай с молоком и сахаром | C21: 200 | D21: 1.6 | E21: 1.1 | F21: 8.6 | G21: 50.9 | H21: 0.01 | I21: 0.07 | J21: 6.9 | K21: 0 | L21: 0.3 | M21: 19.68 | N21: 81.35 | O21: 103.48 | P21: 9.92 | Q21: 46.33 | R21: 0.78 | S21: 4.5 | T21: 0.88 | U21: 10
A22: Пром. | B22: Хлеб пшеничный | C22: 30 | D22: 2.3 | E22: 0.2 | F22: 14.8 | G22: 70.3 | H22: 0.03 | I22: 0.01 | J22: 0 | K22: 0 | L22: 0 | M22: 149.7 | N22: 27.9 | O22: 6 | P22: 4.2 | Q22: 19.5 | R22: 0.33 | S22: 0.96 | T22: 1.8 | U22: 4.35
A23: Пром. | B23: Хлеб ржаной | C23: 20 | D23: 1.3 | E23: 0.2 | F23: 6.7 | G23: 34.2 | H23: 0.04 | I23: 0.02 | J23: 0 | K23: 0 | L23: 0 | M23: 122 | N23: 49 | O23: 7 | P23: 9.4 | Q23: 31.6 | R23: 0.78 | S23: 0 | T23: 6.18 | U23: 0
B24: Итого за Завтрак | C24: 600 | D24: =SUM(D18:D23) -> 26.38 | E24: 25.61 | F24: 85.94 | G24: 679.1 | H24: 0.37 | I24: 0.27 | J24: 801.27 | K24: 0.12 | L24: 5.72 | M24: 564.17 | N24: 587.51 | O24: 232.73 | P24: 218.22 | Q24: 445.81 | R24: 8.95 | S24: 42.38 | T24: 13.25 | U24: 55.19
B25: Итого за день | C25: =C24+C16 -> 775 | D25: 28.78 | E25: 25.91 | F25: 104.74 | G25: 766.1 | H25: 0.42 | I25: 0.29 | J25: 801.56 | K25: 0.12 | L25: 6.59 | M25: 686.12 | N25: 647.18 | O25: 288.98 | P25: 230.84 | Q25: 476.4 | R25: 10.11 | S25: 42.39 | T25: 13.27 | U25: 55.72
A27: 2 день, 1 неделя
A28: № рецептуры | B28: Прием пищи, наименование блюда | C28: Масса | D28: Пищевые вещества | G28: Энергетическая ценность | H28: Витамины | M28: Минеральные вещества
D29: Белки | E29: Жиры | F29: Углеводы | H29: B1 | I29: B2 | J29: A | K29: D | L29: C | M29: Na | N29: K | O29: Ca | P29: Mg | Q29: P | R29: Fe | S29: I | T29: Se | U29: F
C30: г | D30: г | E30: г | F30: г | G30: ккал | H30: мг | I30: мг | J30: мкг рет.экв | K30: мкг | L30: мг | M30: мг | N30: мг | O30: мг | P30: мг | Q30: мг | R30: мг | S30: мкг | T30: мкг | U30: мкг
B31: Вторник, 1 неделя
B32: Буфет | C32: 11-18
A33: 54-13к-2020 | B33: Каша вязкая молочная пшеничная | C33: 150 | D33: 6.1 | E33: 6.9 | F33: 29 | G33: 202.7 | H33: 0.1 | I33: 0.13 | J33: 30.74 | K33: 0.1 | L33: 0.41 | M33: 256.57 | N33: 169.91 | O33: 113.68 | P33: 29.4 | Q33: 154.74 | R33: 1.64 | S33: 37.16 | T33: 24.8 | U33: 16.11
A34: 54-1гн-2020 | B34: Чай без сахара | C34: 150 | D34: 0.1 | E34: 0 | F34: 0 | G34: 1.1 | H34: 0 | I34: 0.01 | J34: 0.23 | K34: 0 | L34: 0.03 | M34: 0.47 | N34: 15.44 | O34: 49.47 | P34: 2.87 | Q34: 5.38 | R34: 0.54 | S34: 0 | T34: 0 | U34: 0
B35: Итого за буфет | C35: 300 | D35: 6.2 | E35: 6.9 | F35: 29 | G35: 203.8 | H35: 0.1 | I35: 0.14 | J35: 30.97 | K35: 0.1 | L35: 0.44 | M35: 257.04 | N35: 185.35 | O35: 163.15 | P35: 32.27 | Q35: 160.12 | R35: 2.18 | S35: 37.16 | T35: 24.8 | U35: 16.11
B36: Горячий завтрак | C36: 11-18
A37: 54-7з-2020 | B37: Салат из белокочанной капусты с растительным маслом | C37: 60 | D37: 1.5 | E37: 6.1 | F37: 6.2 | G37: 85.8 | H37: 0.03 | I37: 0.04 | J37: 122.25 | K37: 0 | L37: 34.78 | M37: 88.69 | N37: 247.73 | O37: 40.39 | P37: 15.18 | Q37: 30.31 | R37: 0.55 | S37: 10.73 | T37: 0.26 | U37: 12.66
A38: 54-22м-2020 | B38: Рагу из курицы | C38: 160/60 | D38: 23.05 | E38: 7.74 | F38: 19.27 | G38: 239 | H38: 0.15 | I38: 0.12 | J38: 285.64 | K38: 0 | L38: 13 | M38: 310 | N38: 812 | O38: 34 | P38: 102 | Q38: 213 | R38: 2.3 | S38: 47.26 | T38: 18.7 | U38: 172
A39: 54-21гн-2020 | B39: Какао с молоком | C39: 200 | D39: 4.7 | E39: 3.5 | F39: 12.5 | G39: 100.4 | H39: 0.04 | I39: 0.16 | J39: 17.25 | K39: 0 | L39: 0.68 | M39: 49.95 | N39: 220.33 | O39: 167.68 | P39: 34.32 | Q39: 130.28 | R39: 1.09 | S39: 11.7 | T39: 2.29 | U39: 38.25
A40: 54-10в-2020 | B40: Булочка ванильная | C40: 50 | D40: 3.9 | E40: 3.37 | F40: 25.37 | G40: 147.4 | H40: 0.04 | I40: 0.02 | J40: 15.93 | K40: 0.12 | L40: 0 | M40: 200 | N40: 41 | O40: 14 | P40: 5 | Q40: 33 | R40: 0.5 | S40: 27.814 | T40: 2.6 | U40: 9.19
A41: Пром. | B41: Хлеб пшеничный | C41: 30 | D41: 2.3 | E41: 0.2 | F41: 14.8 | G41: 70.3 | H41: 0.03 | I41: 0.01 | J41: 0 | K41: 0 | L41: 0 | M41: 149.7 | N41: 27.9 | O41: 6 | P41: 4.2 | Q41: 19.5 | R41: 0.33 | S41: 0.96 | T41: 1.8 | U41: 4.35
A42: Пром. | B42: Хлеб ржаной | C42: 20 | D42: 1.3 | E42: 0.2 | F42: 6.7 | G42: 34.2 | H42: 0.04 | I42: 0.02 | J42: 0 | K42: 0 | L42: 0 | M42: 122 | N42: 49 | O42: 7 | P42: 9.4 | Q42: 31.6 | R42: 0.78 | S42: 0 | T42: 6.18 | U42: 0
B43: Итого за Завтрак | C43: 580 | D43: =SUM(D37:D42) -> 36.75 | E43: =SUM(E37:E42) -> 21.11 | F43: 84.84 | G43: 677.1 | H43: 0.33 | I43: 0.37 | J43: 441.07 | K43: 0.12 | L43: 48.46 | M43: 920.34 | N43: 1397.96 | O43: 269.07 | P43: 170.1 | Q43: 457.69 | R43: 5.55 | S43: 98.464 | T43: 31.83 | U43: 236.45
B44: Итого за день | C44: =C43+C35 -> 880 | D44: 42.95 | E44: 28.01 | F44: 113.84 | G44: 880.9 | H44: 0.43 | I44: 0.51 | J44: 472.04 | K44: 0.22 | L44: 48.9 | M44: 1177.38 | N44: 1583.31 | O44: 432.22 | P44: 202.37 | Q44: 617.81 | R44: 7.73 | S44: 135.624 | T44: 56.63 | U44: 252.56
A46: 3 день, 1 неделя
A47: № рецептуры | B47: Прием пищи, наименование блюда | C47: Масса | D47: Пищевые вещества | G47: Энергетическая ценность | H47: Витамины | M47: Минеральные вещества
D48: Белки | E48: Жиры | F48: Углеводы | H48: B1 | I48: B2 | J48: A | K48: D | L48: C | M48: Na | N48: K | O48: Ca | P48: Mg | Q48: P | R48: Fe | S48: I | T48: Se | U48: F
C49: г | D49: г | E49: г | F49: г | G49: ккал | H49: мг | I49: мг | J49: мкг рет.экв | K49: мкг | L49: мг | M49: мг | N49: мг | O49: мг | P49: мг | Q49: мг | R49: мг | S49: мкг | T49: мкг | U49: мкг
B50: Среда, 1 неделя
B51: Буфет | C51: 11-18
A52: 54-4гн-2020 | B52: Чай с молоком и сахаром | C52: 150 | D52: 1.2 | E52: 0.9 | F52: 6.5 | G52: 38.2 | H52: 0.01 | I52: 0.05 | J52: 5.18 | K52: 0 | L52: 0.23 | M52: 14.76 | N52: 61.01 | O52: 77.61 | P52: 7.44 | Q52: 34.75 | R52: 0.58 | S52: 3.38 | T52: 0.66 | U52: 7.5
A53: Пром. | B53: Сушка простая | C53: 20 | D53: 2.2 | E53: 0.3 | F53: 13.8 | G53: 66.1 | H53: 0.05 | I53: 0.01 | J53: 0 | K53: 0 | L53: 0 | M53: 121 | N53: 37 | O53: 6 | P53: 9.2 | Q53: 24.2 | R53: 0.58 | S53: 0 | T53: 0 | U53: 0
B54: Итого за буфет | C54: 170 | D54: 3.4 | E54: 1.2 | F54: 20.3 | G54: 104.3 | H54: 0.06 | I54: 0.06 | J54: 5.18 | K54: 0 | L54: 0.23 | M54: 135.76 | N54: 98.01 | O54: 83.61 | P54: 16.64 | Q54: 58.95 | R54: 1.16 | S54: 3.38 | T54: 0.66 | U54: 7.5
B55: Горячий завтрак | C55: 11-18
A56: 54-13з-2020 | B56: Салат из свеклы отварной с растительным маслом | C56: 60 | D56: 0.8 | E56: 2.7 | F56: 4.6 | G56: 45.6 | H56: 0.01 | I56: 0.02 | J56: 0.68 | K56: 0 | L56: 2.28 | M56: 78.77 | N56: 136.27 | O56: 19.21 | P56: 10.95 | Q56: 21.51 | R56: 0.7 | S56: 11.99 | T56: 0.35 | U56: 11.4
A57: 54-1г-2020 | B57: Макароны отварные | C57: 180 | D57: 6.39 | E57: 5.91 | F57: 39.36 | G57: 236.2 | H57: 0.07 | I57: 0.03 | J57: 22.03 | K57: 0.11 | L57: 0 | M57: 179 | N57: 64 | O57: 127 | P57: 9 | Q57: 48 | R57: 0.9 | S57: 24.92 | T57: 0.1 | U57: 14.31
A58: №243 | B58: Сосиски говяжьи отварные, п/ф (2 шт) | C58: 100 | D58: 13.2 | E58: 22.84 | F58: 1.8 | G58: 247.15 | H58: 0 | I58: 0 | J58: 0.08 | K58: 0.01 | L58: 0 | M58: 0 | N58: 0 | O58: 7.44 | P58: 15.51 | Q58: 137.39 | R58: 1.74 | S58: 0 | T58: 0 | U58: 0
A59: 54-3гн-2020 | B59: Чай с лимоном и сахаром | C59: 207 | D59: 0.2 | E59: 0.1 | F59: 6.6 | G59: 27.9 | H59: 0 | I59: 0.01 | J59: 0.38 | K59: 0 | L59: 1.16 | M59: 1.26 | N59: 30.23 | O59: 67 | P59: 4.56 | Q59: 8.52 | R59: 0.77 | S59: 0.01 | T59: 0.02 | U59: 0.7
A60: Пром. | B60: Хлеб ржаной | C60: 20 | D60: 1.3 | E60: 0.2 | F60: 6.7 | G60: 34.2 | H60: 0.04 | I60: 0.02 | J60: 0 | K60: 0 | L60: 0 | M60: 122 | N60: 49 | O60: 7 | P60: 9.4 | Q60: 31.6 | R60: 0.78 | S60: 0 | T60: 6.18 | U60: 0
A61: Пром. | B61: Хлеб пшеничный | C61: 30 | D61: 2.3 | E61: 0.2 | F61: 14.8 | G61: 70.3 | H61: 0.03 | I61: 0.01 | J61: 0 | K61: 0 | L61: 0 | M61: 149.7 | N61: 27.9 | O61: 6 | P61: 4.2 | Q61: 19.5 | R61: 0.33 | S61: 0.96 | T61: 1.8 | U61: 4.35
B62: Итого за Завтрак | C62: =SUM(C56:C61) -> 597 | D62: =SUM(D56:D61) -> 24.19 | E62: =SUM(E56:E61) -> 31.95 | F62: 73.86 | G62: 661.35 | H62: 0.15 | I62: 0.09 | J62: 23.17 | K62: 0.12 | L62: 3.44 | M62: 530.73 | N62: 307.4 | O62: 233.65 | P62: 53.62 | Q62: 266.52 | R62: 5.22 | S62: 37.88 | T62: 8.45 | U62: 30.76
B63: Итого за день | C63: =C62+C54 -> 767 | D63: =D62+D54 -> 27.59 | E63: =E62+E54 -> 33.15 | F63: 94.16 | G63: 765.65 | H63: 0.21 | I63: 0.15 | J63: 28.35 | K63: 0.12 | L63: 3.67 | M63: 666.49 | N63: 405.41 | O63: 317.26 | P63: 70.26 | Q63: 325.47 | R63: 6.38 | S63: 41.26 | T63: 9.11 | U63: 38.26
A65: 4 день, 1 неделя
A66: № рецептуры | B66: Прием пищи, наименование блюда | C66: Масса | D66: Пищевые вещества | G66: Энергетическая ценность | H66: Витамины | M66: Минеральные вещества
D67: Белки | E67: Жиры | F67: Углеводы | H67: B1 | I67: B2 | J67: A | K67: D | L67: C | M67: Na | N67: K | O67: Ca | P67: Mg | Q67: P | R67: Fe | S67: I | T67: Se | U67: F
C68: г | D68: г | E68: г | F68: г | G68: ккал | H68: мг | I68: мг | J68: мкг рет.экв | K68: мкг | L68: мг | M68: мг | N68: мг | O68: мг | P68: мг | Q68: мг | R68: мг | S68: мкг | T68: мкг | U68: мкг
B69: Четверг, 1 неделя
B70: Буфет | C70: 11-18
A71: 54-6к-2020 | B71: Каша вязкая молочная пшенная | C71: 150 | D71: 6.2 | E71: 7.6 | F71: 28.2 | G71: 206.2 | H71: 0.14 | I71: 0.11 | J71: 31.22 | K71: 0.1 | L71: 0.41 | M71: 254.01 | N71: 162.17 | O71: 107.34 | P71: 36.72 | Q71: 139.54 | R71: 0.99 | S71: 38.71 | T71: 2.33 | U71: 26.31
A72: 54-1гн-2020 | B72: Чай без сахара | C72: 150 | D72: 0.1 | E72: 0 | F72: 0 | G72: 1.1 | H72: 0 | I72: 0.01 | J72: 0.23 | K72: 0 | L72: 0.03 | M72: 0.47 | N72: 15.44 | O72: 49.47 | P72: 2.87 | Q72: 5.38 | R72: 0.54 | S72: 0 | T72: 0 | U72: 0
B73: Итого за буфет | C73: 300 | D73: 6.3 | E73: 7.6 | F73: 28.2 | G73: 207.3 | H73: 0.14 | I73: 0.12 | J73: 31.45 | K73: 0.1 | L73: 0.44 | M73: 254.48 | N73: 177.61 | O73: 156.81 | P73: 39.59 | Q73: 144.92 | R73: 1.53 | S73: 38.71 | T73: 2.33 | U73: 26.31
B74: Горячий завтрак | C74: 11-18
A75: 54-9з-2020 | B75: Салат из белокочанной капусты с морковью и яблоками с растительным маслом | C75: 60 | D75: 0.8 | E75: 6.1 | F75: 3.6 | G75: 72.5 | H75: 0.02 | I75: 0.02 | J75: 241.63 | K75: 0 | L75: 17.32 | M75: 87.51 | N75: 160.14 | O75: 23.5 | P75: 11.17 | Q75: 18.8 | R75: 0.56 | S75: 9.87 | T75: 0.15 | U75: 10.98
A76: 54-11г-2020 | B76: Картофельное пюре | C76: 200 | D76: 4.1 | E76: 7.07 | F76: 26.43 | G76: 185.8 | H76: 0.16 | I76: 0.14 | J76: 31.72 | K76: 0.12 | L76: 13 | M76: 215 | N76: 833 | O76: 53 | P76: 38 | Q76: 112 | R76: 1.3 | S76: 37.95 | T76: 1.1 | U76: 57.05
A77: ном.рец №608 | B77: Котлета мясная Любительская, полуфабрикат в соусе | C77: 70/30 | D77: 10.04 | E77: 12.79 | F77: 8.12 | G77: 187.9 | H77: 0 | I77: 0 | J77: 38.45 | K77: 0.01 | L77: 1.15 | M77: 3 | N77: 43 | O77: 45.75 | P77: 35.13 | Q77: 173.38 | R77: 1.6 | S77: 0 | T77: 0 | U77: 0
A78: 54-2гн-2020 | B78: Кофейный напиток с молоком | C78: 200 | D78: 3.9 | E78: 2.9 | F78: 11.2 | G78: 86 | H78: 0.03 | I78: 0.13 | J78: 13.29 | K78: 0 | L78: 0.52 | M78: 38.55 | N78: 183.98 | O78: 148.32 | P78: 30.67 | Q78: 106.79 | R78: 1.06 | S78: 9 | T78: 1.76 | U78: 20
A79: Пром. | B79: Хлеб ржаной | C79: 20 | D79: 1.3 | E79: 0.2 | F79: 6.7 | G79: 34.2 | H79: 0.04 | I79: 0.02 | J79: 0 | K79: 0 | L79: 0 | M79: 122 | N79: 49 | O79: 7 | P79: 9.4 | Q79: 31.6 | R79: 0.78 | S79: 0 | T79: 6.18 | U79: 0
A80: Пром. | B80: Хлеб пшеничный | C80: 30 | D80: 2.3 | E80: 0.2 | F80: 14.8 | G80: 70.3 | H80: 0.03 | I80: 0.01 | J80: 0 | K80: 0 | L80: 0 | M80: 149.7 | N80: 27.9 | O80: 6 | P80: 4.2 | Q80: 19.5 | R80: 0.33 | S80: 0.96 | T80: 1.8 | U80: 4.35
B81: Итого за Завтрак | C81: 610 | D81: =SUM(D75:D80) -> 22.44 | E81: 29.26 | F81: 70.85 | G81: 636.7 | H81: 0.28 | I81: 0.32 | J81: 325.09 | K81: 0.13 | L81: 31.99 | M81: 615.76 | N81: 1297.02 | O81: 283.57 | P81: 128.57 | Q81: 462.07 | R81: 5.63 | S81: 57.78 | T81: 10.99 | U81: 92.38
B82: Итого за день | C82: =C81+C73 -> 910 | D82: =D81+D73 -> 28.74 | E82: 36.86 | F82: 99.05 | G82: 844 | H82: 0.42 | I82: 0.44 | J82: 356.54 | K82: 0.23 | L82: 32.43 | M82: 870.24 | N82: 1474.63 | O82: 440.38 | P82: 168.16 | Q82: 606.99 | R82: 7.16 | S82: 96.49 | T82: 13.32 | U82: 118.69
A84: 5 день, 1 неделя
A85: № рецептуры | B85: Прием пищи, наименование блюда | C85: Масса | D85: Пищевые вещества | G85: Энергетическая ценность | H85: Витамины | M85: Минеральные вещества
D86: Белки | E86: Жиры | F86: Углеводы | H86: B1 | I86: B2 | J86: A | K86: D | L86: C | M86: Na | N86: K | O86: Ca | P86: Mg | Q86: P | R86: Fe | S86: I | T86: Se | U86: F
C87: г | D87: г | E87: г | F87: г | G87: ккал | H87: мг | I87: мг | J87: мкг рет.экв | K87: мкг | L87: мг | M87: мг | N87: мг | O87: мг | P87: мг | Q87: мг | R87: мг | S87: мкг | T87: мкг | U87: мкг
B88: Пятница, 1 неделя
B89: Буфет | C89: 11-18
A90: 54-1г-2020 | B90: Макароны отварные | C90: 150 | D90: 5.3 | E90: 4.9 | F90: 32.8 | G90: 196.8 | H90: 0.06 | I90: 0.02 | J90: 18.36 | K90: 0.09 | L90: 0 | M90: 149.04 | N90: 53.8 | O90: 105.83 | P90: 7.19 | Q90: 40.7 | R90: 0.73 | S90: 20.77 | T90: 0.06 | U90: 11.92
A91: 54-2гн-2020 | B91: Чай с сахаром | C91: 150 | D91: 0.1 | E91: 0 | F91: 4.8 | G91: 20.1 | H91: 0 | I91: 0.01 | J91: 0.23 | K91: 0 | L91: 0.03 | M91: 0.51 | N91: 15.57 | O91: 49.56 | P91: 2.87 | Q91: 5.38 | R91: 0.55 | S91: 0 | T91: 0 | U91: 0
B92: Итого за буфет | C92: 300 | D92: 5.4 | E92: 4.9 | F92: 37.6 | G92: 216.9 | H92: 0.06 | I92: 0.03 | J92: 18.59 | K92: 0.09 | L92: 0.03 | M92: 149.55 | N92: 69.37 | O92: 155.39 | P92: 10.06 | Q92: 46.08 | R92: 1.28 | S92: 20.77 | T92: 0.06 | U92: 11.92
B93: Горячий завтрак | C93: 11-18
A94: 54-11з-2020 | B94: Салат из моркови с яблоками с растительным маслом | C94: 60 | D94: 0.5 | E94: 6.1 | F94: 4.3 | G94: 74.3 | H94: 0.03 | I94: 0.03 | J94: 732.9 | K94: 0 | L94: 3.63 | M94: 89.79 | N94: 123.26 | O94: 13.5 | P94: 15.57 | Q94: 22.38 | R94: 0.66 | S94: 10.19 | T94: 0.09 | U94: 21.57
A95: 54-6г-2020 | B95: Плов из говядины | C95: 180/40 | D95: 16.86 | E95: 16.22 | F95: 42.44 | G95: 383.1 | H95: 0.07 | I95: 0.13 | J95: 287.76 | K95: 0.11 | L95: 0 | M95: 304 | N95: 295 | O95: 128 | P95: 48 | Q95: 213 | R95: 2.4 | S95: 42.53 | T95: 8.1 | U95: 89.91
A96: 54-4гн-2020 | B96: Компот из кураги | C96: 200 | D96: 0.98 | E96: 0.05 | F96: 15.64 | G96: 66.9 | H96: 0.01 | I96: 0.03 | J96: 69.96 | K96: 0 | L96: 0 | M96: 3 | N96: 285 | O96: 90 | P96: 18 | Q96: 25 | R96: 0.6 | S96: 0 | T96: 0 | U96: 0
A97: Пром. | B97: Хлеб ржаной | C97: 20 | D97: 1.3 | E97: 0.2 | F97: 6.7 | G97: 34.2 | H97: 0.04 | I97: 0.02 | J97: 0 | K97: 0 | L97: 0 | M97: 122 | N97: 49 | O97: 7 | P97: 9.4 | Q97: 31.6 | R97: 0.78 | S97: 0 | T97: 6.18 | U97: 0
A98: Пром. | B98: Хлеб пшеничный | C98: 30 | D98: 2.3 | E98: 0.2 | F98: 14.8 | G98: 70.3 | H98: 0.03 | I98: 0.01 | J98: 0 | K98: 0 | L98: 0 | M98: 149.7 | N98: 27.9 | O98: 6 | P98: 4.2 | Q98: 19.5 | R98: 0.33 | S98: 0.96 | T98: 1.8 | U98: 4.35
B99: Итого за Завтрак | C99: 530 | D99: =SUM(D94:D98) -> 21.94 | E99: =SUM(E94:E98) -> 22.77 | F99: 83.88 | G99: 628.8 | H99: 0.18 | I99: 0.22 | J99: 1090.62 | K99: 0.11 | L99: 3.63 | M99: 668.49 | N99: 780.16 | O99: 244.5 | P99: 95.17 | Q99: 311.48 | R99: 4.77 | S99: 53.68 | T99: 16.17 | U99: 115.83
B100: Итого за день | C100: =C99+C92 -> 830 | D100: =D99+D92 -> 27.34 | E100: =E99+E92 -> 27.67 | F100: =F99+F92 -> 121.48 | G100: =G99+G92 -> 845.7 | H100: =H99+H92 -> 0.24 | I100: =I99+I92 -> 0.25 | J100: =J99+J92 -> 1109.21 | K100: =K99+K92 -> 0.2 | L100: =L99+L92 -> 3.66 | M100: =M99+M92 -> 818.04 | N100: =N99+N92 -> 849.53 | O100: =O99+O92 -> 399.89 | P100: =P99+P92 -> 105.23 | Q100: =Q99+Q92 -> 357.56 | R100: =R99+R92 -> 6.05 | S100: =S99+S92 -> 74.45 | T100: =T99+T92 -> 16.23 | U100: =U99+U92 -> 127.75
A102: 6 день, 1 неделя
A103: № рецептуры | B103: Прием пищи, наименование блюда | C103: Масса | D103: Пищевые вещества | G103: Энергетическая ценность | H103: Витамины | M103: Минеральные вещества
D104: Белки | E104: Жиры | F104: Углеводы | H104: B1 | I104: B2 | J104: A | K104: D | L104: C | M104: Na | N104: K | O104: Ca | P104: Mg | Q104: P | R104: Fe | S104: I | T104: Se | U104: F
C105: г | D105: г | E105: г | F105: г | G105: ккал | H105: мг | I105: мг | J105: мкг рет.экв | K105: мкг | L105: мг | M105: мг | N105: мг | O105: мг | P105: мг | Q105: мг | R105: мг | S105: мкг | T105: мкг | U105: мкг
B106: Суббота, 1 неделя
B107: Буфет | C107: 11-18
A108: 54-3гн-2020 | B108: Чай с лимоном и сахаром | C108: 155 | D108: 0.2 | E108: 0 | F108: 5 | G108: 20.9 | H108: 0 | I108: 0.01 | J108: 0.29 | K108: 0 | L108: 0.87 | M108: 0.95 | N108: 22.67 | O108: 50.25 | P108: 3.42 | Q108: 6.39 | R108: 0.58 | S108: 0.01 | T108: 0.02 | U108: 0.53
A109: Пром. | B109: Сушка простая | C109: 20 | D109: 2.2 | E109: 0.3 | F109: 13.8 | G109: 66.1 | H109: 0.05 | I109: 0.01 | J109: 0 | K109: 0 | L109: 0 | M109: 121 | N109: 37 | O109: 6 | P109: 9.2 | Q109: 24.2 | R109: 0.58 | S109: 0 | T109: 0 | U109: 0
B110: Итого за буфет | C110: 175 | D110: 2.4 | E110: 0.3 | F110: 18.8 | G110: 87 | H110: 0.05 | I110: 0.02 | J110: 0.29 | K110: 0 | L110: 0.87 | M110: 121.95 | N110: 59.67 | O110: 56.25 | P110: 12.62 | Q110: 30.59 | R110: 1.16 | S110: 0.01 | T110: 0.02 | U110: 0.53
B111: Горячий завтрак | C111: 11-18
A112: 54-16з-2020 | B112: Винегрет с растительным маслом | C112: 60 | D112: 0.7 | E112: 5.4 | F112: 4 | G112: 67.1 | H112: 0.02 | I112: 0.02 | J112: 72.89 | K112: 0 | L112: 2.26 | M112: 200.99 | N112: 127.85 | O112: 12.1 | P112: 9.66 | Q112: 21.4 | R112: 0.41 | S112: 7.86 | T112: 0.13 | U112: 11.85
A113: рец.2015г. | B113: Пельмени мясные отварные, полуфабрикат | C113: 200 | D113: 10.34 | E113: 12.175 | F113: 20.34 | G113: 237 | H113: 0.159 | I113: 0 | J113: 0.18 | K113: 0 | L113: 0.491 | M113: 0 | N113: 0 | O113: 79.453 | P113: 10.579 | Q113: 239.018 | R113: 0.01 | S113: 0 | T113: 0 | U113: 0
A114: 54-23гн-2020 | B114: Кофейный напиток с молоком | C114: 200 | D114: 3.9 | E114: 2.9 | F114: 11.2 | G114: 86 | H114: 0.03 | I114: 0.13 | J114: 13.29 | K114: 0 | L114: 0.52 | M114: 38.55 | N114: 183.98 | O114: 148.32 | P114: 30.67 | Q114: 106.79 | R114: 1.06 | S114: 9 | T114: 1.76 | U114: 20
A115: Пром. | B115: Хлеб пшеничный | C115: 30 | D115: 2.3 | E115: 0.2 | F115: 14.8 | G115: 70.3 | H115: 0.03 | I115: 0.01 | J115: 0 | K115: 0 | L115: 0 | M115: 149.7 | N115: 27.9 | O115: 6 | P115: 4.2 | Q115: 19.5 | R115: 0.33 | S115: 0.96 | T115: 1.8 | U115: 4.35
A116: Пром. | B116: Хлеб ржаной | C116: 20 | D116: 1.3 | E116: 0.2 | F116: 6.7 | G116: 34.2 | H116: 0.04 | I116: 0.02 | J116: 0 | K116: 0 | L116: 0 | M116: 122 | N116: 49 | O116: 7 | P116: 9.4 | Q116: 31.6 | R116: 0.78 | S116: 0 | T116: 6.18 | U116: 0
B117: Итого за Завтрак | C117: =SUM(C112:C116) -> 510 | D117: =SUM(D112:D116) -> 18.54 | E117: 20.875 | F117: 57.04 | G117: 494.6 | H117: 0.279 | I117: 0.18 | J117: 86.36 | K117: 0 | L117: 3.271 | M117: 511.24 | N117: 388.73 | O117: 252.873 | P117: 64.509 | Q117: 418.308 | R117: 2.59 | S117: 17.82 | T117: 9.87 | U117: 36.2
B118: Итого за день | C118: =C110+C117 -> 685 | D118: =D110+D117 -> 20.94 | E118: 21.175 | F118: 75.84 | G118: 581.6 | H118: 0.329 | I118: 0.2 | J118: 86.65 | K118: 0 | L118: 4.141 | M118: 633.19 | N118: 448.4 | O118: 309.123 | P118: 77.129 | Q118: 448.898 | R118: 3.75 | S118: 17.83 | T118: 9.89 | U118: 36.73
A120: 7 день, 2 неделя
A121: № рецептуры | B121: Прием пищи, наименование блюда | C121: Масса | D121: Пищевые вещества | G121: Энергетическая ценность | H121: Витамины | M121: Минеральные вещества
D122: Белки | E122: Жиры | F122: Углеводы | H122: B1 | I122: B2 | J122: A | K122: D | L122: C | M122: Na | N122: K | O122: Ca | P122: Mg | Q122: P | R122: Fe | S122: I | T122: Se | U122: F
C123: г | D123: г | E123: г | F123: г | G123: ккал | H123: мг | I123: мг | J123: мкг рет.экв | K123: мкг | L123: мг | M123: мг | N123: мг | O123: мг | P123: мг | Q123: мг | R123: мг | S123: мкг | T123: мкг | U123: мкг
B124: Понедельник, 2 неделя
B125: Буфет | C125: 11-18
A126: 54-21гн-2020 | B126: Какао с молоком | C126: 150 | D126: 3.5 | E126: 2.6 | F126: 9.4 | G126: 75.3 | H126: 0.03 | I126: 0.12 | J126: 12.94 | K126: 0 | L126: 0.51 | M126: 37.46 | N126: 165.25 | O126: 125.76 | P126: 25.74 | Q126: 97.71 | R126: 0.82 | S126: 8.78 | T126: 1.72 | U126: 28.69
A127: Пром. | B127: Сушка простая | C127: 20 | D127: 2.2 | E127: 0.3 | F127: 13.8 | G127: 66.1 | H127: 0.05 | I127: 0.01 | J127: 0 | K127: 0 | L127: 0 | M127: 121 | N127: 37 | O127: 6 | P127: 9.2 | Q127: 24.2 | R127: 0.58 | S127: 0 | T127: 0 | U127: 0
B128: Итого за буфет | C128: 170 | D128: 5.7 | E128: 2.9 | F128: 23.2 | G128: 141.4 | H128: 0.08 | I128: 0.13 | J128: 12.94 | K128: 0 | L128: 0.51 | M128: 158.46 | N128: 202.25 | O128: 131.76 | P128: 34.94 | Q128: 121.91 | R128: 1.4 | S128: 8.78 | T128: 1.72 | U128: 28.69
B129: Горячий завтрак | C129: 11-18
A130: 54-7з-2020 | B130: Салат из белокочанной капусты с растительным маслом | C130: 60 | D130: 1.5 | E130: 6.1 | F130: 6.2 | G130: 85.8 | H130: 0.03 | I130: 0.04 | J130: 122.25 | K130: 0 | L130: 34.78 | M130: 88.69 | N130: 247.73 | O130: 40.39 | P130: 15.18 | Q130: 30.31 | R130: 0.55 | S130: 10.73 | T130: 0.26 | U130: 12.66
A131: 54-4г-2020 | B131: Каша гречневая рассыпчатая | C131: 180 | D131: 9.87 | E131: 7.61 | F131: 43.12 | G131: 280.5 | H131: 0.26 | I131: 0.14 | J131: 23.02 | K131: 0.11 | L131: 0 | M131: 180 | N131: 263 | O131: 57 | P131: 144 | Q131: 217 | R131: 4.8 | S131: 26.73 | T131: 4.3 | U131: 19.27
A132: ном.рец №608 | B132: Котлета мясная Любительская, полуфабрикат в соусе | C132: 70/30 | D132: 10.04 | E132: 12.79 | F132: 8.12 | G132: 187.9 | H132: 0 | I132: 0 | J132: 38.45 | K132: 0.01 | L132: 1.15 | M132: 3 | N132: 43 | O132: 45.75 | P132: 35.13 | Q132: 173.38 | R132: 1.6 | S132: 0 | T132: 0 | U132: 0
A133: 54-2гн-2020 | B133: Чай с сахаром | C133: 200 | D133: 0.2 | E133: 0 | F133: 6.4 | G133: 26.8 | H133: 0 | I133: 0.01 | J133: 0.3 | K133: 0 | L133: 0.04 | M133: 0.68 | N133: 20.76 | O133: 66.08 | P133: 3.83 | Q133: 7.18 | R133: 0.73 | S133: 0 | T133: 0 | U133: 0
A134: Пром. | B134: Хлеб пшеничный | C134: 30 | D134: 2.3 | E134: 0.2 | F134: 14.8 | G134: 70.3 | H134: 0.03 | I134: 0.01 | J134: 0 | K134: 0 | L134: 0 | M134: 149.7 | N134: 27.9 | O134: 6 | P134: 4.2 | Q134: 19.5 | R134: 0.33 | S134: 0.96 | T134: 1.8 | U134: 4.35
A135: Пром. | B135: Хлеб ржаной | C135: 20 | D135: 1.3 | E135: 0.2 | F135: 6.7 | G135: 34.2 | H135: 0.04 | I135: 0.02 | J135: 0 | K135: 0 | L135: 0 | M135: 122 | N135: 49 | O135: 7 | P135: 9.4 | Q135: 31.6 | R135: 0.78 | S135: 0 | T135: 6.18 | U135: 0
B136: Итого за Завтрак | C136: 590 | D136: =SUM(D130:D135) -> 25.21 | E136: 26.9 | F136: 85.34 | G136: 685.5 | H136: 0.36 | I136: 0.22 | J136: 184.02 | K136: 0.12 | L136: 35.97 | M136: 544.07 | N136: 651.39 | O136: 222.22 | P136: 211.74 | Q136: 478.97 | R136: 8.79 | S136: 38.42 | T136: 12.54 | U136: 36.28
B137: Итого за день | C137: =C136+C128 -> 760 | D137: 30.91 | E137: 29.8 | F137: 108.54 | G137: 826.9 | H137: 0.44 | I137: 0.35 | J137: 196.96 | K137: 0.12 | L137: 36.48 | M137: 702.53 | N137: 853.64 | O137: 353.98 | P137: 246.68 | Q137: 600.88 | R137: 10.19 | S137: 47.2 | T137: 14.26 | U137: 64.97
A139: 8 день, 2 неделя
A140: № рецептуры | B140: Прием пищи, наименование блюда | C140: Масса | D140: Пищевые вещества | G140: Энергетическая ценность | H140: Витамины | M140: Минеральные вещества
D141: Белки | E141: Жиры | F141: Углеводы | H141: B1 | I141: B2 | J141: A | K141: D | L141: C | M141: Na | N141: K | O141: Ca | P141: Mg | Q141: P | R141: Fe | S141: I | T141: Se | U141: F
C142: г | D142: г | E142: г | F142: г | G142: ккал | H142: мг | I142: мг | J142: мкг рет.экв | K142: мкг | L142: мг | M142: мг | N142: мг | O142: мг | P142: мг | Q142: мг | R142: мг | S142: мкг | T142: мкг | U142: мкг
B143: Вторник, 2 неделя
B144: Буфет | C144: 11-18
A145: 54-13к-2020 | B145: Каша вязкая молочная пшеничная | C145: 150 | D145: 6.1 | E145: 6.9 | F145: 29 | G145: 202.7 | H145: 0.1 | I145: 0.13 | J145: 30.74 | K145: 0.1 | L145: 0.41 | M145: 256.57 | N145: 169.91 | O145: 113.68 | P145: 29.4 | Q145: 154.74 | R145: 1.64 | S145: 37.16 | T145: 24.8 | U145: 16.11
A146: 54-1гн-2020 | B146: Чай без сахара | C146: 150 | D146: 0.1 | E146: 0 | F146: 0 | G146: 1.1 | H146: 0 | I146: 0.01 | J146: 0.23 | K146: 0 | L146: 0.03 | M146: 0.47 | N146: 15.44 | O146: 49.47 | P146: 2.87 | Q146: 5.38 | R146: 0.54 | S146: 0 | T146: 0 | U146: 0
B147: Итого за буфет | C147: 300 | D147: 6.2 | E147: 6.9 | F147: 29 | G147: 203.8 | H147: 0.1 | I147: 0.14 | J147: 30.97 | K147: 0.1 | L147: 0.44 | M147: 257.04 | N147: 185.35 | O147: 163.15 | P147: 32.27 | Q147: 160.12 | R147: 2.18 | S147: 37.16 | T147: 24.8 | U147: 16.11
B148: Горячий завтрак | C148: 11-18
A149: 54-13з-2020 | B149: Салат из свеклы отварной с растительным маслом | C149: 60 | D149: 0.8 | E149: 2.7 | F149: 4.6 | G149: 45.6 | H149: 0.01 | I149: 0.02 | J149: 0.68 | K149: 0 | L149: 2.28 | M149: 78.77 | N149: 136.27 | O149: 19.21 | P149: 10.95 | Q149: 21.51 | R149: 0.7 | S149: 11.99 | T149: 0.35 | U149: 11.4
A150: 54-12м-2020 | B150: Плов с курицей | C150: 170/50 | D150: 20.34 | E150: 8.18 | F150: 36.38 | G150: 300.4 | H150: 0.08 | I150: 0.07 | J150: 159.36 | K150: 0 | L150: 2 | M150: 301 | N150: 316 | O150: 80 | P150: 87 | Q150: 193 | R150: 1.7 | S150: 41.15 | T150: 21.6 | U150: 129.9
A151: 54-3гн-2020 | B151: Чай с лимоном и сахаром | C151: 207 | D151: 0.2 | E151: 0.1 | F151: 6.6 | G151: 27.9 | H151: 0 | I151: 0.01 | J151: 0.38 | K151: 0 | L151: 1.16 | M151: 1.26 | N151: 30.23 | O151: 67 | P151: 4.56 | Q151: 8.52 | R151: 0.77 | S151: 0.01 | T151: 0.02 | U151: 0.7
A152: 54-10в-2020 | B152: Булочка ванильная | C152: 50 | D152: 3.9 | E152: 3.37 | F152: 25.37 | G152: 147.4 | H152: 0.04 | I152: 0.02 | J152: 15.93 | K152: 0.12 | L152: 0 | M152: 200 | N152: 41 | O152: 14 | P152: 5 | Q152: 33 | R152: 0.5 | S152: 27.814 | T152: 2.6 | U152: 9.19
A153: Пром. | B153: Хлеб пшеничный | C153: 30 | D153: 2.3 | E153: 0.2 | F153: 14.8 | G153: 70.3 | H153: 0.03 | I153: 0.01 | J153: 0 | K153: 0 | L153: 0 | M153: 149.7 | N153: 27.9 | O153: 6 | P153: 4.2 | Q153: 19.5 | R153: 0.33 | S153: 0.96 | T153: 1.8 | U153: 4.35
A154: Пром. | B154: Хлеб ржаной | C154: 20 | D154: 1.3 | E154: 0.2 | F154: 6.7 | G154: 34.2 | H154: 0.04 | I154: 0.02 | J154: 0 | K154: 0 | L154: 0 | M154: 122 | N154: 49 | O154: 7 | P154: 9.4 | Q154: 31.6 | R154: 0.78 | S154: 0 | T154: 6.18 | U154: 0
B155: Итого за Завтрак | C155: 587 | D155: =SUM(D149:D154) -> 28.84 | E155: =SUM(E149:E154) -> 14.75 | F155: 94.45 | G155: 625.8 | H155: 0.2 | I155: 0.15 | J155: 176.35 | K155: 0.12 | L155: 5.44 | M155: 852.73 | N155: 600.4 | O155: 193.21 | P155: 121.11 | Q155: 307.13 | R155: 4.78 | S155: 81.924 | T155: 32.55 | U155: 155.54
B156: Итого за день | C156: =C155+C147 -> 887 | D156: 35.04 | E156: 21.65 | F156: 123.45 | G156: 829.6 | H156: 0.3 | I156: 0.29 | J156: 207.32 | K156: 0.22 | L156: 5.88 | M156: 1109.77 | N156: 785.75 | O156: 356.36 | P156: 153.38 | Q156: 467.25 | R156: 6.96 | S156: 119.084 | T156: 57.35 | U156: 171.65
A158: 9 день, 2 неделя
A159: № рецептуры | B159: Прием пищи, наименование блюда | C159: Масса | D159: Пищевые вещества | G159: Энергетическая ценность | H159: Витамины | M159: Минеральные вещества
D160: Белки | E160: Жиры | F160: Углеводы | H160: B1 | I160: B2 | J160: A | K160: D | L160: C | M160: Na | N160: K | O160: Ca | P160: Mg | Q160: P | R160: Fe | S160: I | T160: Se | U160: F
C161: г | D161: г | E161: г | F161: г | G161: ккал | H161: мг | I161: мг | J161: мкг рет.экв | K161: мкг | L161: мг | M161: мг | N161: мг | O161: мг | P161: мг | Q161: мг | R161: мг | S161: мкг | T161: мкг | U161: мкг
B162: Среда, 2 неделя
B163: Буфет | C163: 11-18
A164: 54-2гн-2020 | B164: Чай с сахаром | C164: 150 | D164: 0.1 | E164: 0 | F164: 4.8 | G164: 20.1 | H164: 0 | I164: 0.01 | J164: 0.23 | K164: 0 | L164: 0.03 | M164: 0.51 | N164: 15.57 | O164: 49.56 | P164: 2.87 | Q164: 5.38 | R164: 0.55 | S164: 0 | T164: 0 | U164: 0
A165: Пром. | B165: Сушка простая | C165: 20 | D165: 2.2 | E165: 0.3 | F165: 13.8 | G165: 66.1 | H165: 0.05 | I165: 0.01 | J165: 0 | K165: 0 | L165: 0 | M165: 121 | N165: 37 | O165: 6 | P165: 9.2 | Q165: 24.2 | R165: 0.58 | S165: 0 | T165: 0 | U165: 0
B166: Итого за буфет | C166: 170 | D166: 2.3 | E166: 0.3 | F166: 18.6 | G166: 86.2 | H166: 0.05 | I166: 0.02 | J166: 0.23 | K166: 0 | L166: 0.03 | M166: 121.51 | N166: 52.57 | O166: 55.56 | P166: 12.07 | Q166: 29.58 | R166: 1.13 | S166: 0 | T166: 0 | U166: 0
B167: Горячий завтрак | C167: 11-18
A168: 54-16з-2020 | B168: Винегрет с растительным маслом | C168: 60 | D168: 0.7 | E168: 5.4 | F168: 4 | G168: 67.1 | H168: 0.02 | I168: 0.02 | J168: 72.89 | K168: 0 | L168: 2.26 | M168: 200.99 | N168: 127.85 | O168: 12.1 | P168: 9.66 | Q168: 21.4 | R168: 0.41 | S168: 7.86 | T168: 0.13 | U168: 11.85
A169: 54-11г-2020 | B169: Картофельное пюре | C169: 200 | D169: 4.1 | E169: 7.07 | F169: 26.43 | G169: 185.8 | H169: 0.16 | I169: 0.14 | J169: 31.72 | K169: 0.12 | L169: 13 | M169: 215 | N169: 833 | O169: 53 | P169: 38 | Q169: 112 | R169: 1.3 | S169: 37.95 | T169: 1.1 | U169: 57.05
A170: 54-7р-2020 | B170: Рыба припущенная в молоко | C170: 100 | D170: 13.09 | E170: 7.52 | F170: 2.89 | G170: 131.6 | H170: 0.08 | I170: 0.11 | J170: 9.02 | K170: 0.16 | L170: 1 | M170: 111 | N170: 347 | O170: 68 | P170: 44 | Q170: 202 | R170: 0.7 | S170: 133.48 | T170: 11.9 | U170: 572.6
A171: 54-21гн-2020 | B171: Какао с молоком | C171: 200 | D171: 4.7 | E171: 3.5 | F171: 12.5 | G171: 100.4 | H171: 0.04 | I171: 0.16 | J171: 17.25 | K171: 0 | L171: 0.68 | M171: 49.95 | N171: 220.33 | O171: 167.68 | P171: 34.32 | Q171: 130.28 | R171: 1.09 | S171: 11.7 | T171: 2.29 | U171: 38.25
A172: Пром. | B172: Хлеб пшеничный | C172: 30 | D172: 2.3 | E172: 0.2 | F172: 14.8 | G172: 70.3 | H172: 0.03 | I172: 0.01 | J172: 0 | K172: 0 | L172: 0 | M172: 149.7 | N172: 27.9 | O172: 6 | P172: 4.2 | Q172: 19.5 | R172: 0.33 | S172: 0.96 | T172: 1.8 | U172: 4.35
A173: Пром. | B173: Хлеб ржаной | C173: 20 | D173: 1.3 | E173: 0.2 | F173: 6.7 | G173: 34.2 | H173: 0.04 | I173: 0.02 | J173: 0 | K173: 0 | L173: 0 | M173: 122 | N173: 49 | O173: 7 | P173: 9.4 | Q173: 31.6 | R173: 0.78 | S173: 0 | T173: 6.18 | U173: 0
B174: Итого за Завтрак | C174: =SUM(C168:C173) -> 610 | D174: =SUM(D168:D173) -> 26.19 | E174: 23.89 | F174: 67.32 | G174: 589.4 | H174: 0.37 | I174: 0.46 | J174: 130.88 | K174: 0.28 | L174: 16.94 | M174: 848.64 | N174: 1605.08 | O174: 313.78 | P174: 139.58 | Q174: 516.78 | R174: 4.61 | S174: 191.95 | T174: 23.4 | U174: 684.1
B175: Итого за день | C175: 760 | D175: =D174+D166 -> 28.49 | E175: 24.19 | F175: 85.92 | G175: 675.6 | H175: 0.42 | I175: 0.48 | J175: 131.11 | K175: 0.28 | L175: 16.97 | M175: 970.15 | N175: 1657.65 | O175: 369.34 | P175: 151.65 | Q175: 546.36 | R175: 5.74 | S175: 191.95 | T175: 23.4 | U175: 684.1
A177: 10 день, 2 неделя
A178: № рецептуры | B178: Прием пищи, наименование блюда | C178: Масса | D178: Пищевые вещества | G178: Энергетическая ценность | H178: Витамины | M178: Минеральные вещества
D179: Белки | E179: Жиры | F179: Углеводы | H179: B1 | I179: B2 | J179: A | K179: D | L179: C | M179: Na | N179: K | O179: Ca | P179: Mg | Q179: P | R179: Fe | S179: I | T179: Se | U179: F
C180: г | D180: г | E180: г | F180: г | G180: ккал | H180: мг | I180: мг | J180: мкг рет.экв | K180: мкг | L180: мг | M180: мг | N180: мг | O180: мг | P180: мг | Q180: мг | R180: мг | S180: мкг | T180: мкг | U180: мкг
B181: Четверг, 2 неделя
B182: Буфет | C182: 11-18
A183: 54-6к-2020 | B183: Каша вязкая молочная пшенная | C183: 150 | D183: 6.2 | E183: 7.6 | F183: 28.2 | G183: 206.2 | H183: 0.14 | I183: 0.11 | J183: 31.22 | K183: 0.1 | L183: 0.41 | M183: 254.01 | N183: 162.17 | O183: 107.34 | P183: 36.72 | Q183: 139.54 | R183: 0.99 | S183: 38.71 | T183: 2.33 | U183: 26.31
A184: 54-3гн-2020 | B184: Чай с лимоном и сахаром | C184: 155 | D184: 0.2 | E184: 0 | F184: 5 | G184: 20.9 | H184: 0 | I184: 0.01 | J184: 0.29 | K184: 0 | L184: 0.87 | M184: 0.95 | N184: 22.67 | O184: 50.25 | P184: 3.42 | Q184: 6.39 | R184: 0.58 | S184: 0.01 | T184: 0.02 | U184: 0.53
B185: Итого за буфет | C185: =SUM(C183:C184) -> 305 | D185: 6.4 | E185: 7.6 | F185: 33.2 | G185: 227.1 | H185: 0.14 | I185: 0.12 | J185: 31.51 | K185: 0.1 | L185: 1.28 | M185: 254.96 | N185: 184.84 | O185: 157.59 | P185: 40.14 | Q185: 145.93 | R185: 1.57 | S185: 38.72 | T185: 2.35 | U185: 26.84
B186: Горячий завтрак | C186: 11-18
A187: 54-11з-2020 | B187: Салат из моркови с яблоками с растительным маслом | C187: 60 | D187: 0.5 | E187: 6.1 | F187: 4.3 | G187: 74.3 | H187: 0.03 | I187: 0.03 | J187: 732.9 | K187: 0 | L187: 3.63 | M187: 89.79 | N187: 123.26 | O187: 13.5 | P187: 15.57 | Q187: 22.38 | R187: 0.66 | S187: 10.19 | T187: 0.09 | U187: 21.57
A188: 54-1г-2020 | B188: Макароны отварные | C188: 180 | D188: 6.39 | E188: 5.91 | F188: 39.36 | G188: 236.2 | H188: 0.07 | I188: 0.03 | J188: 22.03 | K188: 0.11 | L188: 0 | M188: 179 | N188: 64 | O188: 127 | P188: 9 | Q188: 48 | R188: 0.9 | S188: 24.92 | T188: 0.1 | U188: 14.31
A189: ном.рец №174 | B189: Тефтели мясные из говядины, полуфабрикат в соусе | C189: 80/30 | D189: 10.81 | E189: 10.4 | F189: 8.42 | G189: 168.9 | H189: 0 | I189: 0 | J189: 38.45 | K189: 0.01 | L189: 1.79 | M189: 3 | N189: 43 | O189: 45.75 | P189: 35.13 | Q189: 109 | R189: 1.6 | S189: 0 | T189: 0 | U189: 0
A190: 54-21гн-2020 | B190: Кофейный напиток с молоком | C190: 200 | D190: 3.9 | E190: 2.9 | F190: 11.2 | G190: 86 | H190: 0.03 | I190: 0.13 | J190: 13.29 | K190: 0 | L190: 0.52 | M190: 38.55 | N190: 183.98 | O190: 148.32 | P190: 30.67 | Q190: 106.79 | R190: 1.06 | S190: 9 | T190: 1.76 | U190: 20
A191: Пром. | B191: Хлеб пшеничный | C191: 30 | D191: 2.3 | E191: 0.2 | F191: 14.8 | G191: 70.3 | H191: 0.03 | I191: 0.01 | J191: 0 | K191: 0 | L191: 0 | M191: 149.7 | N191: 27.9 | O191: 6 | P191: 4.2 | Q191: 19.5 | R191: 0.33 | S191: 0.96 | T191: 1.8 | U191: 4.35
A192: Пром. | B192: Хлеб ржаной | C192: 20 | D192: 1.3 | E192: 0.2 | F192: 6.7 | G192: 34.2 | H192: 0.04 | I192: 0.02 | J192: 0 | K192: 0 | L192: 0 | M192: 122 | N192: 49 | O192: 7 | P192: 9.4 | Q192: 31.6 | R192: 0.78 | S192: 0 | T192: 6.18 | U192: 0
B193: Итого за Завтрак | C193: 600 | D193: =SUM(D187:D192) -> 25.2 | E193: 25.71 | F193: 84.78 | G193: 669.9 | H193: 0.2 | I193: 0.22 | J193: 806.67 | K193: 0.12 | L193: 5.94 | M193: 582.04 | N193: 491.14 | O193: 347.57 | P193: 103.97 | Q193: 337.27 | R193: 5.33 | S193: 45.07 | T193: 9.93 | U193: 60.23
B194: Итого за день | C194: =C193+C185 -> 905 | D194: =D193+D185 -> 31.6 | E194: 33.31 | F194: 117.98 | G194: 897 | H194: 0.34 | I194: 0.34 | J194: 838.18 | K194: 0.22 | L194: 7.22 | M194: 837 | N194: 675.98 | O194: 505.16 | P194: 144.11 | Q194: 483.2 | R194: 6.9 | S194: 83.79 | T194: 12.28 | U194: 87.07
A196: 11 день, 2 неделя
A197: № рецептуры | B197: Прием пищи, наименование блюда | C197: Масса | D197: Пищевые вещества | G197: Энергетическая ценность | H197: Витамины | M197: Минеральные вещества
D198: Белки | E198: Жиры | F198: Углеводы | H198: B1 | I198: B2 | J198: A | K198: D | L198: C | M198: Na | N198: K | O198: Ca | P198: Mg | Q198: P | R198: Fe | S198: I | T198: Se | U198: F
C199: г | D199: г | E199: г | F199: г | G199: ккал | H199: мг | I199: мг | J199: мкг рет.экв | K199: мкг | L199: мг | M199: мг | N199: мг | O199: мг | P199: мг | Q199: мг | R199: мг | S199: мкг | T199: мкг | U199: мкг
B200: Пятница, 2 неделя
B201: Буфет | C201: 11-18
A202: 54-9к-2020 | B202: Каша вязкая молочная овсяная | C202: 150 | D202: 6.4 | E202: 8.4 | F202: 25.7 | G202: 204.6 | H202: 0.15 | I202: 0.13 | J202: 30.15 | K202: 0.1 | L202: 0.39 | M202: 259.99 | N202: 205.54 | O202: 118.23 | P202: 47.12 | Q202: 175.03 | R202: 1.38 | S202: 38.44 | T202: 10.92 | U202: 46.71
A203: 54-2гн-2020 | B203: Чай с сахаром | C203: 150 | D203: 0.1 | E203: 0 | F203: 4.8 | G203: 20.1 | H203: 0 | I203: 0.01 | J203: 0.23 | K203: 0 | L203: 0.03 | M203: 0.51 | N203: 15.57 | O203: 49.56 | P203: 2.87 | Q203: 5.38 | R203: 0.55 | S203: 0 | T203: 0 | U203: 0
B204: Итого за буфет | C204: 300 | D204: 6.5 | E204: 8.4 | F204: 30.5 | G204: 224.7 | H204: 0.15 | I204: 0.14 | J204: 30.38 | K204: 0.1 | L204: 0.42 | M204: 260.5 | N204: 221.11 | O204: 167.79 | P204: 49.99 | Q204: 180.41 | R204: 1.93 | S204: 38.44 | T204: 10.92 | U204: 46.71
B205: Горячий завтрак | C205: 11-18
A206: 54-13з-2020 | B206: Салат из свеклы отварной с растительным маслом | C206: 60 | D206: 0.8 | E206: 2.7 | F206: 4.6 | G206: 45.6 | H206: 0.01 | I206: 0.02 | J206: 0.68 | K206: 0 | L206: 2.28 | M206: 78.77 | N206: 136.27 | O206: 19.21 | P206: 10.95 | Q206: 21.51 | R206: 0.7 | S206: 11.99 | T206: 0.35 | U206: 11.4
A207: 54-6г-2020 | B207: Рис отварной | C207: 180 | D207: 4.3 | E207: 5.8 | F207: 43.7 | G207: 244.2 | H207: 0.04 | I207: 0.03 | J207: 22.03 | K207: 0.11 | L207: 0 | M207: 183.36 | N207: 55.86 | O207: 127.98 | P207: 28.3 | Q207: 87.09 | R207: 0.59 | S207: 24.91 | T207: 8.68 | U207: 32.63
A208: 54-2м-2020 | B208: Гуляш из говядины | C208: 60/40 | D208: 13.76 | E208: 13.91 | F208: 3.9 | G208: 195.8 | H208: 0.04 | I208: 0.12 | J208: 25.46 | K208: 0.07 | L208: 1 | M208: 122 | N208: 322 | O208: 55 | P208: 23 | Q208: 166 | R208: 2.5 | S208: 17.06 | T208: 0.4 | U208: 62.71
A209: 54-4гн-2020 | B209: Компот из кураги | C209: 200 | D209: 0.98 | E209: 0.05 | F209: 15.64 | G209: 66.9 | H209: 0.01 | I209: 0.03 | J209: 69.96 | K209: 0 | L209: 0 | M209: 3 | N209: 285 | O209: 90 | P209: 18 | Q209: 25 | R209: 0.6 | S209: 0 | T209: 0 | U209: 0
A210: Пром. | B210: Хлеб ржаной | C210: 20 | D210: 1.3 | E210: 0.2 | F210: 6.7 | G210: 34.2 | H210: 0.04 | I210: 0.02 | J210: 0 | K210: 0 | L210: 0 | M210: 122 | N210: 49 | O210: 7 | P210: 9.4 | Q210: 31.6 | R210: 0.78 | S210: 0 | T210: 6.18 | U210: 0
A211: Пром. | B211: Хлеб пшеничный | C211: 30 | D211: 2.3 | E211: 0.2 | F211: 14.8 | G211: 70.3 | H211: 0.03 | I211: 0.01 | J211: 0 | K211: 0 | L211: 0 | M211: 149.7 | N211: 27.9 | O211: 6 | P211: 4.2 | Q211: 19.5 | R211: 0.33 | S211: 0.96 | T211: 1.8 | U211: 4.35
B212: Итого за Завтрак | C212: 590 | D212: =SUM(D206:D211) -> 23.44 | E212: 22.86 | F212: 89.34 | G212: 657 | H212: 0.17 | I212: 0.23 | J212: 118.13 | K212: 0.18 | L212: 3.28 | M212: 658.83 | N212: 876.03 | O212: 305.19 | P212: 93.85 | Q212: 350.7 | R212: 5.5 | S212: 54.92 | T212: 17.41 | U212: 111.09
B213: Итого за день | C213: =C212+C204 -> 890 | D213: =D212+D204 -> 29.94 | E213: 31.26 | F213: 119.84 | G213: 881.7 | H213: 0.32 | I213: 0.37 | J213: 148.51 | K213: 0.28 | L213: 3.7 | M213: 919.33 | N213: 1097.14 | O213: 472.98 | P213: 143.84 | Q213: 531.11 | R213: 7.43 | S213: 93.36 | T213: 28.33 | U213: 157.8
... 28 more rows
